Workbook

Sheet Capa

Sheet 01. Volume
B3: 01. Volume | C3: 1Q17 | D3: 2Q17 | E3: 3Q17 | F3: 4Q17 | G3: 1Q18 | H3: 2Q18 | I3: 3Q18 | J3: 4Q18 | K3: 1Q19 | L3: 2Q19 | M3: 3Q19 | N3: 4Q19 | O3: 1Q20 | P3: 2Q20 | Q3: 3Q20 | R3: 4Q20 | S3: 1Q21 | T3: 2Q21 | U3: 3Q21 | V3: 4Q21 | W3: 1Q22 | X3: 2Q22 | Y3: 3Q22 | Z3: 4Q22 | AA3: 1Q23 | AB3: 2Q23 | AC3: 3Q23 | AD3: 4Q23 | AE3: 1Q24 | AF3: 2Q24 | AG3: 3Q24 | AH3: 4Q24 | AI3: 1Q25 | AJ3: 2Q25 | AK3: 3Q25 | AL3: 4Q25
B6: VIBRA ENERGIA - Consolidated
B7: (thousand of m³) | C7: =SUM(C8:C15) -> 10337 | D7: =SUM(D8:D15) -> 10498 | E7: 11312 | F7: 11028 | G7: 10109 | H7: 10061 | I7: 10966 | J7: 10412 | K7: 9765.086081 | L7: 9999.318205 | M7: 10487.21824 | N7: 9929.388993 | O7: 9190.614823 | P7: 7827.390572 | Q7: 9454.714123 | R7: 10278.21152 | S7: 9337.226908 | T7: 8858.948291 | U7: 10326.17089 | V7: 9970.801377 | W7: 8988.428974 | X7: 9212.199817 | Y7: 10303.10894 | Z7: 10049.74708 | AA7: 9323.2 | AB7: 9024.8 | AC7: 9410.3 | AD7: 9173.3 | AE7: 8599.2 | AF7: 8819.508774 | AG7: 9385.1 | AH7: 9016.9 | AI7: 8409 | AJ7: 8723 | AK7: =SUM(AK8:AK15) -> 9258.818613 | AL7: 9500.052846
B8: Diesel | C8: 4078.228754 | D8: 4261.408091 | E8: 4595.481958 | F8: 4258.604479 | G8: 4120.005979 | H8: 4231.274002 | I8: 4724.209194 | J8: 4325.720472 | K8: 3986.667182 | L8: 4284.117609 | M8: 4545.412035 | N8: 3964.954162 | O8: 3708.109993 | P8: 3703.373643 | Q8: 4379.187243 | R8: 4183.200061 | S8: 4061.458067 | T8: 4191.842061 | U8: 4698.528924 | V8: 4420.989226 | W8: 4158.014042 | X8: 4416.113027 | Y8: 4901.639053 | Z8: 4366.956152 | AA8: 4186.1 | AB8: 4125.5 | AC8: 4449.9 | AD8: 4010.8 | AE8: 3637.5 | AF8: 4004.89397 | AG8: 4405.7 | AH8: 4055.4 | AI8: 3821 | AJ8: 3997 | AK8: 4348.576483 | AL8: 4204.588007
B9: Gasoline | C9: 2716.770478 | D9: 2761.600239 | E9: 2700.946151 | F9: 2612.456403 | G9: 2432.084519 | H9: 2389.786385 | I9: 2213.554619 | J9: 2327.637919 | K9: 2187.218924 | L9: 2241.549387 | M9: 2292.683866 | N9: 2322.310346 | O9: 2024.681229 | P9: 1757.032944 | Q9: 2215.540815 | R9: 2561.563604 | S9: 2193.456482 | T9: 2286.530441 | U9: 2636.152715 | V9: 2740.57666 | W9: 2452.921803 | X9: 2412.907432 | Y9: 2887.450056 | Z9: 3095.281501 | AA9: 2841.6 | AB9: 2702.4 | AC9: 2588.9 | AD9: 2553.3 | AE9: 2331.9 | AF9: 2363.410248 | AG9: 2509.2 | AH9: 2552.9 | AI9: 2348 | AJ9: 2490 | AK9: 2570.590406 | AL9: 2812.218958
B10: Ethanol | C10: 478.16573 | D10: 528.691543 | E10: 640.07728 | F10: 774.720359 | G10: 699.144588 | H10: 732.795208 | I10: 909.586996 | J10: 1018.256276 | K10: 883.099983 | L10: 942.872536 | M10: 934.387315 | N10: 996.648471 | O10: 795.10634 | P10: 595.893455 | Q10: 877.119889 | R10: 990.557759 | S10: 893.4133711 | T10: 752.640917 | U10: 652.5108433 | V10: 610.3017502 | W10: 642.601205 | X10: 719.176048 | Y10: 703.507945 | Z10: 744.938255 | AA10: 638.7 | AB10: 638.8 | AC10: 714.7 | AD10: 898.6 | AE10: 959.4 | AF10: 932.803055 | AG10: 855.8 | AH10: 891.6 | AI10: 820 | AJ10: 825 | AK10: 833.614436 | AL10: 921.13364
B11: Fuel Oil | C11: 641.733963 | D11: 564.410516 | E11: 942.259026 | F11: 889.912193 | G11: 538.372898 | H11: 355.357578 | I11: 694.279371 | J11: 424.836542 | K11: 436.071297 | L11: 396.484446 | M11: 398.080337 | N11: 398.591589 | O11: 382.681314 | P11: 394.141595 | Q11: 348.680691 | R11: 701.831795 | S11: 640.737419 | T11: 654.368416 | U11: 1155.562176 | V11: 889.35221 | W11: 390.389694 | X11: 398.648236 | Y11: 422.388604 | Z11: 411.242515 | AA11: 407.9 | AB11: 390.1 | AC11: 392.1 | AD11: 426.8 | AE11: 387.7 | AF11: 317.706784 | AG11: 349 | AH11: 278 | AI11: 202 | AJ11: 200 | AK11: 181.730639 | AL11: 189.356836
B12: Pet Coke | C12: 814.6127 | D12: 830.01408 | E12: 777.351057 | F12: 840.412377 | G12: 706.7614 | H12: 774.525884 | I12: 766.455748 | J12: 734.480048 | K12: 789.365734 | L12: 740.324302 | M12: 786.9478 | N12: 752.301383 | O12: 878.574286 | P12: 652.351072 | Q12: 873.459566 | R12: 855.29331 | S12: 566.10642 | T12: 177.09046 | U12: 159.22253 | V12: 130.9594 | W12: 157.55896 | X12: 97.81415 | Y12: 123.14704 | Z12: 127.97315 | AA12: 93 | AB12: 57.1 | AC12: 79.4 | AD12: 85.5 | AE12: 34.3 | AF12: 6.25929 | AG12: 0 | AH12: 0 | AI12: 0 | AJ12: 0 | AK12: 0 | AL12: 0
B13: Fuel Aviation | C13: 948.060637 | D13: 893.580198 | E13: 970.784786 | F13: 984.243514 | G13: 988.724236 | H13: 953.432702 | I13: 1019.250029 | J13: 945.908197 | K13: 951.984669 | L13: 847.293391 | M13: 914.515037 | N13: 905.271129 | O13: 830.815254 | P13: 149.929058 | Q13: 381.578559 | R13: 730.555825 | S13: 730.552865 | T13: 565.981491 | U13: 792.624284 | V13: 957.54218 | W13: 976.683188 | X13: 951.488574 | Y13: 1060.773296 | Z13: 1118.13044 | AA13: 957.9 | AB13: 920.9 | AC13: 994.9 | AD13: 1017.8 | AE13: 1080.2 | AF13: 1027.225261 | AG13: 1096.9 | AH13: 1092 | AI13: 1066 | AJ13: 1049 | AK13: 1157.419137 | AL13: 1218.724563
B14: Lubricants | C14: 0 | D14: 0 | E14: 0 | F14: 0 | G14: 0 | H14: 0 | I14: 0 | J14: 0 | K14: 73.67925499 | L14: 74.163606 | M14: 69.72916056 | N14: 63.94933381 | O14: 63.30967451 | P14: 56.64394461 | Q14: 77.18229874 | R14: 69.90213514 | S14: 71.12163605 | T14: 63.51384056 | U14: 69.18719608 | V14: 63.43452256 | W14: 66.67711665 | X14: 64.84081378 | Y14: 62.09549086 | Z14: 63.43818553 | AA14: 66.1 | AB14: 68.1 | AC14: 66.8 | AD14: 59.8 | AE14: 62.9 | AF14: 71.82450515 | AG14: 71.4 | AH14: 63 | AI14: 71 | AJ14: 76 | AK14: 80.70541523 | AL14: 71.19132719
B15: Others | C15: 659.427738 | D15: 658.295333 | E15: 685.099742 | F15: 667.650675 | G15: 623.90638 | H15: 623.828241 | I15: 638.664043 | J15: 635.160546 | K15: 456.9990366 | L15: 472.5129282 | M15: 545.462692 | N15: 525.3625796 | O15: 507.3367326 | P15: 518.02486 | Q15: 301.9650609 | R15: 185.3070324 | S15: 180.380647 | T15: 166.9806644 | U15: 162.3822205 | V15: 157.645428 | W15: 143.5829653 | X15: 151.2115367 | Y15: 142.1074572 | Z15: 121.7868826 | AA15: 131.9 | AB15: 121.9 | AC15: 123.6 | AD15: 120.7 | AE15: 105.3 | AF15: 95.38566058 | AG15: 97.1 | AH15: 84 | AI15: 81 | AJ15: 86 | AK15: 86.1820971 | AL15: 82.83951445
B17: RETAIL
B18: (thousand of m³) | C18: =SUM(C19:C22) -> 5501.021085 | D18: =SUM(D19:D22) -> 5663.929625 | E18: 5883.009295 | F18: 5845.061158 | G18: 5441.004796 | H18: 5493.0123 | I18: 5740.938723 | J18: 5858.053737 | K18: 5299.851765 | L18: 5564.586601 | M18: 5753.610533 | N18: 5697.04023 | O18: 4956.162875 | P18: 4428.158008 | Q18: 5611.3131 | R18: 6042.340254 | S18: 5430.017245 | T18: 5409.582552 | U18: 5864.92815 | V18: 5829.835398 | W18: 5445.617334 | X18: 5655.112781 | Y18: 6357.488978 | Z18: 6328.66291 | AA18: 5831 | AB18: 5660.6 | AC18: 5803.4 | AD18: 5776.7 | AE18: 5315.9 | AF18: 5497.738817 | AG18: 5639.5 | AH18: 5625.9 | AI18: 5216 | AJ18: 5464 | AK18: =SUM(AK19:AK22) -> 5756.180748 | AL18: 6030.709592
B19: Diesel | C19: 2205.355447 | D19: 2275.419961 | E19: 2442.037358 | F19: 2356.582471 | G19: 2204.127478 | H19: 2269.851797 | I19: 2507.542483 | J19: 2398.755001 | K19: 2156.187076 | L19: 2309.202784 | M19: 2460.845357 | N19: 2315.077712 | O19: 2079.978252 | P19: 2037.03477 | Q19: 2475.98667 | R19: 2444.433507 | S19: 2301.811249 | T19: 2331.753695 | U19: 2537.085141 | V19: 2435.069571 | W19: 2310.289892 | X19: 2483.02596 | Y19: 2733.055813 | Z19: 2468.997127 | AA19: 2330.2 | AB19: 2300.8 | AC19: 2484.7 | AD19: 2309.2 | AE19: 2028.6 | AF19: 2213.502629 | AG19: 2365.6 | AH19: 2229.8 | AI19: 2098 | AJ19: 2183 | AK19: 2371.230025 | AL19: 2321.147928
B20: Gasoline | C20: 2698.766508 | D20: 2742.689421 | E20: 2681.853257 | F20: 2593.91333 | G20: 2415.943685 | H20: 2372.207797 | I20: 2196.392244 | J20: 2310.61296 | K20: 2170.842806 | L20: 2223.316781 | M20: 2271.906861 | N20: 2300.749047 | O20: 2003.443283 | P20: 1740.999283 | Q20: 2195.418541 | R20: 2541.090416 | S20: 2173.944625 | T20: 2267.80794 | U20: 2614.550166 | V20: 2718.976729 | W20: 2433.204439 | X20: 2391.803273 | Y20: 2867.92022 | Z20: 3076.933528 | AA20: 2819.7 | AB20: 2683 | AC20: 2569.9 | AD20: 2536.3 | AE20: 2299.5 | AF20: 2322.530581 | AG20: 2393.1 | AH20: 2481 | AI20: 2280 | AJ20: 2439 | AK20: 2537.601002 | AL20: 2775.390177
B21: Ethanol | C21: 475.69913 | D21: 526.220243 | E21: 637.51868 | F21: 772.065357 | G21: 695.833633 | H21: 727.952706 | I21: 907.403996 | J21: 1015.885776 | K21: 880.621883 | L21: 940.767036 | M21: 931.958315 | N21: 993.113471 | O21: 791.94134 | P21: 594.223955 | Q21: 874.907889 | R21: 987.416331 | S21: 889.5613711 | T21: 749.520917 | U21: 649.5928433 | V21: 606.5890982 | W21: 639.223003 | X21: 716.783548 | Y21: 700.312945 | Z21: 740.732255 | AA21: 633.5 | AB21: 635.7 | AC21: 710.7 | AD21: 894 | AE21: 954.5 | AF21: 929.43955 | AG21: 852.3 | AH21: 886.8 | AI21: 815 | AJ21: 819 | AK21: 826.39843 | AL21: 913.16114
B22: Others | C22: 121.2 | D22: 119.6 | E22: 121.6 | F22: 122.5 | G22: 125.1 | H22: 123 | I22: 129.6 | J22: 132.8 | K22: 92.2 | L22: 91.3 | M22: 88.9 | N22: 88.1 | O22: 80.8 | P22: 55.9 | Q22: 65 | R22: 69.4 | S22: 64.7 | T22: 60.5 | U22: 63.7 | V22: 69.2 | W22: 62.9 | X22: 63.5 | Y22: 56.2 | Z22: 42 | AA22: 47.6 | AB22: 41.1 | AC22: 38.1 | AD22: 37.2 | AE22: 33.3 | AF22: 32.26605724 | AG22: 28.5 | AH22: 28.3 | AI22: 23 | AJ22: 23 | AK22: 20.95129113 | AL22: 21.01034704
B24: B2B *
B25: (thousand of m³) | C25: =SUM(C26:C30) -> 4836 | D25: =SUM(D26:D30) -> 4834 | E25: 5429 | F25: 5183 | G25: 4668 | H25: 4568 | I25: 5225 | J25: 4554 | K25: 4465.4 | L25: 4434.8 | M25: 4733.6 | N25: 4232.4 | O25: 4234.5 | P25: 3399.2 | Q25: 3843.3 | R25: 4235.6 | S25: 3907.2 | T25: 3449.5 | U25: 4461.2 | V25: 4141 | W25: 3542.8 | X25: 3557 | Y25: 3945.2 | Z25: 3721.2 | AA25: 3492.1 | AB25: 3364.3 | AC25: 3606.8 | AD25: 3396.5 | AE25: 3283.3 | AF25: 3321.744463 | AG25: 3745.5 | AH25: 3391 | AI25: 3195 | AJ25: 3259 | AK25: =SUM(AK26:AK30) -> 3501.437865 | AL25: 3469.278194
B26: Diesel | C26: 1871.085949 | D26: 1984.583378 | E26: 2151.94544 | F26: 1900.382836 | G26: 1914.61876 | H26: 1960.216102 | I26: 2215.26677 | J26: 1925.855413 | K26: 1829.7 | L26: 1974.1 | M26: 2083.4 | N26: 1648 | O26: 1628.1 | P26: 1666.3 | Q26: 1903.3 | R26: 1738.8 | S26: 1759.6 | T26: 1860.1 | U26: 2161.4 | V26: 1985.9 | W26: 1847.7 | X26: 1933.1 | Y26: 2168.6 | Z26: 1898 | AA26: 1855.9 | AB26: 1824.7 | AC26: 1965.2 | AD26: 1701.6 | AE26: 1608.9 | AF26: 1791.375848 | AG26: 2040.1 | AH26: 1825.5 | AI26: 1724 | AJ26: 1814 | AK26: 1977.246458 | AL26: 1883.440079
B27: QAV / GAV | C27: 948.055545 | D27: 893.578483 | E27: 970.783491 | F27: 984.242961 | G27: 988.723592 | H27: 953.432078 | I27: 1019.249801 | J27: 945.907845 | K27: 952 | L27: 847.3 | M27: 914.5 | N27: 905.3 | O27: 830.8 | P27: 149.9 | Q27: 381.6 | R27: 730.6 | S27: 730.6 | T27: 566 | U27: 792.6 | V27: 957.5 | W27: 976.7 | X27: 951.5 | Y27: 1060.4 | Z27: 1118.1 | AA27: 957.9 | AB27: 920.9 | AC27: 994.9 | AD27: 1017.8 | AE27: 1080.2 | AF27: 1027.225261 | AG27: 1096.9 | AH27: 1091.7 | AI27: 1066 | AJ27: 1049 | AK27: 1157.419137 | AL27: 1218.72628
B28: Fuel Oil | C28: 641.733963 | D28: 564.410516 | E28: 942.259026 | F28: 889.912193 | G28: 538.372898 | H28: 355.357578 | I28: 694.279371 | J28: 424.836542 | K28: 436.1 | L28: 396.5 | M28: 398.1 | N28: 398.6 | O28: 382.7 | P28: 394.1 | Q28: 348.7 | R28: 701.8 | S28: 640 | T28: 654.4 | U28: 1155.6 | V28: 889.4 | W28: 390.4 | X28: 398.6 | Y28: 422.4 | Z28: 411.3 | AA28: 407.9 | AB28: 390.1 | AC28: 392.1 | AD28: 426.8 | AE28: 387.7 | AF28: 317.706784 | AG28: 349 | AH28: 277.8 | AI28: 202 | AJ28: 200 | AK28: 181.239765 | AL28: 189.521815
B29: Pet Coke | C29: 814.6127 | D29: 830.01408 | E29: 777.351057 | F29: 840.412377 | G29: 706.7614 | H29: 774.525884 | I29: 766.455748 | J29: 734.480048 | K29: 789.4 | L29: 740.3 | M29: 786.9 | N29: 752.3 | O29: 878.6 | P29: 652.4 | Q29: 873.5 | R29: 855.3 | S29: 566.1 | T29: 177.1 | U29: 159.2 | V29: 131 | W29: 157.6 | X29: 97.8 | Y29: 123.1 | Z29: 128 | AA29: 93 | AB29: 57.1 | AC29: 79.4 | AD29: 85.5 | AE29: 34.3 | AF29: 6.25929 | AG29: 0 | AH29: 0 | AI29: 0 | AJ29: 0 | AK29: 0 | AL29: 0
B30: Others ** | C30: 560.511843 | D30: 561.413543 | E30: 586.660986 | F30: 568.049633 | G30: 519.52335 | H30: 524.468358 | I30: 529.74831 | J30: 522.920152 | K30: 458.2 | L30: 476.6 | M30: 550.7 | N30: 528.2 | O30: 514.3 | P30: 536.5 | Q30: 336.2 | R30: 209.1 | S30: 210.9 | T30: 191.9 | U30: 192.4 | V30: 177.2 | W30: 170.4 | X30: 176 | Y30: 170.7 | Z30: 165.8 | AA30: 177.4 | AB30: 171.5 | AC30: 175.2 | AD30: 164.8 | AE30: 172.2 | AF30: 179.1772805 | AG30: 259.5 | AH30: 196 | AI30: 203 | AJ30: 196 | AK30: 185.5325049 | AL30: 177.5900199
B32: B2B Segment:
B33: **Note 2: Stratura considered in the "Others" line of B2B
B35: Vibra | C35: =C7 -> 10337 | D35: =D7 -> 10498 | E35: 11312 | F35: 11028 | G35: 10109 | H35: 10061 | I35: 10966 | J35: 10412 | K35: 9765.086081 | L35: 9999.318205 | M35: 10487.21824 | N35: 9929.388993 | O35: 9190.614823 | P35: 7827.390572 | Q35: 9454.714123 | R35: 10278.21152 | S35: 9337.226908 | T35: 8858.948291 | U35: 10326.17089 | V35: 9970.801377 | W35: 8988.428974 | X35: 9212.199817 | Y35: 10303.10894 | Z35: 10049.74708 | AA35: 9323.2 | AB35: 9024.8 | AC35: 9410.3 | AD35: 9173.3 | AE35: 8599.2 | AF35: 8819.508774 | AG35: 9385.1 | AH35: 9016.9 | AI35: 8409 | AJ35: 8723 | AK35: =AK7 -> 9258.818613 | AL35: 9500.052846
B36: Check | C36: =C35-SUM(C18,C25) -> -0.021085 | D36: =D35-SUM(D18,D25) -> 0.070375 | E36: -0.009295 | F36: -0.061158 | G36: -0.004796000001 | H36: -0.0123 | I36: 0.061277 | J36: -0.053737 | K36: -0.16568446 | L36: -0.06839581 | M36: 0.007709605003 | N36: -0.051236621 | O36: -0.048051885 | P36: 0.032563619 | Q36: 0.101022627 | R36: 0.271267844 | S36: 0.009662734998 | T36: -0.134261031 | U36: 0.042738584 | V36: -0.034021118 | W36: 0.011640622 | X36: 0.087036516 | Y36: 0.419964192 | Z36: -0.115828763 | AA36: 0.1 | AB36: -0.1 | AC36: 0.1 | AD36: 0.1 | AE36: 0 | AF36: 0.025493 | AG36: 0.1 | AH36: 0 | AI36: -2 | AJ36: 0 | AK36: =AK35-SUM(AK18,AK25) -> 1.2 | AL36: 0.06506

Sheet 2. Income Statement
B3: 02. Income Statement | C3: 2014 | D3: 2015 | E3: 2016 | F3: 2017 | G3: 1Q18 | H3: 2Q18 | I3: 3Q18 | J3: 4Q18 | K3: 1Q19 | L3: 2Q19 | M3: 3Q19 | N3: 4Q19 | O3: 1Q20 | P3: 2Q20 | Q3: 3Q20 | R3: 4Q20 | S3: 1Q21 | T3: 2Q21 | U3: 3Q21 | V3: 4Q21 | W3: 1Q22 | X3: 2Q22 | Y3: 3Q22 | Z3: 4Q22 | AA3: 1Q23 | AB3: 2Q23 | AC3: 3Q23 | AD3: 4Q23 | AE3: 1Q24 | AF3: 2Q24 | AG3: 3Q24 | AH3: 4Q24 | AI3: 1Q25 | AJ3: 2Q25 | AK3: 3Q25 | AL3: 4Q25
B6: VIBRA ENERGIA - Consolidated
B7: (millions)
B9: Revenue from goods sold and services rendered | C9: 98528 | D9: 97280 | E9: 86637 | F9: 84567 | G9: 22499 | H9: 23597 | I9: 26455 | J9: 25219 | K9: 22432 | L9: 24045 | M9: 24360 | N9: 24148 | O9: 21188 | P9: 14882 | Q9: 21137 | R9: 24294 | S9: 26133 | T9: 29023 | U9: 35694 | V9: 39271 | W9: 38381 | X9: 47154 | Y9: 50834 | Z9: 45077 | AA9: 39037 | AB9: 37184 | AC9: 43063 | AD9: 43663 | AE9: 39599 | AF9: 42109 | AG9: 46271 | AH9: 44293 | AI9: 44906 | AJ9: 45609 | AK9: 48423 | AL9: 50318
B10: Marcação a mercado | AI10: -47 | AJ10: -64 | AK10: -78 | AL10: 8
B11: Cost of goods sold and services rendered | C11: -91237 | D11: -89967 | E11: -80172 | F11: -78200 | G11: -20982 | H11: -22281 | I11: -24936 | J11: -23715 | K11: -20842 | L11: -22756 | M11: -22966 | N11: -22463 | O11: -20242 | P11: -14286 | Q11: -19751 | R11: -22765 | S11: -24260 | T11: -27750 | U11: -34161 | V11: -37099 | W11: -36168 | X11: -44495 | Y11: -49782 | Z11: -43512 | AA11: -37679 | AB11: -35648 | AC11: -40001 | AD11: -41258 | AE11: -37488 | AF11: -40097 | AG11: -44114 | AH11: -42332 | AI11: -42519 | AJ11: -43655 | AK11: -45983 | AL11: -47700
B12: Gross profit | C12: =SUM(C9:C11) -> 7291 | D12: 7313 | E12: 6465 | F12: 6367 | G12: 1517 | H12: 1316 | I12: 1519 | J12: 1504 | K12: 1590 | L12: 1289 | M12: 1394 | N12: 1685 | O12: 946 | P12: 596 | Q12: 1386 | R12: 1529 | S12: 1873 | T12: 1273 | U12: 1533 | V12: 2172 | W12: 2213 | X12: 2659 | Y12: 1052 | Z12: 1565 | AA12: 1358 | AB12: 1536 | AC12: 3062 | AD12: 2405 | AE12: 2111 | AF12: 2012 | AG12: 2157 | AH12: 1961 | AI12: 2340 | AJ12: =SUM(AJ9:AJ11) -> 1890 | AK12: =SUM(AK9:AK11) -> 2362 | AL12: 2626
B13: Operating expenses
B14: Sales | C14: -4524 | D14: -6454 | E14: -3845 | F14: -2952 | G14: -708 | H14: -760 | I14: -776 | J14: -683 | K14: -733 | L14: -722 | M14: -726 | N14: -805 | O14: -590 | P14: -585 | Q14: -535 | R14: -592 | S14: -556 | T14: -585 | U14: -615 | V14: -618 | W14: -588 | X14: -642 | Y14: -700 | Z14: -716 | AA14: -671 | AB14: -671 | AC14: -690 | AD14: -682 | AE14: -668 | AF14: -674 | AG14: -690 | AH14: -727 | AI14: -742 | AJ14: -749 | AK14: -792 | AL14: -830
B15: Allowance for credit loss | C15: 0 | D15: 0 | E15: 0 | F15: 0 | G15: 0 | H15: 0 | I15: 0 | J15: 0 | K15: 0 | L15: 0 | M15: -7 | N15: -24 | O15: -33 | P15: 0 | Q15: 4 | R15: 39 | S15: -173 | T15: 10 | U15: -64 | V15: -62 | W15: 8 | X15: 14 | Y15: -38 | Z15: 24 | AA15: -1 | AB15: -26 | AC15: -39 | AD15: 7 | AE15: 2 | AF15: 30 | AG15: 24 | AH15: 6 | AI15: -14 | AJ15: 15 | AK15: 4 | AL15: -17
B16: General and administrative | C16: -748 | D16: -820 | E16: -828 | F16: -835 | G16: -190 | H16: -198 | I16: -194 | J16: -204 | K16: -195 | L16: -190 | M16: -200 | N16: -283 | O16: -145 | P16: -138 | Q16: -152 | R16: -22 | S16: -149 | T16: -168 | U16: -187 | V16: -130 | W16: -160 | X16: -183 | Y16: -197 | Z16: -203 | AA16: -205 | AB16: -170 | AC16: -197 | AD16: -232 | AE16: -224 | AF16: -238 | AG16: -262 | AH16: -275 | AI16: -359 | AJ16: -370 | AK16: -345 | AL16: -462
B17: Tax | C17: -160 | D17: -208 | E17: -137 | F17: -172 | G17: -27 | H17: -22 | I17: -209 | J17: -57 | K17: -37 | L17: -13 | M17: -36 | N17: -22 | O17: -41 | P17: -17 | Q17: -58 | R17: -31 | S17: -65 | T17: -22 | U17: -224 | V17: -34 | W17: -35 | X17: -16 | Y17: -14 | Z17: -35 | AA17: -29 | AB17: -19 | AC17: -23 | AD17: -67 | AE17: -35 | AF17: -25 | AG17: -69 | AH17: -26 | AI17: -34 | AJ17: -27 | AK17: -32 | AL17: -52
B18: Other net income (expenses) | C18: -601 | D18: -1470 | E18: -1669 | F18: -284 | G18: -135 | H18: -162 | I18: 1082 | J18: -226 | K18: -137 | L18: -64 | M18: 72 | N18: -525 | O18: 364 | P18: 400 | Q18: -120 | R18: 2352 | S18: -60 | T18: 165 | U18: -20 | V18: -800 | W18: -464 | X18: -167 | Y18: 145 | Z18: 443 | AA18: -23 | AB18: -100 | AC18: 19 | AD18: 3037 | AE18: 443 | AF18: 37 | AG18: 4534 | AH18: -735 | AI18: 314 | AJ18: 274 | AK18: 8 | AL18: -283
B20: Net income before finance income (expense), results in equity-accounted investments and income tax | C20: =SUM(C12,C14:C18) -> 1258 | D20: -1639 | E20: -14 | F20: 2124 | G20: 457 | H20: 174 | I20: 1422 | J20: 334 | K20: 488 | L20: 300 | M20: 497 | N20: 26 | O20: 501 | P20: 256 | Q20: 525 | R20: 3275 | S20: 870 | T20: 673 | U20: 423 | V20: 528 | W20: 974 | X20: 1665 | Y20: 248 | Z20: 1078 | AA20: 429 | AB20: 550 | AC20: 2132 | AD20: 4468 | AE20: 1629 | AF20: 1142 | AG20: 5694 | AH20: 204 | AI20: 1505 | AJ20: 1033 | AK20: 1205 | AL20: -1644
B21: Finance income, net
B22: Expenses | C22: -802 | D22: -1597 | E22: -1893 | F22: -1231 | G22: -94 | H22: -83 | I22: -136 | J22: -106 | K22: -112 | L22: -118 | M22: -117 | N22: -102 | O22: -99 | P22: -103 | Q22: -90 | R22: -93 | S22: -91 | T22: -95 | U22: -148 | V22: -196 | W22: -231 | X22: -328 | Y22: -354 | Z22: -414 | AA22: -406 | AB22: -370 | AC22: -386 | AD22: -340 | AE22: -316 | AF22: -343 | AG22: -375 | AH22: -422 | AI22: -716 | AJ22: -736 | AK22: -770 | AL22: -750
B23: Income | C23: 387 | D23: 505 | E23: 682 | F23: 376 | G23: 84 | H23: 364 | I23: 554 | J23: 1957 | K23: 397 | L23: 397 | M23: 1683 | N23: 91 | O23: 77 | P23: 95 | Q23: 120 | R23: 158 | S23: 116 | T23: 105 | U23: 214 | V23: 1208 | W23: 177 | X23: 236 | Y23: 150 | Z23: 134 | AA23: 234 | AB23: 211 | AC23: 244 | AD23: 249 | AE23: 189 | AF23: 304 | AG23: 454 | AH23: 830 | AI23: 313 | AJ23: 256 | AK23: 222 | AL23: 229
B24: Foreign exchange and inflation indexation, net | C24: 705 | D24: 793 | E24: 589 | F24: 298 | G24: -36 | H24: -12 | I24: -65 | J24: -4 | K24: -13 | L24: -91 | M24: -9 | N24: -16 | O24: -74 | P24: 85 | Q24: -8 | R24: 196 | S24: -143 | T24: -83 | U24: -114 | V24: -205 | W24: -395 | X24: -522 | Y24: -360 | Z24: -124 | AA24: -108 | AB24: -182 | AC24: -271 | AD24: 41 | AE24: -207 | AF24: -174 | AG24: 52 | AH24: -223 | AI24: -268 | AJ24: -72 | AK24: -99 | AL24: 17
B26: Results in equity-accounted investments | C26: -2 | D26: 3 | E26: -1 | F26: -2 | G26: -1 | H26: 0 | I26: -1 | J26: 1 | K26: 1 | L26: 0 | M26: 0 | N26: 1 | O26: -1 | P26: -1 | Q26: -1 | R26: 12 | S26: 7 | T26: 2 | U26: 76 | V26: 27 | W26: 17 | X26: 14 | Y26: 16 | Z26: -51 | AA26: -2 | AB26: -26 | AC26: -49 | AD26: 41 | AE26: -71 | AF26: 79 | AG26: -30 | AH26: 122 | AI26: 29 | AJ26: -10 | AK26: 44 | AL26: 38
B27: Income before tax | C27: =SUM(C20,C22:C24,C26) -> 1546 | D27: -1935 | E27: -637 | F27: 1565 | G27: 410 | H27: 443 | I27: 1774 | J27: 2182 | K27: 761 | L27: 488 | M27: 2054 | N27: 0 | O27: 404 | P27: 332 | Q27: 546 | R27: 3548 | S27: 759 | T27: 602 | U27: 451 | V27: 1362 | W27: 542 | X27: 1065 | Y27: -300 | Z27: 623 | AA27: 147 | AB27: 183 | AC27: 1670 | AD27: 4459 | AE27: 1224 | AF27: 1008 | AG27: 5795 | AH27: 511 | AI27: 863 | AJ27: =SUM(AJ20,AJ22:AJ24,AJ26) -> 471 | AK27: =SUM(AK20,AK22:AK24,AK26) -> 602 | AL27: 516
B28: Income tax and social contribution
B29: Current | C29: -881 | D29: -815 | E29: -307 | F29: -196 | G29: -1 | H29: 0 | I29: 0 | J29: -125 | K29: -302 | L29: -49 | M29: -764 | N29: 101 | O29: -29 | P29: -242 | Q29: -280 | R29: -380 | S29: -433 | T29: -284 | U29: 135 | V29: -285 | W29: -163 | X29: -456 | Y29: -21 | Z29: -71 | AA29: -29 | AB29: -248 | AC29: -483 | AD29: -1053 | AE29: -451 | AF29: -47 | AG29: -1566 | AH29: -231 | AI29: -189 | AJ29: -95 | AK29: -188 | AL29: -352
B30: Deferred | C30: 458 | D30: 1589 | E30: 629 | F30: -218 | G30: -162 | H30: -180 | I30: -696 | J30: -452 | K30: 18 | L30: -137 | M30: 46 | N30: -5 | O30: -141 | P30: 98 | Q30: 69 | R30: -20 | S30: 166 | T30: 64 | U30: 12 | V30: -52 | W30: -54 | X30: 98 | Y30: 260 | Z30: 14 | AA30: -37 | AB30: 198 | AC30: 68 | AD30: -109 | AE30: 16 | AF30: -94 | AG30: -28 | AH30: 230 | AI30: -73 | AJ30: -84 | AK30: -7 | AL30: 515
B32: Net income for the year | C32: =SUM(C27,C29:C30) -> 1123 | D32: -1161 | E32: -315 | F32: 1151 | G32: 247 | H32: 263 | I32: 1078 | J32: 1605 | K32: 477 | L32: 302 | M32: 1336 | N32: 96 | O32: 234 | P32: 188 | Q32: 335 | R32: 3148 | S32: 492 | T32: 382 | U32: 598 | V32: 1025 | W32: 325 | X32: 707 | Y32: -61 | Z32: 566 | AA32: 81 | AB32: 133 | AC32: 1255 | AD32: 3297 | AE32: 789 | AF32: 867 | AG32: 4201 | AH32: 510 | AI32: 601 | AJ32: =SUM(AJ27,AJ29:AJ30) -> 292 | AK32: =SUM(AK27,AK29:AK30) -> 407 | AL32: 679
B33: Result, basic and diluted per stock - R$ | C33: 0.9639484979 | D33: -0.9965665236 | E33: -0.2703862661 | F33: 0.9879828326 | G33: 0.2120171674 | H33: 0.225751073 | I33: 0.9253218884 | J33: 1.377682403 | K33: 0.4094420601 | L33: 0.2592274678 | M33: 1.146781116 | N33: 0.08240343348 | O33: 0.2008583691 | P33: 0.1613733906 | Q33: 0.2875536481 | R33: 2.702145923 | S33: 0.4223175966 | T33: 0.3278969957 | U33: 0.513304721 | V33: 0.8798283262 | W33: 0.2789699571 | X33: 0.6068669528 | Y33: -0.05236051502 | Z33: 0.4858369099 | AA33: 0.069527897 | AB33: 0.1141630901 | AC33: 1.077253219 | AD33: 2.830042918 | AE33: 0.7050938338 | AF33: 0.7747989276 | AG33: 3.754244861 | AH33: 0.4557640751 | AI33: 0.5370866845 | AJ33: 0.2609472744 | AK33: =AK32/1119 -> 0.363717605 | AL33: =AL32/1198 -> 0.5667779633

Sheet 03. Balance Sheet
B3: 03. Balance Sheet | C3: 2014 | D3: 2015 | E3: 2016 | F3: 2017 | G3: 1Q18 | H3: 2Q18 | I3: 3Q18 | J3: 4Q18 | K3: 1Q19 | L3: 2Q19 | M3: 3Q19 | N3: 4Q19 | O3: 1Q20 | P3: 2Q20 | Q3: 3Q20 | R3: 4Q20 | S3: 1Q21 | T3: 2Q21 | U3: 3Q21 | V3: 4Q21 | W3: 1Q22 | X3: 2Q22 | Y3: 3Q22 | Z3: 4Q22 | AA3: 1Q23 | AB3: 2Q23 | AC3: 3Q23 | AD3: 4Q23 | AE3: 1Q24 | AF3: 2Q24 | AG3: 3Q24 | AH3: 4Q24 | AI3: 1Q25 | AJ3: 2Q25 | AK3: 3Q25 | AL3: 4Q25
B6: ASSETS
B7: (millions) | C7: =C9+C24 -> 27619 | D7: 31241 | E7: 31398 | F7: 23762 | G7: 23372 | H7: 23634 | I7: 23833 | J7: 25345 | K7: 26669 | L7: 24771 | M7: 26685 | N7: 25866 | O7: 28823 | P7: 27669 | Q7: 27763 | R7: 28327 | S7: 29259 | T7: 28564 | U7: 29562 | V7: 33884 | W7: 36852 | X7: 39526 | Y7: 39525 | Z7: 41110 | AA7: 40229 | AB7: 39590 | AC7: 40978 | AD7: 43481 | AE7: 43158 | AF7: 44303 | AG7: 47532 | AH7: 49000 | AI7: 62234 | AJ7: 59651 | AK7: 60987 | AL7: 60963
B9: Current | C9: 11272 | D9: 12844 | E9: 12289 | F9: 10703 | G9: =SUM(G10:G22) -> 10418 | H9: =SUM(H10:H22) -> 10875 | I9: =SUM(I10:I22) -> 11722 | J9: 12803 | K9: =SUM(K10:K22) -> 13229 | L9: =SUM(L10:L23) -> 11612 | M9: =SUM(M10:M22) -> 13345 | N9: 12225 | O9: 15068 | P9: 13944 | Q9: 13571 | R9: 13351 | S9: 14690 | T9: 14457 | U9: 15205 | V9: 17760 | W9: =SUM(W10:W22) -> 18964 | X9: 21046 | Y9: 20444 | Z9: 22244 | AA9: 21543 | AB9: 20373 | AC9: 22271 | AD9: 23599 | AE9: 23079 | AF9: 24764 | AG9: 24466 | AH9: 25841 | AI9: 25968 | AJ9: 24050 | AK9: 24313 | AL9: 22913
B10: Cash and cash equivalents | C10: 742 | D10: 810 | E10: 655 | F10: 483 | G10: 1105 | H10: 1352 | I10: 1500 | J10: 3057 | K10: 3849 | L10: 1885 | M10: 3909 | N10: 2362 | O10: 5997 | P10: 5307 | Q10: 4476 | R10: 3358 | S10: 3893 | T10: 2311 | U10: 2030 | V10: 3625 | W10: 4309 | X10: 2759 | Y10: 3113 | Z10: 4145 | AA10: 5816 | AB10: 5662 | AC10: 6436 | AD10: 6666 | AE10: 5476 | AF10: 8225 | AG10: 7589 | AH10: 10480 | AI10: 5473 | AJ10: 4351 | AK10: 5936 | AL10: 3647
B11: Caixas e aplicações restritas | AI11: 70 | AJ11: 17 | AK11: 57 | AL11: 26
B12: Debentures | AI12: 34 | AJ12: 11 | AK12: 17 | AL12: 12
B13: Net accounts receivable | C13: 6863 | D13: 8114 | E13: 7679 | F13: 5528 | G13: 4894 | H13: 4878 | I13: 5336 | J13: 5327 | K13: 4992 | L13: 5128 | M13: 4602 | N13: 4475 | O13: 3805 | P13: 3696 | Q13: 3696 | R13: 3997 | S13: 4062 | T13: 4620 | U13: 5563 | V13: 5587 | W13: 5589 | X13: 6713 | Y13: 5585 | Z13: 6931 | AA13: 6142 | AB13: 5027 | AC13: 6265 | AD13: 6135 | AE13: 6043 | AF13: 5877 | AG13: 4939 | AH13: 4953 | AI13: 6121 | AJ13: 6353 | AK13: 6250 | AL13: 6838
B14: Inventories | C14: 2606 | D14: 2843 | E14: 2678 | F14: 3245 | G14: 3076 | H14: 3154 | I14: 3313 | J14: 2923 | K14: 2878 | L14: 3030 | M14: 3053 | N14: 3412 | O14: 2996 | P14: 2347 | Q14: 2948 | R14: 3545 | S14: 3561 | T14: 4637 | U14: 4814 | V14: 5674 | W14: 6176 | X14: 8433 | Y14: 7984 | Z14: 6753 | AA14: 5571 | AB14: 5731 | AC14: 6327 | AD14: 5954 | AE14: 7108 | AF14: 6264 | AG14: 6706 | AH14: 6109 | AI14: 6546 | AJ14: 6563 | AK14: 6317 | AL14: 5891
B15: Advances to suppliers | C15: 140 | D15: 112 | E15: 62 | F15: 74 | G15: 34 | H15: 21 | I15: 35 | J15: 12 | K15: 25 | L15: 10 | M15: 23 | N15: 29 | O15: 38 | P15: 34 | Q15: 18 | R15: 55 | S15: 22 | T15: 16 | U15: 61 | V15: 47 | W15: 289 | X15: 146 | Y15: 150 | Z15: 183 | AA15: 87 | AB15: 342 | AC15: 164 | AD15: 288 | AE15: 397 | AF15: 280 | AG15: 173 | AH15: 293 | AI15: 284 | AJ15: 299 | AK15: 397 | AL15: 587
B16: Income tax and social contribution | C16: 0 | D16: 0 | E16: 219 | F16: 151 | G16: 166 | H16: 177 | I16: 106 | J16: 13 | K16: 3 | L16: 43 | M16: 4 | N16: 224 | O16: 286 | P16: 227 | Q16: 109 | R16: 126 | S16: 126 | T16: 126 | U16: 126 | V16: 143 | W16: 14 | X16: 15 | Y16: 14 | Z16: 11 | AA16: 32 | AB16: 32 | AC16: 19 | AD16: 17 | AE16: 18 | AF16: 50 | AG16: 27 | AH16: 4 | AI16: 88 | AJ16: 85 | AK16: 122 | AL16: 90
B17: Taxes and contributions recoverable | C17: 502 | D17: 424 | E17: 372 | F17: 522 | G17: 438 | H17: 556 | I17: 697 | J17: 722 | K17: 768 | L17: 748 | M17: 914 | N17: 906 | O17: 1017 | P17: 1529 | Q17: 1525 | R17: 1417 | S17: 2098 | T17: 1857 | U17: 1603 | V17: 1701 | W17: 1383 | X17: 1840 | Y17: 1845 | Z17: 2690 | AA17: 2619 | AB17: 2306 | AC17: 2138 | AD17: 3625 | AE17: 3134 | AF17: 3032 | AG17: 3974 | AH17: 2764 | AI17: 2800 | AJ17: 2960 | AK17: 2353 | AL17: 2360
B18: Bonuses advanced to clients | C18: 0 | D18: 0 | E18: 540 | F18: 514 | G18: 531 | H18: 546 | I18: 557 | J18: 591 | K18: 545 | L18: 575 | M18: 583 | N18: 604 | O18: 602 | P18: 601 | Q18: 550 | R18: 592 | S18: 593 | T18: 658 | U18: 652 | V18: 541 | W18: 571 | X18: 576 | Y18: 566 | Z18: 575 | AA18: 568 | AB18: 589 | AC18: 591 | AD18: 575 | AE18: 547 | AF18: 527 | AG18: 478 | AH18: 486 | AI18: 474 | AJ18: 473 | AK18: 467 | AL18: 494
B19: Prepaid expenses | C19: 380 | D19: 498 | E19: 47 | F19: 40 | G19: 61 | H19: 60 | I19: 60 | J19: 45 | K19: 48 | L19: 51 | M19: 49 | N19: 56 | O19: 63 | P19: 65 | Q19: 59 | R19: 60 | S19: 94 | T19: 100 | U19: 92 | V19: 131 | W19: 124 | X19: 117 | Y19: 102 | Z19: 98 | AA19: 111 | AB19: 130 | AC19: 119 | AD19: 106 | AE19: 109 | AF19: 130 | AG19: 113 | AH19: 131 | AI19: 146 | AJ19: 142 | AK19: 118 | AL19: 111
B20: Derivative financial instruments | C20: 0 | D20: 0 | E20: 0 | F20: 0 | G20: 0 | H20: 0 | I20: 0 | J20: 0 | K20: 0 | L20: 0 | M20: 0 | N20: 9 | O20: 175 | P20: 16 | Q20: 91 | R20: 19 | S20: 108 | T20: 41 | U20: 112 | V20: 97 | W20: 28 | X20: 210 | Y20: 126 | Z20: 66 | AA20: 68 | AB20: 62 | AC20: 113 | AD20: 142 | AE20: 149 | AF20: 250 | AG20: 366 | AH20: 461 | AI20: 3625 | AJ20: 2295 | AK20: 1943 | AL20: 2358
B21: Non‑current assets held for sale | AL21: 219
B22: Other current assets | C22: 39 | D22: 43 | E22: 37 | F22: 146 | G22: 113 | H22: 131 | I22: 118 | J22: 113 | K22: 121 | L22: 142 | M22: 208 | N22: 148 | O22: 89 | P22: 122 | Q22: 99 | R22: 182 | S22: 133 | T22: 91 | U22: 152 | V22: 214 | W22: 481 | X22: 237 | Y22: 959 | Z22: 792 | AA22: 529 | AB22: 492 | AC22: 99 | AD22: 91 | AE22: 98 | AF22: 129 | AG22: 101 | AH22: 160 | AI22: 307 | AJ22: 501 | AK22: 336 | AL22: 280
B24: Noncurrent | C24: 16347 | D24: 18397 | E24: 19109 | F24: 13059 | G24: =SUM(G28:G39) -> 12954 | H24: =SUM(H28:H39) -> 12759 | I24: =SUM(I28:I39) -> 12111 | J24: 12542 | K24: =SUM(K28:K39) -> 13440 | L24: =SUM(L28:L39) -> 13159 | M24: =SUM(M28:M39) -> 13340 | N24: 13641 | O24: 13755 | P24: 13725 | Q24: 14192 | R24: 14976 | S24: 14569 | T24: 14107 | U24: 14357 | V24: =SUM(V27:V39) -> 16124 | W24: 17888 | X24: 18480 | Y24: 19081 | Z24: 18866 | AA24: 18686 | AB24: 19217 | AC24: 18707 | AD24: 19882 | AE24: 20079 | AF24: 19539 | AG24: 23066 | AH24: 23159 | AI24: =SUM(AI25:AI39) -> 36266 | AJ24: =SUM(AJ25:AJ39) -> 35601 | AK24: =SUM(AK25:AK39) -> 36674 | AL24: =SUM(AL25:AL39) -> 38050
B25: Caixa e aplicações restritas | C25: 0 | D25: 0 | E25: 0 | F25: 0 | G25: 0 | H25: 0 | I25: 0 | J25: 0 | K25: 0 | L25: 0 | M25: 0 | N25: 0 | O25: 0 | P25: 0 | Q25: 0 | R25: 0 | S25: 0 | T25: 0 | U25: 0 | V25: 0 | W25: 0 | X25: 0 | Y25: 0 | Z25: 0 | AA25: 0 | AB25: 0 | AC25: 0 | AD25: 0 | AE25: 0 | AF25: 0 | AG25: 0 | AH25: 0 | AI25: 108 | AJ25: 109 | AK25: 106 | AL25: 110
B26: Debentures | C26: 0 | D26: 0 | E26: 0 | F26: 0 | G26: 0 | H26: 0 | I26: 0 | J26: 0 | K26: 0 | L26: 0 | M26: 0 | N26: 0 | O26: 0 | P26: 0 | Q26: 0 | R26: 0 | S26: 0 | T26: 0 | U26: 0 | V26: 0 | W26: 0 | X26: 0 | Y26: 0 | Z26: 0 | AA26: 0 | AB26: 0 | AC26: 0 | AD26: 0 | AE26: 0 | AF26: 0 | AG26: 0 | AH26: 0 | AI26: 325 | AJ26: 345 | AK26: 351 | AL26: 351
B27: Bonds and securities | C27: 23 | D27: 28 | E27: 0 | F27: 0 | G27: 0 | H27: 0 | I27: 0 | J27: 0 | K27: 0 | L27: 0 | M27: 0 | N27: 0 | O27: 0 | P27: 0 | Q27: 0 | R27: 0 | S27: 0 | T27: 0 | U27: 0 | V27: 2018 | W27: 0 | X27: 0 | Y27: 0 | Z27: 0 | AA27: 0 | AB27: 0 | AC27: 0 | AD27: 0 | AE27: 0 | AF27: 0 | AG27: 0 | AH27: 0 | AI27: 0 | AJ27: 0 | AK27: 0 | AL27: 0
B28: Net accounts receivable | C28: 6051 | D28: 6206 | E28: 6250 | F28: 376 | G28: 374 | H28: 375 | I28: 362 | J28: 1155 | K28: 994 | L28: 835 | M28: 723 | N28: 592 | O28: 472 | P28: 415 | Q28: 688 | R28: 752 | S28: 747 | T28: 636 | U28: 540 | V28: 526 | W28: 638 | X28: 574 | Y28: 458 | Z28: 574 | AA28: 488 | AB28: 500 | AC28: 417 | AD28: 391 | AE28: 364 | AF28: 373 | AG28: 775 | AH28: 843 | AI28: 960 | AJ28: 929 | AK28: 885 | AL28: 945
B29: Judicial deposits | C29: 871 | D29: 798 | E29: 950 | F29: 1000 | G29: 1017 | H29: 1041 | I29: 1052 | J29: 1051 | K29: 1105 | L29: 1121 | M29: 1155 | N29: 1173 | O29: 1187 | P29: 1197 | Q29: 1180 | R29: 1164 | S29: 1153 | T29: 1174 | U29: 1118 | V29: 1124 | W29: 1098 | X29: 1113 | Y29: 1168 | Z29: 1196 | AA29: 1221 | AB29: 1237 | AC29: 1272 | AD29: 1281 | AE29: 1305 | AF29: 1323 | AG29: 1347 | AH29: 1333 | AI29: 1336 | AJ29: 1288 | AK29: 1299 | AL29: 1298
B30: Taxes and contributions recoverable | C30: 314 | D30: 377 | E30: 366 | F30: 541 | G30: 549 | H30: 559 | I30: 594 | J30: 498 | K30: 502 | L30: 548 | M30: 557 | N30: 607 | O30: 608 | P30: 588 | Q30: 519 | R30: 1422 | S30: 595 | T30: 610 | U30: 749 | V30: 773 | W30: 755 | X30: 644 | Y30: 633 | Z30: 588 | AA30: 552 | AB30: 657 | AC30: 638 | AD30: 1954 | AE30: 2053 | AF30: 1876 | AG30: 5232 | AH30: 5046 | AI30: 5202 | AJ30: 5285 | AK30: 6089 | AL30: 6944
B31: Deferred income and social contribution tax | C31: 984 | D31: 2558 | E31: 3425 | F31: 3162 | G31: 3091 | H31: 2911 | I31: 2215 | J31: 1863 | K31: 1881 | L31: 1744 | M31: 1790 | N31: 1905 | O31: 1764 | P31: 1673 | Q31: 1725 | R31: 1705 | S31: 1871 | T31: 1935 | U31: 1947 | V31: 1596 | W31: 1542 | X31: 1640 | Y31: 1851 | Z31: 1920 | AA31: 1883 | AB31: 2081 | AC31: 2149 | AD31: 2195 | AE31: 2211 | AF31: 2117 | AG31: 2089 | AH31: 2170 | AI31: 2162 | AJ31: 2081 | AK31: 2075 | AL31: 2749
B32: Bonuses advanced to clients | C32: 0 | D32: 0 | E32: 1419 | F32: 1469 | G32: 1444 | H32: 1408 | I32: 1418 | J32: 1467 | K32: 1557 | L32: 1681 | M32: 1830 | N32: 1926 | O32: 1879 | P32: 1819 | Q32: 1804 | R32: 1753 | S32: 1682 | T32: 1540 | U32: 1459 | V32: 1573 | W32: 1512 | X32: 1502 | Y32: 1448 | Z32: 1516 | AA32: 1487 | AB32: 1478 | AC32: 1414 | AD32: 1351 | AE32: 1238 | AF32: 1125 | AG32: 853 | AH32: 831 | AI32: 804 | AJ32: 777 | AK32: 780 | AL32: 830
B33: Prepaid expenses | C33: 1490 | D33: 1873 | E33: 183 | F33: 182 | G33: 190 | H33: 187 | I33: 185 | J33: 180 | K33: 176 | L33: 169 | M33: 163 | N33: 153 | O33: 150 | P33: 142 | Q33: 140 | R33: 139 | S33: 133 | T33: 124 | U33: 116 | V33: 104 | W33: 86 | X33: 82 | Y33: 71 | Z33: 66 | AA33: 64 | AB33: 66 | AC33: 66 | AD33: 62 | AE33: 58 | AF33: 54 | AG33: 53 | AH33: 47 | AI33: 45 | AJ33: 40 | AK33: 34 | AL33: 29
B34: Loans and financing related party | C34: 0 | D34: 0 | E34: 0 | F34: 0 | G34: 0 | H34: 0 | I34: 0 | J34: 0 | K34: 0 | L34: 0 | M34: 0 | N34: 0 | O34: 0 | P34: 0 | Q34: 0 | R34: 0 | S34: 0 | T34: 0 | U34: 0 | V34: 0 | W34: 0 | X34: 0 | Y34: 0 | Z34: 0 | AA34: 0 | AB34: 0 | AC34: 0 | AD34: 0 | AE34: 0 | AF34: 0 | AG34: 0 | AH34: 0 | AI34: 0 | AJ34: 0 | AK34: 0 | AL34: 0
B35: Derivative financial instruments | C35: 0 | D35: 0 | E35: 0 | F35: 0 | G35: 0 | H35: 0 | I35: 0 | J35: 0 | K35: 0 | L35: 0 | M35: 0 | N35: 0 | O35: 421 | P35: 631 | Q35: 720 | R35: 498 | S35: 739 | T35: 332 | U35: 543 | V35: 579 | W35: 48 | X35: 238 | Y35: 299 | Z35: 170 | AA35: 127 | AB35: 43 | AC35: 46 | AD35: 35 | AE35: 19 | AF35: 100 | AG35: 111 | AH35: 442 | AI35: 3165 | AJ35: 2716 | AK35: 2793 | AL35: 3525
B36: Other noncurrent assets | C36: 15 | D36: 12 | E36: 24 | F36: 24 | G36: 25 | H36: 18 | I36: 16 | J36: 22 | K36: 16 | L36: 16 | M36: 15 | N36: 15 | O36: 15 | P36: 15 | Q36: 16 | R36: 14 | S36: 12 | T36: 12 | U36: 8 | V36: 7 | W36: 7 | X36: 17 | Y36: 18 | Z36: 14 | AA36: 13 | AB36: 14 | AC36: 45 | AD36: 58 | AE36: 75 | AF36: 77 | AG36: 84 | AH36: 95 | AI36: 187 | AJ36: 182 | AK36: 220 | AL36: 214
B37: Investments | C37: 45 | D37: 46 | E37: 45 | F37: 36 | G37: 34 | H37: 33 | I37: 32 | J37: 33 | K37: 35 | L37: 36 | M37: 37 | N37: 47 | O37: 46 | P37: 47 | Q37: 427 | R37: 448 | S37: 479 | T37: 524 | U37: 601 | V37: 609 | W37: 4824 | X37: 4850 | Y37: 5022 | Z37: 4984 | AA37: 4981 | AB37: 4934 | AC37: 4885 | AD37: 4490 | AE37: 4440 | AF37: 4524 | AG37: 4501 | AH37: 3921 | AI37: 1865 | AJ37: 1791 | AK37: 1816 | AL37: 1480
B38: Property, plant and equipment | C38: 6100 | D38: 6039 | E38: 5986 | F38: 5816 | G38: 5780 | H38: 5774 | I38: 5775 | J38: 5797 | K38: 6690 | L38: 6515 | M38: 6569 | N38: 6703 | O38: 6686 | P38: 6651 | Q38: 6642 | R38: 6723 | S38: 6720 | T38: 6693 | U38: 6691 | V38: 6762 | W38: 6740 | X38: 6765 | Y38: 6875 | Z38: 6944 | AA38: 6912 | AB38: 6896 | AC38: 6886 | AD38: 6954 | AE38: 6932 | AF38: 6749 | AG38: 6802 | AH38: 6984 | AI38: 14816 | AJ38: 14876 | AK38: 15017 | AL38: 15319
B39: Intangible assets | C39: 454 | D39: 460 | E39: 461 | F39: 453 | G39: 450 | H39: 453 | I39: 462 | J39: 476 | K39: 484 | L39: 494 | M39: 501 | N39: 520 | O39: 527 | P39: 547 | Q39: 331 | R39: 358 | S39: 438 | T39: 527 | U39: 585 | V39: 453 | W39: 638 | X39: 1055 | Y39: 1238 | Z39: 894 | AA39: 958 | AB39: 1311 | AC39: 889 | AD39: 1111 | AE39: 1384 | AF39: 1221 | AG39: 1219 | AH39: 1447 | AI39: 5291 | AJ39: 5182 | AK39: 5209 | AL39: 4256
B41: LIABILITIES + EQUITY
B42: (millions) | C42: =C44+C67+C79 -> 27619 | D42: 31241 | E42: 31398 | F42: 23762 | G42: 23372 | H42: 23634 | I42: 23833 | J42: 25345 | K42: 26669 | L42: 24771 | M42: 26685 | N42: 25866 | O42: 28823 | P42: 27669 | Q42: 27763 | R42: 28327 | S42: 29259 | T42: 28564 | U42: 29562 | V42: 33884 | W42: 36852 | X42: 39526 | Y42: 39525 | Z42: =Z44+Z67+Z79 -> 41110 | AA42: =AA44+AA67+AA79 -> 40229 | AB42: =AB44+AB67+AB79 -> 39590 | AC42: =AC44+AC67+AC79 -> 40978 | AD42: =AD44+AD67+AD79 -> 43481 | AE42: =AE44+AE67+AE79 -> 43158 | AF42: 44303 | AG42: 47532 | AH42: 49000 | AI42: 62234 | AJ42: =AJ44+AJ67+AJ79 -> 59651 | AK42: =AK44+AK67+AK79 -> 60987 | AL42: =AL44+AL67+AL79 -> 60963
B44: Current | C44: 11937 | D44: 5592 | E44: 5629 | F44: 4413 | G44: =SUM(G45:G65) -> 4330 | H44: =SUM(H45:H65) -> 4606 | I44: =SUM(I45:I65) -> 3967 | J44: 4561 | K44: =SUM(K45:K65) -> 4651 | L44: =SUM(L45:L65) -> 8633 | M44: =SUM(M45:M65) -> 9131 | N44: 8599 | O44: 8162 | P44: 6080 | Q44: 6128 | R44: 6942 | S44: 4700 | T44: 5570 | U44: 6095 | V44: 7339 | W44: =SUM(W45:W65) -> 8829 | X44: 9677 | Y44: 9334 | Z44: 9624 | AA44: 8379 | AB44: 7705 | AC44: 9628 | AD44: 9996 | AE44: =SUM(AE45:AE65) -> 10490 | AF44: 9952 | AG44: 9796 | AH44: 8514 | AI44: 13374 | AJ44: =SUM(AJ45:AJ65) -> 11506 | AK44: =SUM(AK45:AK65) -> 11654 | AL44: =SUM(AL45:AL65) -> 11771
B45: Trade accounts payable | C45: 3168 | D45: 3047 | E45: 2650 | F45: 2682 | G45: 2318 | H45: 2095 | I45: 2229 | J45: 2219 | K45: 2103 | L45: 2092 | M45: 1847 | N45: 2307 | O45: 1549 | P45: 1313 | Q45: 1764 | R45: 2196 | S45: 1551 | T45: 2394 | U45: 3020 | V45: 3310 | W45: 3926 | X45: 5080 | Y45: 3452 | Z45: 5134 | AA45: 4196 | AB45: 3338 | AC45: 4107 | AD45: 4496 | AE45: 4354 | AF45: 3104 | AG45: 2544 | AH45: 2432 | AI45: 2919 | AJ45: 2840 | AK45: 4639 | AL45: 5013
B46: Financing of product supply | C46: 0 | D46: 0 | E46: 0 | F46: 0 | G46: 0 | H46: 0 | I46: 0 | J46: 0 | K46: 0 | L46: 0 | M46: 0 | N46: 0 | O46: 0 | P46: 0 | Q46: 0 | R46: 0 | S46: 0 | T46: 0 | U46: 0 | V46: 529 | W46: 0 | X46: 0 | Y46: 1568 | Z46: 0 | AA46: 588 | AB46: 0 | AC46: 0 | AD46: 0 | AE46: 0 | AF46: 0 | AG46: 0 | AH46: 0 | AI46: 267 | AJ46: 277 | AK46: 0 | AL46: 0
B47: Loans and financing | C47: 295 | D47: 644 | E47: 805 | F47: 185 | G47: 257 | H47: 178 | I47: 261 | J47: 210 | K47: 265 | L47: 3736 | M47: 3808 | N47: 4254 | O47: 4747 | P47: 2629 | Q47: 2603 | R47: 2082 | S47: 715 | T47: 657 | U47: 1215 | V47: 1339 | W47: 1404 | X47: 1829 | Y47: 1523 | Z47: 1674 | AA47: 1270 | AB47: 1365 | AC47: 1493 | AD47: 1349 | AE47: 2831 | AF47: 3902 | AG47: 2758 | AH47: 2695 | AI47: 3462 | AJ47: 3130 | AK47: 2242 | AL47: 1132
B48: Loans transactions with holding shareholder | C48: 6596 | D48: 0 | E48: 0 | F48: 0 | G48: 0 | H48: 0 | I48: 0 | J48: 0 | K48: 0 | L48: 0 | M48: 0 | N48: 0 | O48: 0 | P48: 0 | Q48: 0 | R48: 0 | S48: 0 | T48: 0 | U48: 0 | V48: 0 | W48: 0 | X48: 0 | Y48: 0 | Z48: 0 | AA48: 0 | AB48: 0 | AC48: 0 | AD48: 0 | AE48: 0 | AF48: 0 | AG48: 0 | AH48: 0 | AI48: 0 | AJ48: 0 | AK48: 0 | AL48: 0
B49: Cession of credit rights | C49: 404 | D49: 24 | E49: 31 | F49: 26 | G49: 13 | H49: 104 | I49: 244 | J49: 31 | K49: 18 | L49: 8 | M49: 0 | N49: 0 | O49: 0 | P49: 0 | Q49: 0 | R49: 0 | S49: 0 | T49: 0 | U49: 0 | V49: 0 | W49: 0 | X49: 0 | Y49: 0 | Z49: 0 | AA49: 0 | AB49: 0 | AC49: 0 | AD49: 0 | AE49: 0 | AF49: 0 | AG49: 0 | AH49: 0 | AI49: 0 | AJ49: 0 | AK49: 0 | AL49: 0
B50: Leases | C50: 42 | D50: 48 | E50: 28 | F50: 29 | G50: 29 | H50: 31 | I50: 30 | J50: 29 | K50: 114 | L50: 111 | M50: 83 | N50: 87 | O50: 77 | P50: 103 | Q50: 110 | R50: 115 | S50: 125 | T50: 131 | U50: 127 | V50: 118 | W50: 119 | X50: 110 | Y50: 125 | Z50: 128 | AA50: 124 | AB50: 117 | AC50: 115 | AD50: 121 | AE50: 120 | AF50: 82 | AG50: 77 | AH50: 80 | AI50: 98 | AJ50: 99 | AK50: 75 | AL50: 103
B51: Customer advances | C51: 342 | D51: 424 | E51: 354 | F51: 363 | G51: 332 | H51: 304 | I51: 311 | J51: 299 | K51: 263 | L51: 267 | M51: 301 | N51: 285 | O51: 429 | P51: 409 | Q51: 552 | R51: 666 | S51: 592 | T51: 616 | U51: 674 | V51: 613 | W51: 593 | X51: 765 | Y51: 504 | Z51: 546 | AA51: 479 | AB51: 820 | AC51: 1375 | AD51: 511 | AE51: 540 | AF51: 511 | AG51: 690 | AH51: 409 | AI51: 555 | AJ51: 420 | AK51: 426 | AL51: 486
B52: Income and social contribution taxes | C52: 0 | D52: 0 | E52: 1 | F52: 1 | G52: 1 | H52: 1 | I52: 0 | J52: 45 | K52: 128 | L52: 1 | M52: 626 | N52: 1 | O52: 3 | P52: 166 | Q52: 65 | R52: 0 | S52: 419 | T52: 262 | U52: 4 | V52: 391 | W52: 140 | X52: 427 | Y52: 8 | Z52: 55 | AA52: 4 | AB52: 239 | AC52: 448 | AD52: 1034 | AE52: 421 | AF52: 27 | AG52: 1518 | AH52: 187 | AI52: 76 | AJ52: 62 | AK52: 193 | AL52: 315
B53: Taxes and contributions payable | C53: 337 | D53: 249 | E53: 204 | F53: 277 | G53: 259 | H53: 288 | I53: 265 | J53: 300 | K53: 260 | L53: 295 | M53: 264 | N53: 315 | O53: 204 | P53: 284 | Q53: 340 | R53: 355 | S53: 300 | T53: 190 | U53: 279 | V53: 230 | W53: 238 | X53: 266 | Y53: 191 | Z53: 176 | AA53: 238 | AB53: 123 | AC53: 152 | AD53: 208 | AE53: 194 | AF53: 238 | AG53: 172 | AH53: 137 | AI53: 206 | AJ53: 200 | AK53: 168 | AL53: 251
B54: Dividends and interest on shareholders equity payable | C54: 267 | D54: 616 | E54: 635 | F54: 273 | G54: 574 | H54: 1031 | I54: 0 | J54: 758 | K54: 771 | L54: 1514 | M54: 1538 | N54: 525 | O54: 531 | P54: 536 | Q54: 0 | R54: 942 | S54: 501 | T54: 717 | U54: 1 | V54: 132 | W54: 132 | X54: 0 | Y54: 359 | Z54: 401 | AA54: 0 | AB54: 0 | AC54: 441 | AD54: 1124 | AE54: 683 | AF54: 1154 | AG54: 1057 | AH54: 1512 | AI54: 1355 | AJ54: 1149 | AK54: 883 | AL54: 1111
B55: Payroll, vacations, charges, bonuses and incentives | C55: 190 | D55: 216 | E55: 246 | F55: 193 | G55: 224 | H55: 263 | I55: 326 | J55: 290 | K55: 213 | L55: 281 | M55: 270 | N55: 309 | O55: 193 | P55: 211 | Q55: 218 | R55: 233 | S55: 154 | T55: 171 | U55: 185 | V55: 222 | W55: 181 | X55: 207 | Y55: 234 | Z55: 220 | AA55: 260 | AB55: 203 | AC55: 240 | AD55: 302 | AE55: 216 | AF55: 245 | AG55: 291 | AH55: 340 | AI55: 293 | AJ55: 378 | AK55: 399 | AL55: 415
B56: Awards by performance | C56: 0 | D56: 0 | E56: 0 | F56: 0 | G56: 0 | H56: 0 | I56: 0 | J56: 0 | K56: 54 | L56: 30 | M56: 41 | N56: 0 | O56: 0 | P56: 0 | Q56: 0 | R56: 0 | S56: 0 | T56: 0 | U56: 0 | V56: 0 | W56: 0 | X56: 0 | Y56: 0 | Z56: 0 | AA56: 0 | AB56: 0 | AC56: 0 | AD56: 0 | AE56: 0 | AF56: 0 | AG56: 0 | AH56: 0 | AI56: 0 | AJ56: 0 | AK56: 0 | AL56: 0
B57: Voluntary departures incentive Plan | C57: 9 | D57: 96 | E57: 445 | F57: 8 | G57: 30 | H57: 8 | I57: 8 | J57: 83 | K57: 69 | L57: 14 | M57: 9 | N57: 2 | O57: 1 | P57: 0 | Q57: 0 | R57: 0 | S57: 0 | T57: 0 | U57: 0 | V57: 0 | W57: 0 | X57: 0 | Y57: 0 | Z57: 0 | AA57: 0 | AB57: 0 | AC57: 0 | AD57: 0 | AE57: 0 | AF57: 0 | AG57: 0 | AH57: 0 | AI57: 0 | AJ57: 0 | AK57: 0 | AL57: 0
B58: Profit Share Program | C58: 61 | D58: 0 | E58: 0 | F58: 26 | G58: 0 | H58: 0 | I58: 0 | J58: 0 | K58: 80 | L58: 0 | M58: 0 | N58: 0 | O58: 0 | P58: 0 | Q58: 0 | R58: 0 | S58: 0 | T58: 0 | U58: 0 | V58: 0 | W58: 0 | X58: 0 | Y58: 0 | Z58: 0 | AA58: 0 | AB58: 0 | AC58: 0 | AD58: 0 | AE58: 0 | AF58: 0 | AG58: 0 | AH58: 0 | AI58: 0 | AJ58: 0 | AK58: 0 | AL58: 0
B59: Redundancy program and restructuring | C59: 0 | D59: 0 | E59: 0 | F59: 0 | G59: 0 | H59: 0 | I59: 0 | J59: 0 | K59: 0 | L59: 0 | M59: 0 | N59: 115 | O59: 9 | P59: 3 | Q59: 1 | R59: 1 | S59: 0 | T59: 0 | U59: 0 | V59: 0 | W59: 0 | X59: 0 | Y59: 0 | Z59: 0 | AA59: 0 | AB59: 0 | AC59: 0 | AD59: 0 | AE59: 0 | AF59: 0 | AG59: 0 | AH59: 0 | AI59: 0 | AJ59: 0 | AK59: 0 | AL59: 0
B60: Obligations for acquisitions of equity interests | C60: 0 | D60: 0 | E60: 0 | F60: 0 | G60: 0 | H60: 0 | I60: 0 | J60: 0 | K60: 0 | L60: 0 | M60: 0 | N60: 0 | O60: 0 | P60: 0 | Q60: 0 | R60: 0 | S60: 0 | T60: 0 | U60: 0 | V60: 0 | W60: 1194 | X60: 0 | Y60: 0 | Z60: 0 | AA60: 0 | AB60: 0 | AC60: 0 | AD60: 0 | AE60: 0 | AF60: 0 | AG60: 0 | AH60: 0 | AI60: 0 | AJ60: 0 | AK60: 0 | AL60: 0
B61: Pension and health plan | C61: 83 | D61: 113 | E61: 139 | F61: 134 | G61: 140 | H61: 134 | I61: 140 | J61: 154 | K61: 158 | L61: 129 | M61: 128 | N61: 192 | O61: 192 | P61: 210 | Q61: 219 | R61: 102 | S61: 102 | T61: 102 | U61: 102 | V61: 108 | W61: 105 | X61: 105 | Y61: 69 | Z61: 153 | AA61: 141 | AB61: 106 | AC61: 107 | AD61: 155 | AE61: 155 | AF61: 127 | AG61: 124 | AH61: 145 | AI61: 131 | AJ61: 131 | AK61: 131 | AL61: 153
B62: Derivative financial instruments | C62: 0 | D62: 0 | E62: 0 | F62: 0 | G62: 0 | H62: 0 | I62: 0 | J62: 0 | K62: 0 | L62: 0 | M62: 0 | N62: 41 | O62: 45 | P62: 35 | Q62: 11 | R62: 81 | S62: 30 | T62: 23 | U62: 38 | V62: 31 | W62: 50 | X62: 36 | Y62: 64 | Z62: 164 | AA62: 70 | AB62: 26 | AC62: 32 | AD62: 4 | AE62: 14 | AF62: 46 | AG62: 29 | AH62: 53 | AI62: 3534 | AJ62: 2258 | AK62: 1945 | AL62: 2376
B63: Provision for decarbonization credits | C63: 0 | D63: 0 | E63: 0 | F63: 0 | G63: 0 | H63: 0 | I63: 0 | J63: 0 | K63: 0 | L63: 0 | M63: 0 | N63: 0 | O63: 0 | P63: 0 | Q63: 111 | R63: 0 | S63: 50 | T63: 100 | U63: 159 | V63: 0 | W63: 206 | X63: 527 | Y63: 838 | Z63: 596 | AA63: 658 | AB63: 1014 | AC63: 460 | AD63: 48 | AE63: 255 | AF63: 70 | AG63: 29 | AH63: 0 | AI63: 0 | AJ63: 0 | AK63: 0 | AL63: 36
B64: Creditors by acquisition of equity interests | C64: 0 | D64: 0 | E64: 0 | F64: 0 | G64: 0 | H64: 0 | I64: 0 | J64: 0 | K64: 0 | L64: 0 | M64: 0 | N64: 0 | O64: 0 | P64: 0 | Q64: 0 | R64: 0 | S64: 0 | T64: 0 | U64: 0 | V64: 21 | W64: 0 | X64: 0 | Y64: 49 | Z64: 63 | AA64: 63 | AB64: 55 | AC64: 55 | AD64: 182 | AE64: 182 | AF64: 175 | AG64: 169 | AH64: 145 | AI64: 121 | AJ64: 50 | AK64: 70 | AL64: 72
B65: Other accounts and expenses payable | C65: 143 | D65: 115 | E65: 91 | F65: 216 | G65: 153 | H65: 169 | I65: 153 | J65: 143 | K65: 155 | L65: 155 | M65: 216 | N65: 166 | O65: 182 | P65: 181 | Q65: 134 | R65: 169 | S65: 161 | T65: 207 | U65: 291 | V65: 295 | W65: 541 | X65: 325 | Y65: 350 | Z65: 314 | AA65: 288 | AB65: 299 | AC65: 603 | AD65: 462 | AE65: 525 | AF65: 271 | AG65: 338 | AH65: 379 | AI65: 357 | AJ65: 512 | AK65: 483 | AL65: 308
B67: Noncurrent | C67: 3561 | D67: 15724 | E67: 18359 | F67: 10523 | G67: =SUM(G68:G77) -> 10532 | H67: =SUM(H68:H77) -> 10688 | I67: =SUM(I68:I77) -> 10448 | J67: 11098 | K67: =SUM(K68:K77) -> 11855 | L67: =SUM(L68:L77) -> 7872 | M67: =SUM(M68:M77) -> 7952 | N67: 8501 | O67: 11661 | P67: 11776 | Q67: 12020 | R67: 9178 | S67: 11859 | T67: 11219 | U67: 12180 | V67: 14237 | W67: =SUM(W68:W77) -> 15441 | X67: 16782 | Y67: 17555 | Z67: 18873 | AA67: 19155 | AB67: 19067 | AC67: 17795 | AD67: 17754 | AE67: =SUM(AE68:AE77) -> 16112 | AF67: 17813 | AG67: 17312 | AH67: 20101 | AI67: 27856 | AJ67: =SUM(AJ68:AJ77) -> 27132 | AK67: =SUM(AK68:AK77) -> 27995 | AL67: =SUM(AL68:AL77) -> 28451
B68: Loans and financing | C68: 1072 | D68: 12250 | E68: 12009 | F68: 4455 | G68: 4328 | H68: 4343 | I68: 5291 | J68: 5314 | K68: 5169 | L68: 1676 | M68: 1681 | N68: 1703 | O68: 4784 | P68: 5795 | Q68: 5909 | R68: 5675 | S68: 8299 | T68: 7642 | U68: 8715 | V68: 11670 | W68: 11678 | X68: 13124 | Y68: 13735 | Z68: 14883 | AA68: 15181 | AB68: 14741 | AC68: 13736 | AD68: 13421 | AE68: 12071 | AF68: 14431 | AG68: 13966 | AH68: 17754 | AI68: 22222 | AJ68: 21580 | AK68: 22017 | AL68: 21233
B69: Leases | C69: 97 | D69: 81 | E69: 67 | F69: 43 | G69: 44 | H69: 43 | I69: 43 | J69: 19 | K69: 809 | L69: 632 | M69: 648 | N69: 731 | O69: 733 | P69: 693 | Q69: 669 | R69: 681 | S69: 709 | T69: 698 | U69: 731 | V69: 706 | W69: 699 | X69: 712 | Y69: 734 | Z69: 706 | AA69: 693 | AB69: 675 | AC69: 659 | AD69: 627 | AE69: 625 | AF69: 291 | AG69: 285 | AH69: 279 | AI69: 568 | AJ69: 610 | AK69: 661 | AL69: 748
B70: Incentivo de longo prazo | C70: 0 | D70: 0 | E70: 0 | F70: 0 | G70: 0 | H70: 0 | I70: 0 | J70: 0 | K70: 0 | L70: 0 | M70: 0 | N70: 0 | O70: 0 | P70: 0 | Q70: 0 | R70: 0 | S70: 0 | T70: 0 | U70: 0 | V70: 0 | W70: 0 | X70: 0 | Y70: 0 | Z70: 0 | AA70: 0 | AB70: 0 | AC70: 0 | AD70: 0 | AE70: 0 | AF70: 0 | AG70: 0 | AH70: 0 | AI70: 31 | AJ70: 39 | AK70: 52 | AL70: 76
B71: Pension and health plan | C71: 2001 | D71: 2262 | E71: 4172 | F71: 3932 | G71: 3997 | H71: 4059 | I71: 4120 | J71: 4755 | K71: 4831 | L71: 4498 | M71: 4563 | N71: 5019 | O71: 5085 | P71: 4309 | Q71: 4334 | R71: 1768 | S71: 1765 | T71: 1736 | U71: 1729 | V71: 751 | W71: 674 | X71: 664 | Y71: 745 | Z71: 828 | AA71: 794 | AB71: 780 | AC71: 771 | AD71: 1251 | AE71: 1210 | AF71: 1193 | AG71: 1186 | AH71: 757 | AI71: 726 | AJ71: 705 | AK71: 691 | AL71: 1267
B72: Derivative financial instrument | C72: 0 | D72: 0 | E72: 0 | F72: 0 | G72: 0 | H72: 0 | I72: 0 | J72: 0 | K72: 0 | L72: 0 | M72: 0 | N72: 0 | O72: 0 | P72: 0 | Q72: 0 | R72: 0 | S72: 0 | T72: 202 | U72: 46 | V72: 41 | W72: 677 | X72: 558 | Y72: 535 | Z72: 664 | AA72: 680 | AB72: 1043 | AC72: 761 | AD72: 810 | AE72: 651 | AF72: 304 | AG72: 246 | AH72: 65 | AI72: 2601 | AJ72: 2556 | AK72: 2885 | AL72: 3470
B73: Outros impostos diferido | C73: 0 | D73: 0 | E73: 0 | F73: 0 | G73: 0 | H73: 0 | I73: 0 | J73: 0 | K73: 0 | L73: 0 | M73: 0 | N73: 0 | O73: 0 | P73: 0 | Q73: 0 | R73: 0 | S73: 0 | T73: 0 | U73: 0 | V73: 0 | W73: 0 | X73: 0 | Y73: 0 | Z73: 0 | AA73: 0 | AB73: 0 | AC73: 0 | AD73: 0 | AE73: 0 | AF73: 0 | AG73: 0 | AH73: 0 | AI73: 51 | AJ73: 43 | AK73: 36 | AL73: 9
B74: Imposto de renda e contribuição social diferidos | C74: 0 | D74: 0 | E74: 0 | F74: 0 | G74: 0 | H74: 0 | I74: 0 | J74: 0 | K74: 0 | L74: 0 | M74: 0 | N74: 0 | O74: 0 | P74: 0 | Q74: 0 | R74: 0 | S74: 0 | T74: 0 | U74: 0 | V74: 0 | W74: 0 | X74: 0 | Y74: 0 | Z74: 0 | AA74: 0 | AB74: 0 | AC74: 0 | AD74: 0 | AE74: 0 | AF74: 0 | AG74: 0 | AH74: 0 | AI74: 234 | AJ74: 237 | AK74: 238 | AL74: 209
B75: Provision for judicial and administrative proceedings | C75: 357 | D75: 1105 | E75: 2090 | F75: 2079 | G75: 2151 | H75: 2232 | I75: 984 | J75: 1001 | K75: 1037 | L75: 1057 | M75: 1051 | N75: 1040 | O75: 1051 | P75: 970 | Q75: 964 | R75: 899 | S75: 918 | T75: 834 | U75: 852 | V75: 988 | W75: 962 | X75: 944 | Y75: 906 | Z75: 919 | AA75: 936 | AB75: 954 | AC75: 994 | AD75: 1135 | AE75: 1053 | AF75: 1088 | AG75: 1122 | AH75: 1135 | AI75: 1172 | AJ75: 1188 | AK75: 1233 | AL75: 1250
B76: Creditors for acquisition of equity interests | C76: 0 | D76: 0 | E76: 0 | F76: 0 | G76: 0 | H76: 0 | I76: 0 | J76: 0 | K76: 0 | L76: 0 | M76: 0 | N76: 0 | O76: 0 | P76: 0 | Q76: 0 | R76: 0 | S76: 0 | T76: 0 | U76: 0 | V76: 0 | W76: 0 | X76: 492 | Y76: 631 | Z76: 623 | AA76: 623 | AB76: 623 | AC76: 623 | AD76: 485 | AE76: 480 | AF76: 480 | AG76: 480 | AH76: 89 | AI76: 98 | AJ76: 11 | AK76: 12 | AL76: 10
B77: Other accounts and expenses payable | C77: 34 | D77: 26 | E77: 21 | F77: 14 | G77: 12 | H77: 11 | I77: 10 | J77: 9 | K77: 9 | L77: 9 | M77: 9 | N77: 8 | O77: 8 | P77: 9 | Q77: 144 | R77: 155 | S77: 168 | T77: 107 | U77: 107 | V77: 81 | W77: 751 | X77: 288 | Y77: 269 | Z77: 250 | AA77: 248 | AB77: 251 | AC77: 251 | AD77: 25 | AE77: 22 | AF77: 26 | AG77: 27 | AH77: 22 | AI77: 153 | AJ77: 163 | AK77: 170 | AL77: 179
B79: Equity | C79: 12121 | D79: 9925 | E79: 7410 | F79: 8826 | G79: =SUM(G80:G84) -> 8510 | H79: =SUM(H80:H84) -> 8340 | I79: =SUM(I80:I84) -> 9418 | J79: 9686 | K79: =SUM(K80:K84) -> 10163 | L79: =SUM(L80:L84) -> 8266 | M79: =SUM(M80:M84) -> 9602 | N79: 8766 | O79: 9000 | P79: 9813 | Q79: 9615 | R79: 12207 | S79: 12700 | T79: 11775 | U79: 11287 | V79: 12308 | W79: =SUM(W80:W84) -> 12582 | X79: 13067 | Y79: 12636 | Z79: 12613 | AA79: 12695 | AB79: 12818 | AC79: 13555 | AD79: 15731 | AE79: 16556 | AF79: 16538 | AG79: 20424 | AH79: 20385 | AI79: =SUM(AI80:AI85) -> 21004 | AJ79: =SUM(AJ80:AJ85) -> 21013 | AK79: =SUM(AK80:AK85) -> 21338 | AL79: =SUM(AL80:AL85) -> 20741
B80: Paid-in capital | C80: 5991 | D80: 6352 | E80: 6352 | F80: 6352 | G80: 6352 | H80: 6353 | I80: 6353 | J80: 6353 | K80: 6353 | L80: 6353 | M80: 6353 | N80: 6353 | O80: 6353 | P80: 6353 | Q80: 6353 | R80: 6353 | S80: 6353 | T80: 6353 | U80: 6353 | V80: 6353 | W80: 6353 | X80: 7579 | Y80: 7579 | Z80: 7579 | AA80: 7579 | AB80: 7579 | AC80: 7579 | AD80: 7579 | AE80: 7579 | AF80: 10034 | AG80: 10034 | AH80: 10034 | AI80: 10034 | AJ80: 11251 | AK80: 11251 | AL80: 12051
B81: Treasury stock | C81: 0 | D81: 0 | E81: 0 | F81: 0 | G81: 0 | H81: 0 | I81: 0 | J81: 0 | K81: 0 | L81: 0 | M81: 0 | N81: 0 | O81: 0 | P81: 0 | Q81: 0 | R81: 0 | S81: 0 | T81: 0 | U81: -704 | V81: -918 | W81: -952 | X81: -1152 | Y81: -1152 | Z81: -1152 | AA81: -1152 | AB81: -1152 | AC81: -1152 | AD81: -1150 | AE81: -1150 | AF81: -84 | AG81: -105 | AH81: -105 | AI81: -105 | AJ81: -127 | AK81: -125 | AL81: -122
B82: Capital reserves | C82: 0 | D82: 0 | E82: 0 | F82: 0 | G82: 0 | H82: 0 | I82: 0 | J82: 0 | K82: 0 | L82: 0 | M82: 0 | N82: 0 | O82: 0 | P82: 0 | Q82: 1 | R82: 4 | S82: 5 | T82: 6 | U82: 13 | V82: 17 | W82: 21 | X82: 24 | Y82: 28 | Z82: 40 | AA82: 46 | AB82: 49 | AC82: 45 | AD82: 59 | AE82: 87 | AF82: 86 | AG82: 89 | AH82: 92 | AI82: 24 | AJ82: 126 | AK82: 115 | AL82: 139
B83: Revenue reserves | C83: 6559 | D83: 4107 | E83: 3045 | F83: 3897 | G83: 3581 | H83: 3410 | I83: 4488 | J83: 5259 | K83: 5736 | L83: 3839 | M83: 5175 | N83: 4681 | O83: 4915 | P83: 5103 | Q83: 4904 | R83: 7055 | S83: 7547 | T83: 6621 | U83: 6830 | V83: 7580 | W83: 7905 | X83: 7386 | Y83: 6936 | Z83: 7067 | AA83: 7148 | AB83: 7281 | AC83: 8058 | AD83: 10633 | AE83: 11422 | AF83: 7851 | AG83: 11790 | AH83: 11479 | AI83: 11744 | AJ83: 10795 | AK83: 11207 | AL83: 10233
B84: Asset and liability valuation adjustments | C84: -429 | D84: -534 | E84: -1987 | F84: -1423 | G84: -1423 | H84: -1423 | I84: -1423 | J84: -1926 | K84: -1926 | L84: -1926 | M84: -1926 | N84: -2268 | O84: -2268 | P84: -1643 | Q84: -1643 | R84: -1205 | S84: -1205 | T84: -1205 | U84: -1205 | V84: -724 | W84: -745 | X84: -770 | Y84: -755 | Z84: -921 | AA84: -926 | AB84: -939 | AC84: -975 | AD84: -1390 | AE84: -1382 | AF84: -1349 | AG84: -1384 | AH84: -1115 | AI84: -1140 | AJ84: -1196 | AK84: -1247 | AL84: -1694
B85: NCI | C85: 0 | D85: 0 | E85: 0 | F85: 0 | G85: 0 | H85: 0 | I85: 0 | J85: 0 | K85: 0 | L85: 0 | M85: 0 | N85: 0 | O85: 0 | P85: 0 | Q85: 0 | R85: 0 | S85: 0 | T85: 0 | U85: 0 | V85: 0 | W85: 0 | X85: 0 | Y85: 0 | Z85: 0 | AA85: 0 | AB85: 0 | AC85: 0 | AD85: 0 | AE85: 0 | AF85: 0 | AG85: 0 | AH85: 0 | AI85: 447 | AJ85: 164 | AK85: 137 | AL85: 134

Sheet 04. Cash Flow
B3: 04. DFC | C3: 2014 | D3: 2015 | E3: 2016 | F3: 2017 | G3: 1Q18 | H3: 2Q18 | I3: 3Q18 | J3: 4Q18 | K3: 1Q19 | L3: 2Q19 | M3: 3Q19 | N3: 4Q19 | O3: 1Q20 | P3: 2Q20 | Q3: 3Q20 | R3: 4Q20 | S3: 1Q21 | T3: 2Q21 | U3: 3Q21 | V3: 4Q21 | W3: 1Q22 | X3: 2Q22 | Y3: 3Q22 | Z3: 4Q22 | AA3: 1Q23 | AB3: 2Q23 | AC3: 3Q23 | AD3: 4Q23 | AE3: 1Q24 | AF3: 2Q24 | AG3: 3Q24 | AH3: 4Q24 | AI3: 1Q25 | AJ3: 2Q25 | AK3: 3Q25 | AL3: 4Q25
B6: VIBRA ENERGIA - Consolidated
B7: (millions)
B9: Cash flows from operating activities
B10: Net income for the year | C10: 1123 | D10: -1161 | E10: -315 | F10: 1151 | G10: 247 | H10: 263 | I10: 1078 | J10: 1605 | K10: 477 | L10: 302 | M10: 1336 | N10: 96 | O10: 234 | P10: 188 | Q10: 335 | R10: 3148 | S10: 492 | T10: 382 | U10: 598 | V10: 1025 | W10: 325 | X10: 707 | Y10: -61 | Z10: 566 | AA10: 81 | AB10: 133 | AC10: 1255 | AD10: 3297 | AE10: 789 | AF10: 867 | AG10: 4201 | AH10: 510 | AI10: ='2. Income Statement'!AI32 -> 601 | AJ10: ='2. Income Statement'!AJ32 -> 292 | AK10: ='2. Income Statement'!AK32 -> 407 | AL10: ='2. Income Statement'!AL32 -> 679
B12: Adjustments to:
B13: Income tax and social contribution | C13: 423 | D13: -774 | E13: -322 | F13: 414 | G13: 163 | H13: 180 | I13: 696 | J13: 577 | K13: 284 | L13: 186 | M13: 718 | N13: -96 | O13: 170 | P13: 144 | Q13: 211 | R13: 400 | S13: 267 | T13: 220 | U13: -147 | V13: 337 | W13: 217 | X13: 358 | Y13: -239 | Z13: 57 | AA13: 66 | AB13: 50 | AC13: 415 | AD13: 1162 | AE13: 435 | AF13: 141 | AG13: 1594 | AH13: 1 | AI13: 262 | AJ13: 179 | AK13: 195 | AL13: -107
B14: Depreciation and amortization | C14: 403 | D14: 471 | E14: 454 | F14: 452 | G14: 106 | H14: 107 | I14: 102 | J14: 102 | K14: 128 | L14: 127 | M14: 127 | N14: 146 | O14: 135 | P14: 136 | Q14: 132 | R14: 134 | S14: 139 | T14: 140 | U14: 144 | V14: 136 | W14: 139 | X14: 135 | Y14: 142 | Z14: 137 | AA14: 138 | AB14: 136 | AC14: 139 | AD14: 141 | AE14: 143 | AF14: 135 | AG14: 140 | AH14: 136 | AI14: 242 | AJ14: 263 | AK14: 269 | AL14: 294
B15: Loss of value of asset recovery - Impairment | C15: 0 | D15: 298 | E15: 0 | F15: 0 | G15: 0 | H15: 0 | I15: 0 | J15: 0 | K15: 0 | L15: 0 | M15: 0 | N15: 0 | O15: 0 | P15: 0 | Q15: 0 | R15: 0 | S15: 0 | T15: 0 | U15: 0 | V15: 0 | W15: 0 | X15: 0 | Y15: 0 | Z15: 0 | AA15: 0 | AB15: 0 | AC15: 0 | AD15: 0 | AE15: 0 | AF15: 0 | AG15: 0 | AH15: 705 | AI15: 0 | AJ15: 0 | AK15: 0 | AL15: 0
B16: Income on the sale / derecognition of assets | C16: -40 | D16: 12 | E16: -1 | F16: 34 | G16: -1 | H16: -9 | I16: -16 | J16: 13 | K16: -6 | L16: -4 | M16: 0 | N16: -7 | O16: -3 | P16: 8 | Q16: 160 | R16: -18 | S16: -54 | T16: -35 | U16: 30 | V16: -39 | W16: -530 | X16: -19 | Y16: -170 | Z16: -284 | AA16: -42 | AB16: -58 | AC16: -641 | AD16: -97 | AE16: -57 | AF16: -108 | AG16: -64 | AH16: -132 | AI16: -33 | AJ16: 355 | AK16: -84 | AL16: -156
B17: Expected credit losses, net of reversal | C17: 1109 | D17: 2919 | E17: 676 | F17: -40 | G17: 1 | H17: 51 | I17: 44 | J17: -54 | K17: 23 | L17: 13 | M17: 11 | N17: 32 | O17: 39 | P17: 67 | Q17: 2 | R17: -29 | S17: 178 | T17: -3 | U17: 69 | V17: 68 | W17: -1 | X17: -1 | Y17: 49 | Z17: 5 | AA17: 14 | AB17: 38 | AC17: 50 | AD17: 0 | AE17: 15 | AF17: -25 | AG17: -16 | AH17: 4 | AI17: 29 | AJ17: -1 | AK17: 17 | AL17: 37
B18: Earnings on material interests | C18: 2 | D18: -3 | E18: 1 | F18: 2 | G18: 1 | H18: 0 | I18: 1 | J18: -1 | K18: -1 | L18: 0 | M18: 0 | N18: -1 | O18: 1 | P18: 1 | Q18: 1 | R18: -12 | S18: -7 | T18: -2 | U18: -76 | V18: -27 | W18: -17 | X18: -14 | Y18: -16 | Z18: 51 | AA18: 2 | AB18: 26 | AC18: 49 | AD18: -41 | AE18: 71 | AF18: -79 | AG18: 30 | AH18: -122 | AI18: -29 | AJ18: 10 | AK18: -44 | AL18: -38
B19: Appropriation / derecognition of early bonuses awarded to customers | C19: 348 | D19: 412 | E19: 542 | F19: 545 | G19: 121 | H19: 136 | I19: 131 | J19: 134 | K19: 124 | L19: 119 | M19: 135 | N19: 141 | O19: 152 | P19: 157 | Q19: 158 | R19: 185 | S19: 194 | T19: 241 | U19: 192 | V19: 188 | W19: 123 | X19: 141 | Y19: 231 | Z19: 172 | AA19: 177 | AB19: 205 | AC19: 180 | AD19: 182 | AE19: 176 | AF19: 184 | AG19: 172 | AH19: 164 | AI19: 171 | AJ19: 146 | AK19: 142 | AL19: 152
B20: Appropriation of insurance, rent and other | C20: 52 | D20: 68 | E20: 45 | F20: 95 | G20: 15 | H20: 21 | I20: 24 | J20: 26 | K20: 15 | L20: 15 | M20: 18 | N20: 16 | O20: 14 | P20: 15 | Q20: 15 | R20: 13 | S20: 25 | T20: 27 | U20: 30 | V20: 29 | W20: 28 | X20: 30 | Y20: 30 | Z20: 33 | AA20: 18 | AB20: 21 | AC20: 27 | AD20: 35 | AE20: 23 | AF20: 28 | AG20: 38 | AH20: 34 | AI20: 38 | AJ20: 42 | AK20: 42 | AL20: 39
B21: Interest, exchange rate and monetary variations, net | C21: -215 | D21: 408 | E21: 844 | F21: 409 | G21: 43 | H21: -294 | I21: -420 | J21: -1788 | K21: -249 | L21: -175 | M21: -1551 | N21: 31 | O21: 619 | P21: 200 | Q21: 132 | R21: -558 | S21: 497 | T21: -668 | U21: 572 | V21: -786 | W21: -998 | X21: 1170 | Y21: 446 | Z21: 73 | AA21: 95 | AB21: -89 | AC21: 549 | AD21: -17 | AE21: 443 | AF21: 861 | AG21: -79 | AH21: 1099 | AI21: -19 | AJ21: 214 | AK21: 342 | AL21: 798
B22: Net monetary and exchange variance | C22: 0 | D22: 0 | E22: 0 | F22: 0 | G22: 0 | H22: 0 | I22: 0 | J22: 0 | K22: 0 | L22: 0 | M22: 0 | N22: 0 | O22: -908 | P22: -254 | Q22: -133 | R22: 386 | S22: -143 | T22: 774 | U22: -318 | V22: -43 | W22: 2191 | X22: -500 | Y22: -130 | Z22: 175 | AA22: 184 | AB22: 483 | AC22: 44 | AD22: 136 | AE22: 20 | AF22: -401 | AG22: 25 | AH22: -533 | AI22: 903 | AJ22: 487 | AK22: 509 | AL22: -36
B23: Earnout Reversal – Equity Interest | C23: 0 | D23: 0 | E23: 0 | F23: 0 | G23: 0 | H23: 0 | I23: 0 | J23: 0 | K23: 0 | L23: 0 | M23: 0 | N23: 0 | O23: 0 | P23: 0 | Q23: 0 | R23: 0 | S23: 0 | T23: 0 | U23: 0 | V23: 0 | W23: 0 | X23: 0 | Y23: 0 | Z23: 0 | AA23: 0 | AB23: 0 | AC23: 0 | AD23: 0 | AE23: 0 | AF23: 0 | AG23: 0 | AH23: 0 | AI23: 0 | AJ23: -157 | AK23: - | AL23: 0
B24: Profit or loss fair value, financial instruments | C24: 0 | D24: 0 | E24: 0 | F24: 0 | G24: 0 | H24: 0 | I24: 0 | J24: 0 | K24: 0 | L24: 0 | M24: 0 | N24: 0 | O24: 0 | P24: 0 | Q24: 0 | R24: 0 | S24: 0 | T24: 0 | U24: 0 | V24: 0 | W24: 0 | X24: 0 | Y24: 0 | Z24: 0 | AA24: 0 | AB24: 0 | AC24: 0 | AD24: 0 | AE24: 0 | AF24: 0 | AG24: 0 | AH24: -486 | AI24: 0 | AJ24: 0 | AK24: 0 | AL24: 55
B25: Expenses on pension and health plans | C25: 214 | D25: 317 | E25: 382 | F25: 503 | G25: 109 | H25: 110 | I25: 109 | J25: 110 | K25: 120 | L25: 121 | M25: 119 | N25: 121 | O25: 110 | P25: 126 | Q25: 91 | R25: -2038 | S25: 39 | T25: 40 | U25: 39 | V25: -140 | W25: 29 | X25: 27 | Y25: 162 | Z25: 25 | AA25: 28 | AB25: 28 | AC25: 27 | AD25: 28 | AE25: 33 | AF25: 32 | AG25: 32 | AH25: 32 | AI25: 27 | AJ25: 25 | AK25: 25 | AL25: 24
B26: Provision for judicial and administrative proceedings, net of reversal | C26: 78 | D26: 747 | E26: 985 | F26: -11 | G26: 72 | H26: 95 | I26: -1262 | J26: 17 | K26: 36 | L26: 50 | M26: 9 | N26: 14 | O26: 26 | P26: -68 | Q26: 16 | R26: -23 | S26: 32 | T26: -54 | U26: 44 | V26: 904 | W26: 92 | X26: -6 | Y26: 58 | Z26: 37 | AA26: 28 | AB26: 35 | AC26: 60 | AD26: 160 | AE26: -28 | AF26: 51 | AG26: 56 | AH26: 49 | AI26: 58 | AJ26: 69 | AK26: 111 | AL26: 109
B27: Provision for incentive to voluntary shutdown | C27: 158 | D27: 92 | E27: 434 | F27: -144 | G27: 22 | H27: -6 | I27: 0 | J27: 76 | K27: -3 | L27: -13 | M27: -3 | N27: -2 | O27: 0 | P27: 0 | Q27: 0 | R27: 0 | S27: 0 | T27: 0 | U27: 0 | V27: 0 | W27: 0 | X27: 0 | Y27: 0 | Z27: 0 | AA27: 0 | AB27: 0 | AC27: 0 | AD27: 0 | AE27: 0 | AF27: 0 | AG27: 0 | AH27: 0 | AI27: 0 | AJ27: 0 | AK27: - | AL27: 0
B28: Provision Discount due to salary renegotiation | C28: 0 | D28: 0 | E28: 0 | F28: 0 | G28: 0 | H28: 0 | I28: 0 | J28: 0 | K28: 0 | L28: 0 | M28: 0 | N28: 0 | O28: 12 | P28: 13 | Q28: 8 | R28: 30 | S28: 0 | T28: 0 | U28: -8 | V28: 0 | W28: 0 | X28: 0 | Y28: 0 | Z28: 0 | AA28: 0 | AB28: 0 | AC28: 0 | AD28: 0 | AE28: 0 | AF28: 0 | AG28: 0 | AH28: 0 | AI28: 0 | AJ28: 0 | AL28: 0
B29: Provision for out-of-court settlements | C29: 0 | D29: 0 | E29: 0 | F29: 0 | G29: 0 | H29: 0 | I29: 0 | J29: 0 | K29: 0 | L29: 0 | M29: 0 | N29: 0 | O29: 0 | P29: 0 | Q29: 0 | R29: 0 | S29: 0 | T29: 0 | U29: 0 | V29: 0 | W29: 0 | X29: 0 | Y29: 0 | Z29: 0 | AA29: 0 | AB29: 0 | AC29: 360 | AD29: 0 | AE29: 0 | AF29: 0 | AG29: 0 | AH29: 0 | AI29: 0 | AJ29: 0 | AL29: 0
B30: Reversal of Loss on Asset Recoverable Value – Impairment | C30: 0 | D30: 0 | E30: 0 | F30: 0 | G30: 0 | H30: 0 | I30: 0 | J30: 0 | K30: 0 | L30: 0 | M30: 0 | N30: 0 | O30: 0 | P30: 0 | Q30: 0 | R30: 0 | S30: 0 | T30: 0 | U30: 0 | V30: 0 | W30: 0 | X30: 0 | Y30: 0 | Z30: 0 | AA30: 0 | AB30: 0 | AC30: 0 | AD30: 0 | AE30: 0 | AF30: 0 | AG30: 0 | AH30: 0 | AI30: 0 | AJ30: -362 | AL30: 833
B31: Provision for decarbonization credits (CBIOS) | C31: 0 | D31: 0 | E31: 0 | F31: 0 | G31: 0 | H31: 0 | I31: 0 | J31: 0 | K31: 0 | L31: 0 | M31: 0 | N31: 0 | O31: 0 | P31: 0 | Q31: 111 | R31: 79 | S31: 50 | T31: 50 | U31: 59 | V31: 81 | W31: 206 | X31: 321 | Y31: 311 | Z31: 212 | AA31: 269 | AB31: 390 | AC31: 301 | AD31: 286 | AE31: 255 | AF31: 212 | AG31: 181 | AH31: 189 | AI31: 145 | AJ31: 142 | AK31: 129 | AL31: 80
B32: Win in lawsuit against the State of Goiás | C32: 0 | D32: 0 | E32: 0 | F32: 0 | G32: 0 | H32: 0 | I32: 0 | J32: 0 | K32: 0 | L32: 0 | M32: 0 | N32: 0 | O32: 0 | P32: 0 | Q32: 0 | R32: 0 | S32: 0 | T32: 0 | U32: 0 | V32: 0 | W32: 0 | X32: 0 | Y32: 0 | Z32: 0 | AA32: 0 | AB32: -120 | AC32: 0 | AD32: 0 | AE32: 0 | AF32: 0 | AG32: 0 | AH32: 0 | AI32: 0 | AJ32: 0 | AL32: 0
B33: Recovery of PIS and Cofins - exclusion of ICMS from the calculation base | C33: 0 | D33: 0 | E33: 0 | F33: 0 | G33: 0 | H33: 0 | I33: 0 | J33: 0 | K33: 0 | L33: 0 | M33: 0 | N33: 0 | O33: 0 | P33: -376 | Q33: -16 | R33: -648 | S33: 0 | T33: 0 | U33: 0 | V33: 0 | W33: 0 | X33: 0 | Y33: 0 | Z33: 0 | AA33: 0 | AB33: 0 | AC33: 0 | AD33: 0 | AE33: 0 | AF33: 0 | AG33: 0 | AH33: 0 | AI33: 0 | AJ33: 0 | AL33: 0
B34: ICMS credits - End of permanent status "Tax Substitution" | C34: 0 | D34: 0 | E34: 0 | F34: 0 | G34: 0 | H34: 0 | I34: 0 | J34: 0 | K34: 0 | L34: 0 | M34: 0 | N34: 0 | O34: 0 | P34: 0 | Q34: 0 | R34: -52 | S34: -128 | T34: -75 | U34: =((-285-S34-T34)*1)*1 -> -82 | V34: -6 | W34: -1 | X34: -25 | Y34: -47 | Z34: 2 | AA34: 0 | AB34: -7 | AC34: -75 | AD34: 0 | AE34: -3 | AF34: -48 | AG34: -1 | AH34: -72 | AI34: 3 | AJ34: -61 | AK34: -14 | AL34: -2
B35: Gain from indemnity concession contract | C35: 0 | D35: 0 | E35: 0 | F35: 0 | G35: 0 | H35: 0 | I35: 0 | J35: 0 | K35: 0 | L35: 0 | M35: 0 | N35: 0 | O35: 0 | P35: 0 | Q35: -117 | R35: 0 | S35: 0 | T35: 0 | U35: 0 | V35: 0 | W35: 0 | X35: 0 | Y35: 0 | Z35: 0 | AA35: 0 | AB35: 0 | AC35: 0 | AD35: 0 | AE35: 0 | AF35: 0 | AG35: 0 | AH35: 0 | AI35: 0 | AJ35: 0 | AL35: 0
B36: Provision for bonuses and incentives | C36: 0 | D36: 0 | E36: 0 | F36: 0 | G36: 0 | H36: 0 | I36: 0 | J36: 0 | K36: 0 | L36: 0 | M36: 0 | N36: 0 | O36: 0 | P36: 0 | Q36: 0 | R36: 0 | S36: 0 | T36: 0 | U36: 0 | V36: 85 | W36: 22 | X36: 21 | Y36: 21 | Z36: 18 | AA36: 30 | AB36: 20 | AC36: 42 | AD36: 90 | AE36: 33 | AF36: 44 | AG36: 38 | AH36: 86 | AI36: 72 | AJ36: 95 | AK36: 23 | AL36: 135
B37: PIS/COFINS Credits - essential operating expenses | C37: 0 | D37: 0 | E37: 0 | F37: 0 | G37: 0 | H37: 0 | I37: 0 | J37: 0 | K37: 0 | L37: 0 | M37: 0 | N37: 0 | O37: 0 | P37: 0 | Q37: 0 | R37: 0 | S37: 0 | T37: 0 | U37: 0 | V37: 0 | W37: 0 | X37: 0 | Y37: 0 | Z37: -672 | AA37: -32 | AB37: -46 | AC37: 0 | AD37: 0 | AE37: 0 | AF37: 0 | AG37: -431 | AH37: 0 | AI37: -398 | AJ37: -186 | AK37: -123 | AL37: -754
B38: Credit PIS overpayment tax-half-yearly | C38: 0 | D38: 0 | E38: 0 | F38: 0 | G38: 0 | H38: 0 | I38: 0 | J38: 0 | K38: 0 | L38: 0 | M38: 0 | N38: 0 | O38: 0 | P38: 0 | Q38: 0 | R38: 0 | S38: 0 | T38: 0 | U38: 0 | V38: 0 | W38: 0 | X38: 0 | Y38: 0 | Z38: 0 | AA38: 0 | AB38: 0 | AC38: 0 | AD38: -828 | AE38: 0 | AF38: 0 | AG38: 0 | AH38: 0 | AI38: 0 | AJ38: 0 | AK38: 0 | AL38: 0
B39: PIS/COFINS credit SL 192 | C39: 0 | D39: 0 | E39: 0 | F39: 0 | G39: 0 | H39: 0 | I39: 0 | J39: 0 | K39: 0 | L39: 0 | M39: 0 | N39: 0 | O39: 0 | P39: 0 | Q39: 0 | R39: 0 | S39: 0 | T39: 0 | U39: 0 | V39: 0 | W39: 0 | X39: 0 | Y39: 0 | Z39: 0 | AA39: 0 | AB39: 0 | AC39: 0 | AD39: -2591 | AE39: -535 | AF39: 0 | AG39: -4075 | AH39: 0 | AI39: 0 | AJ39: 0 | AK39: 0 | AL39: 0
B40: Provision for tax recovery loss | C40: 0 | D40: 0 | E40: 0 | F40: 0 | G40: 0 | H40: 0 | I40: 0 | J40: 0 | K40: 0 | L40: 0 | M40: 0 | N40: 0 | O40: 0 | P40: 0 | Q40: 0 | R40: 0 | S40: 0 | T40: 0 | U40: 0 | V40: 0 | W40: 1 | X40: -11 | Y40: -12 | Z40: -6 | AA40: 2 | AB40: 2 | AC40: -1 | AD40: 99 | AE40: 5 | AF40: -1 | AG40: 0 | AH40: -6 | AI40: 0 | AJ40: 0 | AK40: 0 | AL40: 0
B41: Gain arising from a pre-existing contractual relationship (acquisition of control) | C41: 0 | D41: 0 | E41: 0 | F41: 0 | G41: 0 | H41: 0 | I41: 0 | J41: 0 | K41: 0 | L41: 0 | M41: 0 | N41: 0 | O41: 0 | P41: 0 | Q41: 0 | R41: 0 | S41: 0 | T41: 0 | U41: 0 | V41: 0 | W41: 0 | X41: 0 | Y41: 0 | Z41: 0 | AA41: 0 | AB41: 0 | AC41: 0 | AD41: -31 | AE41: 0 | AF41: 0 | AG41: 0 | AH41: 0 | AI41: 0 | AJ41: 0 | AK41: 0 | AL41: 0
B42: Remeasurement of equity interest (acquisition of control) | C42: 0 | D42: 0 | E42: 0 | F42: 0 | G42: 0 | H42: 0 | I42: 0 | J42: 0 | K42: 0 | L42: 0 | M42: 0 | N42: 0 | O42: 0 | P42: 0 | Q42: 0 | R42: 0 | S42: 0 | T42: 0 | U42: 0 | V42: 0 | W42: 0 | X42: 0 | Y42: 0 | Z42: 0 | AA42: 0 | AB42: 0 | AC42: 0 | AD42: 19 | AE42: 0 | AF42: 0 | AG42: 0 | AH42: 0 | AI42: 0 | AJ42: 0 | AK42: 0 | AL42: 0
B43: Other adjustments | C43: 37 | D43: 3 | E43: 91 | F43: 17 | G43: -65 | H43: 71 | I43: -10 | J43: 9 | K43: -3 | L43: 1 | M43: 5 | N43: -6 | O43: -3 | P43: 3 | Q43: -20 | R43: 34 | S43: 4 | T43: -57 | U43: 104 | V43: 13 | W43: 6 | X43: 20 | Y43: -41 | Z43: -15 | AA43: 40 | AB43: -19 | AC43: -25 | AD43: 0 | AE43: -69 | AF43: -97 | AG43: 75 | AH43: -10 | AI43: 0 | AJ43: -38 | AK43: 32 | AL43: -41
C44: 0 | D44: 0 | E44: 0 | F44: 0 | G44: 0 | H44: 0 | I44: 0 | J44: 0 | K44: 0 | L44: 0 | M44: 0 | N44: 0 | O44: 0 | P44: 0 | Q44: 0 | R44: 0 | S44: 0 | T44: 0 | U44: 0 | V44: 0 | W44: 0 | X44: 0 | Y44: 0 | Z44: 0 | AA44: 0 | AB44: 0 | AC44: 0 | AD44: 0 | AE44: 0 | AF44: 0 | AG44: 0 | AH44: 0 | AI44: 0 | AJ44: 0
B45: Decrease (increase) in assets and increase (decrease) in liabilities
B46: Trade and other receivables | C46: -3649 | D46: -1038 | E46: 536 | F46: -154 | G46: 185 | H46: 317 | I46: 42 | J46: 1184 | K46: 766 | L46: 391 | M46: 2145 | N46: 281 | O46: 838 | P46: 158 | Q46: -148 | R46: -215 | S46: -150 | T46: -408 | U46: -851 | V46: 421 | W46: -9 | X46: -947 | Y46: 1349 | Z46: -1258 | AA46: 952 | AB46: 1111 | AC46: -1129 | AD46: 202 | AE46: 60 | AF46: 287 | AG46: 1021 | AH46: 222 | AI46: -503 | AJ46: -108 | AK46: 163 | AL46: -550
B47: Inventories | C47: -250 | D47: -235 | E47: 204 | F47: -533 | G47: 214 | H47: -62 | I47: -166 | J47: 407 | K47: 54 | L47: -158 | M47: -27 | N47: -358 | O47: 435 | P47: 630 | Q47: -620 | R47: -608 | S47: 17 | T47: -1070 | U47: -216 | V47: -848 | W47: -501 | X47: -2257 | Y47: 644 | Z47: 1036 | AA47: 1180 | AB47: -171 | AC47: -585 | AD47: 373 | AE47: -1153 | AF47: 859 | AG47: -436 | AH47: 581 | AI47: -432 | AJ47: -27 | AK47: 247 | AL47: 436
B48: Advanced bonuses awarded to clients | C48: 0 | D48: 0 | E48: -359 | F48: -569 | G48: -113 | H48: -115 | I48: -152 | J48: -217 | K48: -168 | L48: -273 | M48: -292 | N48: -258 | O48: -103 | P48: -104 | Q48: -84 | R48: -176 | S48: -124 | T48: -164 | U48: -105 | V48: -191 | W48: -92 | X48: -136 | Y48: -167 | Z48: -249 | AA48: -141 | AB48: -217 | AC48: -118 | AD48: -103 | AE48: -35 | AF48: -51 | AG48: -69 | AH48: -143 | AI48: -132 | AJ48: -118 | AK48: -139 | AL48: -228
B49: Prepaid expenses | C49: -902 | D49: -982 | E49: -45 | F49: -87 | G49: -45 | H49: -17 | I49: -22 | J49: -5 | K49: -13 | L49: -11 | M49: -11 | N49: -13 | O49: -18 | P49: -9 | Q49: -6 | R49: -14 | S49: -54 | T49: -24 | U49: -13 | V49: -57 | W49: -3 | X49: -18 | Y49: -4 | Z49: -25 | AA49: -28 | AB49: -42 | AC49: -16 | AD49: -30 | AE49: -21 | AF49: -46 | AG49: -20 | AH49: -44 | AI49: -55 | AJ49: -35 | AK49: -12 | AL49: -26
B50: Judicial Deposits | C50: -83 | D50: 106 | E50: -116 | F50: -7 | G50: -5 | H50: -18 | I50: 1 | J50: 9 | K50: -47 | L50: -12 | M50: -28 | N50: -11 | O50: -5 | P50: -3 | Q50: -6 | R50: -7 | S50: 0 | T50: -11 | U50: 7 | V50: -10 | W50: 24 | X50: -9 | Y50: -68 | Z50: -15 | AA50: -6 | AB50: -8 | AC50: -31 | AD50: -1 | AE50: -13 | AF50: -7 | AG50: -26 | AH50: 0 | AI50: 22 | AJ50: 18 | AK50: -4 | AL50: -6
B51: Acquisition for decarbonization credits (CBIOS) | C51: 0 | D51: 0 | E51: 0 | F51: 0 | G51: 0 | H51: 0 | I51: 0 | J51: 0 | K51: 0 | L51: 0 | M51: 0 | N51: 0 | O51: 0 | P51: 0 | Q51: -13 | R51: -177 | S51: -41 | T51: -69 | U51: -47 | V51: -83 | W51: -174 | X51: -398 | Y51: -167 | Z51: -85 | AA51: -258 | AB51: -364 | AC51: -417 | AD51: -420 | AE51: -293 | AF51: -192 | AG51: -175 | AH51: -191 | AI51: -165 | AJ51: -149 | AK51: -109 | AL51: -66
B52: Trade accounts payable | C52: 124 | D52: -259 | E52: -531 | F52: 38 | G52: -355 | H52: -219 | I52: 135 | J52: -121 | K52: -115 | L52: -71 | M52: -214 | N52: 474 | O52: -907 | P52: -340 | Q52: 465 | R52: 437 | S52: -705 | T52: 849 | U52: 552 | V52: 750 | W52: 290 | X52: 884 | Y52: -172 | Z52: 165 | AA52: -320 | AB52: -1387 | AC52: 765 | AD52: 412 | AE52: -113 | AF52: -1271 | AG52: -563 | AH52: -131 | AI52: 305 | AJ52: 9 | AK52: 1511 | AL52: 396
B53: Income and social contribution taxes paid | C53: -652 | D53: -879 | E53: -313 | F53: -96 | G53: 0 | H53: -1 | I53: 0 | J53: -25 | K53: -200 | L53: -193 | M53: -93 | N53: -727 | O53: -71 | P53: 0 | Q53: -363 | R53: -553 | S53: 0 | T53: -1 | U53: 0 | V53: 0 | W53: -26 | X53: -29 | Y53: -423 | Z53: 0 | AA53: 0 | AB53: 0 | AC53: 0 | AD53: -52 | AE53: -10 | AF53: -18 | AG53: -24 | AH53: -12 | AI53: -29 | AJ53: -24 | AK53: -28 | AL53: -79
B54: Taxes, fees and contributions | C54: -226 | D54: 21 | E54: -273 | F54: -225 | G54: -65 | H54: -104 | I54: -127 | J54: 165 | K54: -97 | L54: 35 | M54: -285 | N54: -82 | O54: -220 | P54: 47 | Q54: 82 | R54: 209 | S54: 203 | T54: -175 | U54: 74 | V54: -80 | W54: 99 | X54: -410 | Y54: -26 | Z54: -208 | AA54: 79 | AB54: 275 | AC54: 5 | AD54: 157 | AE54: -65 | AF54: -94 | AG54: 48 | AH54: 7 | AI54: 37 | AJ54: 4 | AK54: 8 | AL54: -178
B55: Pension and health plan | C55: -92 | D55: -116 | E55: -137 | F55: -139 | G55: -38 | H55: -54 | I55: -42 | J55: -64 | K55: -40 | L55: -482 | M55: -56 | N55: -62 | O55: -44 | P55: -70 | Q55: -50 | R55: -207 | S55: -42 | T55: -69 | U55: -46 | V55: -52 | W55: -129 | X55: -71 | Y55: -59 | Z55: -72 | AA55: -74 | AB55: -81 | AC55: -78 | AD55: -64 | AE55: -74 | AF55: -77 | AG55: -71 | AH55: -67 | AI55: -71 | AJ55: -80 | AK55: -79 | AL55: -77
B56: Voluntary redundancy incentivization plan | C56: -149 | D56: -5 | E56: -85 | F56: -293 | G56: -1 | H56: -15 | I56: 0 | J56: -1 | K56: -11 | L56: -42 | M56: -2 | N56: -5 | O56: -1 | P56: -1 | Q56: 0 | R56: 0 | S56: 0 | T56: 0 | U56: 0 | V56: 0 | W56: 0 | X56: 0 | Y56: 0 | Z56: 0 | AA56: 0 | AB56: 0 | AC56: 0 | AD56: 0 | AE56: 0 | AF56: 0 | AG56: 0 | AH56: 0 | AI56: -218 | AJ56: 0 | AK56: -12 | AL56: 0
B57: Redundancy program and restructuring | C57: 0 | D57: 0 | E57: 0 | F57: 0 | G57: 0 | H57: 0 | I57: 0 | J57: 0 | K57: 0 | L57: 0 | M57: 0 | N57: 115 | O57: -106 | P57: -6 | Q57: -2 | R57: 0 | S57: -1 | T57: 0 | U57: 0 | V57: 0 | W57: 0 | X57: 0 | Y57: 0 | Z57: 0 | AA57: 0 | AB57: 0 | AC57: 0 | AD57: 0 | AE57: 0 | AF57: 0 | AG57: 0 | AH57: 0 | AI57: 0 | AJ57: 0 | AK57: -62 | AL57: 0
B58: Payment of bonuses and incentives | C58: 0 | D58: 0 | E58: 0 | F58: 0 | G58: 0 | H58: 0 | I58: 0 | J58: 0 | K58: 0 | L58: 0 | M58: 0 | N58: 0 | O58: 0 | P58: 0 | Q58: 0 | R58: 0 | S58: 0 | T58: 0 | U58: 0 | V58: -53 | W58: -68 | X58: -8 | Y58: 0 | Z58: -3 | AA58: -82 | AB58: -13 | AC58: -1 | AD58: -2 | AE58: -128 | AF58: -16 | AG58: -1 | AH58: -1 | AI58: 0 | AJ58: -8 | AK58: 7 | AL58: -18
B59: Payments of legal proceedings | C59: 0 | D59: 0 | E59: 0 | F59: 0 | G59: 0 | H59: -9 | I59: 9 | J59: 0 | K59: 0 | L59: -24 | M59: -8 | N59: -21 | O59: -12 | P59: -8 | Q59: -10 | R59: -21 | S59: -10 | T59: -29 | U59: -25 | V59: -41 | W59: -47 | X59: -78 | Y59: -73 | Z59: -20 | AA59: -10 | AB59: -10 | AC59: -15 | AD59: -11 | AE59: -52 | AF59: -12 | AG59: -15 | AH59: -34 | AI59: -47 | AJ59: -27 | AK59: -97 | AL59: -80
B60: Customer advances | C60: 0 | D60: 0 | E60: 0 | F60: 0 | G60: 0 | H60: 0 | I60: 0 | J60: 0 | K60: 0 | L60: 0 | M60: -1 | N60: -16 | O60: 0 | P60: 0 | Q60: 274 | R60: 114 | S60: -75 | T60: 25 | U60: 58 | V60: -61 | W60: -20 | X60: 172 | Y60: -278 | Z60: 59 | AA60: -66 | AB60: 340 | AC60: 556 | AD60: -870 | AE60: 3 | AF60: -3 | AG60: 178 | AH60: -291 | AI60: 142 | AJ60: -132 | AK60: 0 | AL60: 59
B61: Advances to suppliers | C61: 0 | D61: 0 | E61: 0 | F61: 0 | G61: 0 | H61: 0 | I61: 0 | J61: 0 | K61: 0 | L61: 0 | M61: 0 | N61: 0 | O61: 0 | P61: 0 | Q61: 0 | R61: 0 | S61: 0 | T61: 0 | U61: 0 | V61: 0 | W61: -242 | X61: 143 | Y61: -165 | Z61: 128 | AA61: 96 | AB61: -255 | AC61: 178 | AD61: -115 | AE61: -108 | AF61: 117 | AG61: 106 | AH61: -128 | AI61: 12 | AJ61: -14 | AK61: 136 | AL61: -190
B62: Payment of out-of-court settlements | C62: 0 | D62: 0 | E62: 0 | F62: 0 | G62: 0 | H62: 0 | I62: 0 | J62: 0 | K62: 0 | L62: 0 | M62: 0 | N62: 0 | O62: 0 | P62: 0 | Q62: 0 | R62: 0 | S62: 0 | T62: 0 | U62: 0 | V62: 0 | W62: 0 | X62: 0 | Y62: 0 | Z62: 0 | AA62: 0 | AB62: 0 | AC62: 0 | AD62: -160 | AE62: 0 | AF62: -204 | AG62: 0 | AH62: 0 | AI62: 0 | AJ62: 0 | AL62: 0
B63: Other assets and liabilities, net | C63: 93 | D63: 60 | E63: -63 | F63: -92 | G63: 18 | H63: -54 | I63: 67 | J63: -55 | K63: 10 | L63: -28 | M63: 28 | N63: 59 | O63: 372 | P63: 174 | Q63: -71 | R63: -113 | S63: -252 | T63: -46 | U63: -19 | V63: -2 | W63: -720 | X63: 83 | Y63: 194 | Z63: 416 | AA63: 302 | AB63: -48 | AC63: -36 | AD63: -13 | AE63: 23 | AF63: -34 | AG63: 109 | AH63: -50 | AI63: 8 | AJ63: -15 | AL63: -198
B65: Net cash provided (used) by operations | C65: =SUM(C10:C63) -> -2094 | D65: 482 | E65: 2634 | F65: 1270 | G65: 629 | H65: 374 | I65: 222 | J65: 2103 | K65: 1084 | L65: -126 | M65: 2080 | N65: -139 | O65: 756 | P65: 828 | Q65: 534 | R65: -300 | S65: 351 | T65: -212 | U65: 619 | V65: 1518 | W65: 214 | X65: -725 | Y65: 1319 | Z65: 455 | AA65: =SUM(AA10:AA63) -> 2722 | AB65: =SUM(AB10:AB63) -> 358 | AC65: =SUM(AC10:AC63) -> 1834 | AD65: =SUM(AD10:AD63) -> 1333 | AE65: =SUM(AE10:AE63) -> -230 | AF65: 1034 | AG65: 1978 | AH65: 1366 | AI65: 946 | AJ65: =SUM(AJ10:AJ63) -> 808 | AK65: =SUM(AK10:AK63) -> 3508 | AL65: =SUM(AL10:AL63) -> 1296
B66: Investment activities
B67: Disbursements on acquisitions of PP&E and intangible assets | C67: -959 | D67: -723 | E67: -402 | F67: -298 | G67: -71 | H67: -101 | I67: -115 | J67: -143 | K67: -128 | L67: -132 | M67: -153 | N67: -182 | O67: -106 | P67: -117 | Q67: -176 | R67: -207 | S67: -110 | T67: -125 | U67: -139 | V67: -210 | W67: -115 | X67: -153 | Y67: -180 | Z67: -279 | AA67: -117 | AB67: -157 | AC67: -136 | AD67: -332 | AE67: -155 | AF67: -322 | AG67: -240 | AH67: -417 | AI67: -458 | AJ67: -323 | AK67: -312 | AL67: -359
B68: Disbursements on acquisitions of equity interests | C68: -27 | D68: 0 | E68: 0 | F68: -2 | G68: 0 | H68: 0 | I68: 0 | J68: -1 | K68: -2 | L68: 0 | M68: 0 | N68: -34 | O68: 0 | P68: -1 | Q68: -2 | R68: -10 | S68: -31 | T68: -21 | U68: 0 | V68: 0 | W68: -27 | X68: -1211 | Y68: -398 | Z68: -57 | AA68: 0 | AB68: -17 | AC68: 0 | AD68: -11 | AE68: -5 | AF68: -14 | AG68: -11 | AH68: -11 | AI68: -41 | AJ68: -33 | AK68: -12 | AL68: -28
B69: Receipt from the sale of assets | C69: 40 | D69: 25 | E69: 1 | F69: 13 | G69: 0 | H69: 2 | I69: 0 | J69: 0 | K69: 8 | L69: 2 | M69: 1 | N69: 5 | O69: 2 | P69: 6 | Q69: 13 | R69: 10 | S69: 43 | T69: 49 | U69: 11 | V69: 82 | W69: 14 | X69: 26 | Y69: 133 | Z69: 188 | AA69: 108 | AB69: 95 | AC69: 942 | AD69: 126 | AE69: 204 | AF69: 93 | AG69: 100 | AH69: 91 | AI69: 122 | AJ69: 50 | AK69: 47 | AL69: 53
B70: Investments in securities | C70: -353 | D70: -2208 | E70: 307 | F70: 2607 | G70: 233 | H70: 33 | I70: 3 | J70: -36 | K70: 67 | L70: -13 | M70: 188 | N70: 0 | O70: 0 | P70: 0 | Q70: 0 | R70: 0 | S70: 2 | T70: 0 | U70: 0 | V70: -2000 | W70: 0 | X70: 0 | Y70: 0 | Z70: 0 | AA70: 0 | AB70: 0 | AC70: 0 | AD70: 0 | AE70: -6 | AF70: 0 | AG70: -1 | AH70: -1 | AI70: 35 | AJ70: 16 | AK70: -1 | AL70: 17
B71: Dividends received | C71: 0 | D71: 1 | E71: 22 | F71: 1 | G71: 0 | H71: 0 | I71: 0 | J71: 0 | K71: 0 | L71: 0 | M71: 0 | N71: 0 | O71: 0 | P71: 0 | Q71: 0 | R71: 1 | S71: 0 | T71: 11 | U71: 4 | V71: 0 | W71: 3 | X71: 3 | Y71: 0 | Z71: 47 | AA71: 0 | AB71: 51 | AC71: 56 | AD71: 30 | AE71: 0 | AF71: 7 | AG71: 0 | AH71: 0 | AI71: 6 | AJ71: 47 | AK71: 21 | AL71: 30
B72: Receipt of loans awarded | C72: 0 | D72: 0 | E72: 0 | F72: 0 | G72: 0 | H72: 0 | I72: 0 | J72: 0 | K72: 0 | L72: 0 | M72: 0 | N72: 0 | O72: 0 | P72: 0 | Q72: 4 | R72: 13 | S72: 13 | T72: 12 | U72: 4 | V72: 0 | W72: 0 | X72: 0 | Y72: 0 | Z72: 0 | AA72: 0 | AB72: 0 | AC72: 6 | AD72: 0 | AE72: 0 | AF72: 0 | AG72: 0 | AH72: 0 | AI72: 22 | AJ72: 30 | AK72: 36 | AL72: 50
B73: Loans granted | C73: 0 | D73: 0 | E73: 0 | F73: 0 | G73: 0 | H73: 0 | I73: 0 | J73: 0 | K73: 0 | L73: 0 | M73: 0 | N73: 0 | O73: 0 | P73: 0 | Q73: 0 | R73: 0 | S73: 0 | T73: 0 | U73: 0 | V73: 0 | W73: 0 | X73: 0 | Y73: -4 | Z73: -1 | AA73: 0 | AB73: 0 | AC73: -24 | AD73: -13 | AE73: -10 | AF73: 0 | AG73: -20 | AH73: -1 | AI73: -103 | AJ73: -53 | AK73: -38 | AL73: -21
B74: Capital Reduction in Equity Interests | C74: 0 | D74: 0 | E74: 0 | F74: 0 | G74: 0 | H74: 0 | I74: 0 | J74: 0 | K74: 0 | L74: 0 | M74: 0 | N74: 0 | O74: 0 | P74: 0 | Q74: 0 | R74: 0 | S74: 0 | T74: 0 | U74: 0 | V74: 0 | W74: 0 | X74: 0 | Y74: 0 | Z74: 0 | AA74: 0 | AB74: 0 | AC74: 0 | AD74: 0 | AE74: 0 | AF74: 0 | AG74: 0 | AH74: 0 | AI74: 0 | AJ74: 7 | AK74: 16 | AL74: 3
B75: Acquisition of subsidiary, net of cash acquired in consolidated | C75: 0 | D75: 0 | E75: 0 | F75: 0 | G75: 0 | H75: 0 | I75: 0 | J75: 0 | K75: 0 | L75: 0 | M75: 0 | N75: 0 | O75: 0 | P75: 0 | Q75: 0 | R75: 0 | S75: 0 | T75: 0 | U75: 0 | V75: 0 | W75: 0 | X75: 0 | Y75: 0 | Z75: 0 | AA75: 0 | AB75: 0 | AC75: 0 | AD75: 0 | AE75: 0 | AF75: 0 | AG75: 0 | AH75: 0 | AI75: -2962 | AJ75: 0 | AK75: -31 | AL75: 9
B76: Cash and cash equivalents at the beginning of the period of companies included in the consolidation process | C76: 0 | D76: 0 | E76: 0 | F76: 0 | G76: 0 | H76: 0 | I76: 0 | J76: 0 | K76: 0 | L76: 0 | M76: 0 | N76: 0 | O76: 0 | P76: 0 | Q76: 0 | R76: 0 | S76: 0 | T76: 0 | U76: 0 | V76: 0 | W76: 0 | X76: 0 | Y76: 0 | Z76: 0 | AA76: 0 | AB76: 0 | AC76: 0 | AD76: -162 | AE76: 0 | AF76: 0 | AG76: 0 | AH76: 0 | AI76: 0 | AJ76: 0 | AK76: 0 | AL76: 5
B77: Cash effect from the loss of control over interest | C77: 0 | D77: 0 | E77: 0 | F77: 0 | G77: 0 | H77: 0 | I77: 0 | J77: 0 | K77: 0 | L77: 0 | M77: 0 | N77: 0 | O77: 0 | P77: 0 | Q77: -11 | R77: 0 | S77: 0 | T77: 0 | U77: -10 | V77: 0 | W77: 0 | X77: -2 | Y77: 2 | Z77: 0 | AA77: 0 | AB77: 0 | AC77: 0 | AD77: 0 | AE77: 0 | AF77: 0 | AG77: 0 | AH77: -114 | AI77: 0 | AJ77: 0 | AK77: 0 | AL77: 11
B79: Net cash generated (used) in investment activities | C79: =SUM(C67:C77) -> -1299 | D79: -2905 | E79: -72 | F79: 2321 | G79: 162 | H79: -66 | I79: -112 | J79: -180 | K79: -55 | L79: -143 | M79: 36 | N79: -211 | O79: -104 | P79: -112 | Q79: -172 | R79: -193 | S79: -83 | T79: -74 | U79: -130 | V79: -2128 | W79: =SUM(W67:W77) -> -125 | X79: -1337 | Y79: -447 | Z79: -102 | AA79: -9 | AB79: -28 | AC79: 844 | AD79: -362 | AE79: =SUM(AE67:AE77) -> 28 | AF79: -236 | AG79: -172 | AH79: -453 | AI79: -3379 | AJ79: =SUM(AJ67:AJ77) -> -259 | AK79: =SUM(AK67:AK77) -> -274 | AL79: =SUM(AL67:AL77) -> -230
B81: Financing activities
B82: Financing
B83: Loans and financing | C83: 17 | D83: 11179 | F83: 0 | G83: -100 | H83: 100 | I83: 964 | J83: 0 | K83: 0 | L83: 0 | M83: 30 | N83: 500 | O83: 3213 | P83: 1500 | Q83: 0 | R83: 0 | S83: 2800 | T83: 0 | U83: 1193 | V83: 2768 | W83: 1600 | X83: 971 | Y83: 677 | Z83: 1494 | AA83: 784 | AB83: 0 | AC83: -8 | AD83: 1060 | AE83: 149 | AF83: 2778 | AG83: 0 | AH83: 2998 | AI83: 1446 | AJ83: 586 | AK83: 1473 | AL83: 66
B84: Amortization of principal | C84: -43 | D84: -299 | E84: -115 | F84: -7812 | G84: -53 | H84: -58 | I84: -26 | J84: 0 | K84: -113 | L84: -2 | M84: -6 | N84: -1 | O84: -123 | P84: -2768 | Q84: -5 | R84: -500 | S84: -1911 | T84: -125 | U84: 0 | V84: 0 | W84: -641 | X84: 0 | Y84: -530 | Z84: 1 | AA84: -783 | AB84: -150 | AC84: -1031 | AD84: -1210 | AE84: -343 | AF84: -150 | AG84: -1458 | AH84: -150 | AI84: -3371 | AJ84: -1201 | AK84: -1875 | AL84: -1881
B85: Amortization of interest | C85: -127 | D85: -521 | E85: -1875 | F85: -1541 | G85: 0 | H85: -192 | I85: -3 | J85: -125 | K85: -75 | L85: -123 | M85: -42 | N85: -121 | O85: -69 | P85: -96 | Q85: -62 | R85: -70 | S85: -137 | T85: -22 | U85: -88 | V85: -30 | W85: -166 | X85: -52 | Y85: -345 | Z85: -302 | AA85: -304 | AB85: -215 | AC85: -438 | AD85: -415 | AE85: -173 | AF85: -200 | AG85: -381 | AH85: -520 | AI85: -179 | AJ85: -767 | AK85: -627 | AL85: -977
B86: Dividends and interest on shareholders’ equity paid | C86: -520 | D86: -496 | E86: -684 | F86: -683 | G86: 0 | H86: 0 | I86: -1034 | J86: 0 | L86: -1518 | M86: 0 | N86: -1531 | O86: 0 | P86: 0 | Q86: -1080 | R86: 0 | S86: -444 | T86: -1106 | U86: -1080 | V86: -131 | W86: 0 | X86: -132 | Y86: 0 | Z86: -358 | AA86: -401 | AB86: 0 | AC86: 0 | AD86: 0 | AE86: -441 | AF86: -411 | AG86: -337 | AH86: -339 | AI86: -478 | AJ86: -241 | AK86: -266 | AL86: -562
B87: Leases | C87: 0 | D87: 0 | E87: -48 | F87: -32
B88: Payments of principal | C88: 0 | D88: 0 | E88: 0 | F88: 0 | G88: -1 | H88: 0 | I88: -1 | J88: -17 | K88: -25 | L88: -13 | M88: -48 | N88: -24 | O88: -20 | P88: -20 | Q88: -22 | R88: -33 | S88: -23 | T88: -23 | U88: -69 | V88: -103 | W88: -27 | X88: -31 | Y88: -38 | Z88: -30 | AA88: -28 | AB88: -29 | AC88: -45 | AD88: -28 | AE88: -25 | AF88: -18 | AG88: -28 | AH88: -22 | AI88: -22 | AJ88: -24 | AK88: -35 | AL88: -35
B89: Interest payments | C89: 0 | D89: 0 | E89: 0 | F89: 0 | G89: -1 | H89: -1 | I89: -1 | J89: -11 | K89: -11 | L89: -28 | M89: -18 | N89: -20 | O89: -18 | P89: -17 | Q89: -18 | R89: -17 | S89: -17 | T89: -18 | U89: -22 | V89: -17 | W89: -17 | X89: -18 | Y89: -22 | Z89: -21 | AA89: -19 | AB89: -19 | AC89: -21 | AD89: -16 | AE89: -16 | AF89: -7 | AG89: -8 | AH89: -9 | AI89: -10 | AJ89: -14 | AK89: -18 | AL89: -21
B90: Assignments credit rights - FIDC-NP / Share buyback | C90: -2251 | D90: -380 | E90: 5 | F90: -8 | G90: -14 | H90: 90 | I90: 139 | J90: -213 | K90: -13 | L90: -11 | M90: -8 | N90: 0 | O90: 0 | P90: 0 | Q90: 0 | R90: 0 | S90: 0 | T90: 0 | U90: -658 | V90: -258 | W90: -34 | X90: -200 | Y90: 0 | Z90: 0 | AA90: 0 | AB90: 0 | AC90: 0 | AD90: 0 | AE90: 0 | AF90: 0 | AG90: -18 | AH90: -11 | AI90: 0 | AJ90: -47 | AK90: 0 | AL90: 0
B91: Restricted Deposits and Investments | AI91: -61 | AJ91: -128 | AK91: -35 | AL91: -50
B92: Redemption of Restricted Deposits and Investments | AI92: 12 | AJ92: 186 | AK92: 2 | AL92: 82
B93: Capital Reduction of Non-Controlling Shareholder | AJ93: -3 | AK93: 0 | AL93: -2
B94: Others | C94: -43 | D94: -42 | F94: 0 | G94: 0 | H94: 0 | I94: 0 | J94: 0 | K94: 0 | L94: 0 | M94: 0 | N94: 0 | O94: 0 | P94: -5 | Q94: -6 | R94: -5 | S94: -1 | T94: -2 | U94: -46 | V94: -24 | W94: -86 | X94: -71 | Y94: -296 | Z94: -86 | AA94: -221 | AB94: -73 | AC94: -375 | AD94: -132 | AE94: -161 | AF94: -98 | AG94: -225 | AH94: -51 | AI94: 159 | AJ94: -29 | AK94: -218 | AL94: -85
B96: Net cash (used) in financing activities | C96: =SUM(C82:C95) -> -2967 | D96: =SUM(D82:D95) -> 9441 | E96: =SUM(E82:E95) -> -2717 | F96: =SUM(F82:F95) -> -10076 | G96: =SUM(G83:G95) -> -169 | H96: -61 | I96: 38 | J96: -366 | K96: -237 | L96: -1695 | M96: -92 | N96: -1197 | O96: 2983 | P96: -1406 | Q96: -1193 | R96: -625 | S96: 267 | T96: -1296 | U96: -770 | V96: 2205 | W96: 629 | X96: 467 | Y96: -554 | Z96: 698 | AA96: =SUM(AA83:AA95) -> -972 | AB96: =SUM(AB83:AB95) -> -486 | AC96: =SUM(AC83:AC95) -> -1918 | AD96: =SUM(AD83:AD95) -> -741 | AE96: =SUM(AE83:AE95) -> -1010 | AF96: 1894 | AG96: -2455 | AH96: 1896 | AI96: =SUM(AI83:AI95) -> -2504 | AJ96: =SUM(AJ83:AJ95) -> -1682 | AK96: =SUM(AK83:AK95) -> -1599 | AL96: =SUM(AL83:AL95) -> -3465
B98: Exchange variance effect on Cash and cash equivalents | C98: 0 | D98: 0 | E98: 0 | F98: 0 | G98: 0 | H98: 0 | I98: 0 | J98: 0 | K98: 0 | L98: 0 | M98: 0 | N98: 0 | O98: 0 | P98: 0 | Q98: 0 | R98: 0 | S98: 0 | T98: 0 | U98: 0 | V98: 0 | W98: -34 | X98: 45 | Y98: 36 | Z98: -19 | AA98: -70 | AB98: 2 | AC98: 14 | AD98: 0 | AE98: 22 | AF98: 57 | AG98: 13 | AH98: 82 | AI98: -69 | AJ98: 11 | AK98: -50 | AL98: 1
B100: Net change in cash and cash equivalents in the period | C100: =SUM(C96,C79,C65) -> -6360 | D100: 7018 | E100: -155 | F100: -6485 | G100: 622 | H100: 247 | I100: 148 | J100: 1557 | K100: 792 | L100: -1964 | M100: 2024 | N100: -1547 | O100: 3635 | P100: -690 | Q100: -831 | R100: -1118 | S100: 535 | T100: -1582 | U100: -281 | V100: 1595 | W100: =SUM(W96,W79,W65,W98) -> 684 | X100: -1550 | Y100: 354 | Z100: 1032 | AA100: 1671 | AB100: -154 | AC100: 774 | AD100: 230 | AE100: -1190 | AF100: 2749 | AG100: -636 | AH100: 2891 | AI100: -5006 | AJ100: =SUM(AJ98,AJ96,AJ79,AJ65) -> -1122 | AK100: =SUM(AK98,AK96,AK79,AK65) -> 1585 | AL100: =SUM(AL98,AL96,AL79,AL65) -> -2398
B102: Cash and cash equivalents at beginning of period | C102: 916 | D102: 742 | E102: 810 | F102: 655 | G102: 483 | H102: =G104 -> 1105 | I102: =H104 -> 1352 | J102: =I104 -> 1500 | K102: 3057 | L102: =K104 -> 3849 | M102: 1885 | N102: 3909 | O102: 2362 | P102: 5997 | Q102: 5307 | R102: 4476 | S102: 3358 | T102: 3893 | U102: 2311 | V102: 2030 | W102: 3625 | X102: 4309 | Y102: 2759 | Z102: 3113 | AA102: =Z104 -> 4145 | AB102: 5816 | AC102: 5662 | AD102: 6436 | AE102: 6666 | AF102: 5476 | AG102: 8225 | AH102: 7589 | AI102: 10480 | AJ102: 5473 | AK102: 4351 | AL102: 5936
B104: Cash and cash equivalents at end of period | C104: 742 | D104: 810 | E104: 655 | F104: 483 | G104: 1105 | H104: 1352 | I104: 1500 | J104: 3057 | K104: 3849 | L104: 1885 | M104: 3909 | N104: 2362 | O104: 5997 | P104: 5307 | Q104: 4476 | R104: 3358 | S104: =S102+S100 -> 3893 | T104: =T102+T100 -> 2311 | U104: 2030 | V104: 3625 | W104: =W102+W100 -> 4309 | X104: 2759 | Y104: 3113 | Z104: 4145 | AA104: 5816 | AB104: 5662 | AC104: 6436 | AD104: 6666 | AE104: =AE102+AE100 -> 5476 | AF104: 8225 | AG104: 7589 | AH104: 10480 | AI104: 5474 | AJ104: =AJ102+AJ100 -> 4351 | AK104: =AK102+AK100 -> 5936 | AL104: =AL102+AL100 -> 3538

Sheet 05. Segment Reporting
B3: 5. Segment Reporting | C3: 2014 | D3: 2015 | E3: 2016 | F3: 1Q17 | G3: 2Q17 | H3: 3Q17 | I3: 4Q17 | J3: 1Q18 | K3: 2Q18 | L3: 3Q18 | M3: 4Q18 | N3: 1Q19 | O3: 2Q19 | P3: 3Q19 | Q3: 4Q19 | R3: 1Q20 | S3: 2Q20 | T3: 3Q20 | U3: 4Q20 | V3: 1Q21 | W3: 2Q21 | X3: 3Q21 | Y3: 4Q21 | Z3: 1Q22 | AA3: 2Q22 | AB3: 3Q22 | AC3: 4Q22 | AD3: 1Q23 | AE3: 2Q23 | AF3: 3Q23 | AG3: 4Q23 | AH3: 1Q24 | AI3: 2Q24 | AJ3: 3Q24 | AK3: 4Q24 | AL3: 1Q25 | AM3: 2Q25 | AN3: 3Q25 | AO3: 4Q25
B6: VIBRA ENERGIA - Consolidated
B7: (millions)
B9: (1) Sales Revenue | C9: =SUM(C10:C14) -> 98528 | D9: 97280 | E9: 86637 | F9: 20049 | G9: 19475 | H9: 21839 | I9: 23204 | J9: 22499 | K9: 23597 | L9: 26455 | M9: 25219 | N9: 22432 | O9: 24045 | P9: 24360 | Q9: 24148 | R9: 21188 | S9: 14882 | T9: 21137 | U9: 24294 | V9: 26133 | W9: 29023 | X9: 35694 | Y9: 39271 | Z9: 38381 | AA9: 47154 | AB9: 50834 | AC9: 45077 | AD9: =SUM(AD10:AD14) -> 39037 | AE9: =SUM(AE10:AE14) -> 37184 | AF9: =SUM(AF10:AF14) -> 43063 | AG9: =SUM(AG10:AG14) -> 43663 | AH9: =SUM(AH10:AH14) -> 39599 | AI9: 42109 | AJ9: 46271 | AK9: 44293 | AL9: 44906 | AM9: =SUM(AM10:AM14) -> 45609 | AN9: =SUM(AN10:AN14) -> 48423 | AO9: =SUM(AO10:AO14) -> 50318
B10: (1.1) Retail | C10: 49990 | D10: 53791 | E10: 52634 | F10: 12157 | G10: 11756 | H10: 12995 | I10: 14091 | J10: 13432 | K10: 14240 | L10: 14729 | M10: 14910 | N10: 13061 | O10: 14268 | P10: 14295 | Q10: 14900 | R10: 12601 | S10: 9137 | T10: 13563 | U10: 15512 | V10: 16142 | W10: 18245 | X10: 21069 | Y10: 23614 | Z10: 23305 | AA10: 27827 | AB10: 28745 | AC10: 25799 | AD10: 22809 | AE10: 22945 | AF10: 26878 | AG10: 27154 | AH10: 24357 | AI10: 26165 | AJ10: 27934 | AK10: 27966 | AL10: 26970 | AM10: 27503 | AN10: 28910 | AO10: 30185
B11: (1.2) Renováveis | C11: 0 | D11: 0 | E11: 0 | F11: 0 | G11: 0 | H11: 0 | I11: 0 | J11: 0 | K11: 0 | L11: 0 | M11: 0 | N11: 0 | O11: 0 | P11: 0 | Q11: 0 | R11: 0 | S11: 0 | T11: 0 | U11: 0 | V11: 0 | W11: 0 | X11: 0 | Y11: 0 | Z11: 0 | AA11: 0 | AB11: 0 | AC11: 0 | AD11: 0 | AE11: 0 | AF11: 0 | AG11: 0 | AH11: 0 | AI11: 0 | AJ11: 0 | AK11: 0 | AL11: 1198 | AM11: 1350 | AN11: 1681 | AO11: 1740
B12: (1.2) B2B | C12: 48903 | D12: 43903 | E12: 34545 | F12: 8016 | G12: 7859 | H12: 8997 | I12: 9240 | J12: 9188 | K12: 9493 | L12: 11857 | M12: 10443 | N12: 9495 | O12: 9892 | P12: 10200 | Q12: 9387 | R12: 8737 | S12: 5902 | T12: 7722 | U12: 8965 | V12: 10184 | W12: 11018 | X12: 14813 | Y12: 15841 | Z12: 15198 | AA12: 19463 | AB12: 22316 | AC12: 19444 | AD12: 16403 | AE12: 14418 | AF12: 16365 | AG12: 16692 | AH12: 15414 | AI12: 16132 | AJ12: 18510 | AK12: 16481 | AL12: 16868 | AM12: 16898 | AN12: 17972 | AO12: 18532
B13: (1.3) Corporate | C13: -17 | D13: -2 | E13: 0 | F13: 1 | G13: 0 | H13: 0 | I13: 0 | J13: 0 | K13: 0 | L13: 0 | M13: 0 | N13: 0 | O13: 0 | P13: 0 | Q13: 0 | R13: 0 | S13: 0 | T13: 0 | U13: 0 | V13: 0 | W13: 0 | X13: 0 | Y13: 0 | Z13: 0 | AA13: 0 | AB13: 0 | AC13: 0 | AD13: 0 | AE13: 0 | AF13: 0 | AG13: 0 | AH13: 0 | AI13: 0 | AJ13: 0 | AK13: 0 | AL13: 0 | AM13: 0 | AN13: 0 | AO13: 0
B14: (1.4) Reconciliation with financial statements | C14: -348 | D14: -412 | E14: -542 | F14: -125 | G14: -140 | H14: -153 | I14: =(-545+418)*1 -> -127 | J14: -121 | K14: -136 | L14: -131 | M14: -134 | N14: -124 | O14: -115 | P14: -135 | Q14: -139 | R14: -150 | S14: -157 | T14: -148 | U14: -183 | V14: -193 | W14: -240 | X14: -188 | Y14: -184 | Z14: -122 | AA14: -136 | AB14: -227 | AC14: -166 | AD14: -175 | AE14: -179 | AF14: -180 | AG14: -183 | AH14: -172 | AI14: -188 | AJ14: -173 | AK14: -154 | AL14: -130 | AM14: -142 | AN14: -140 | AO14: -139
B15: (2) Marcação a Mercado | C15: 0 | D15: 0 | E15: 0 | F15: 0 | G15: 0 | H15: 0 | I15: 0 | J15: 0 | K15: 0 | L15: 0 | M15: 0 | N15: 0 | O15: 0 | P15: 0 | Q15: 0 | R15: 0 | S15: 0 | T15: 0 | U15: 0 | V15: 0 | W15: 0 | X15: 0 | Y15: 0 | Z15: 0 | AA15: 0 | AB15: 0 | AC15: 0 | AD15: 0 | AE15: 0 | AF15: 0 | AG15: 0 | AH15: 0 | AI15: 0 | AJ15: 0 | AK15: 0 | AL15: =(SUM(AL16:AL20))*1 -> -47 | AM15: =(SUM(AM16:AM20))*1 -> -64 | AN15: =(SUM(AN16:AN20))*1 -> -78 | AO15: =(SUM(AO16:AO20))*1 -> 8
B16: (1.1) Retail | C16: 0 | D16: 0 | E16: 0 | F16: 0 | G16: 0 | H16: 0 | I16: 0 | J16: 0 | K16: 0 | L16: 0 | M16: 0 | N16: 0 | O16: 0 | P16: 0 | Q16: 0 | R16: 0 | S16: 0 | T16: 0 | U16: 0 | V16: 0 | W16: 0 | X16: 0 | Y16: 0 | Z16: 0 | AA16: 0 | AB16: 0 | AC16: 0 | AD16: 0 | AE16: 0 | AF16: 0 | AG16: 0 | AH16: 0 | AI16: 0 | AJ16: 0 | AK16: 0 | AL16: 0 | AM16: 0 | AN16: 0 | AO16: 0
B17: (1.2) Renováveis | C17: 0 | D17: 0 | E17: 0 | F17: 0 | G17: 0 | H17: 0 | I17: 0 | J17: 0 | K17: 0 | L17: 0 | M17: 0 | N17: 0 | O17: 0 | P17: 0 | Q17: 0 | R17: 0 | S17: 0 | T17: 0 | U17: 0 | V17: 0 | W17: 0 | X17: 0 | Y17: 0 | Z17: 0 | AA17: 0 | AB17: 0 | AC17: 0 | AD17: 0 | AE17: 0 | AF17: 0 | AG17: 0 | AH17: 0 | AI17: 0 | AJ17: 0 | AK17: 0 | AL17: 0 | AM17: 0 | AN17: 0 | AO17: 0
B18: (1.2) B2B | C18: 0 | D18: 0 | E18: 0 | F18: 0 | G18: 0 | H18: 0 | I18: 0 | J18: 0 | K18: 0 | L18: 0 | M18: 0 | N18: 0 | O18: 0 | P18: 0 | Q18: 0 | R18: 0 | S18: 0 | T18: 0 | U18: 0 | V18: 0 | W18: 0 | X18: 0 | Y18: 0 | Z18: 0 | AA18: 0 | AB18: 0 | AC18: 0 | AD18: 0 | AE18: 0 | AF18: 0 | AG18: 0 | AH18: 0 | AI18: 0 | AJ18: 0 | AK18: 0 | AL18: 0 | AM18: 0 | AN18: 0 | AO18: 0
B19: (1.3) Corporate | C19: 0 | D19: 0 | E19: 0 | F19: 0 | G19: 0 | H19: 0 | I19: 0 | J19: 0 | K19: 0 | L19: 0 | M19: 0 | N19: 0 | O19: 0 | P19: 0 | Q19: 0 | R19: 0 | S19: 0 | T19: 0 | U19: 0 | V19: 0 | W19: 0 | X19: 0 | Y19: 0 | Z19: 0 | AA19: 0 | AB19: 0 | AC19: 0 | AD19: 0 | AE19: 0 | AF19: 0 | AG19: 0 | AH19: 0 | AI19: 0 | AJ19: 0 | AK19: 0 | AL19: 0 | AM19: 0 | AN19: 0 | AO19: 0
B20: (1.4) Reconciliation with financial statements | C20: 0 | D20: 0 | E20: 0 | F20: 0 | G20: 0 | H20: 0 | I20: 0 | J20: 0 | K20: 0 | L20: 0 | M20: 0 | N20: 0 | O20: 0 | P20: 0 | Q20: 0 | R20: 0 | S20: 0 | T20: 0 | U20: 0 | V20: 0 | W20: 0 | X20: 0 | Y20: 0 | Z20: 0 | AA20: 0 | AB20: 0 | AC20: 0 | AD20: 0 | AE20: 0 | AF20: 0 | AG20: 0 | AH20: 0 | AI20: 0 | AJ20: 0 | AK20: 0 | AL20: -47 | AM20: -64 | AN20: -78 | AO20: 8
B21: (2) Cost of goods sold | C21: =SUM(C22:C26) -> -91237 | D21: -89967 | E21: -80172 | F21: -18568 | G21: -18199 | H21: -20035 | I21: -21398 | J21: -20982 | K21: -22281 | L21: -24936 | M21: -23715 | N21: -20842 | O21: -22756 | P21: -22966 | Q21: -22463 | R21: -20242 | S21: -14286 | T21: -19751 | U21: -22765 | V21: -24260 | W21: -27750 | X21: -34161 | Y21: -37099 | Z21: -36168 | AA21: -44495 | AB21: -49782 | AC21: -43512 | AD21: =SUM(AD22:AD26) -> -37679 | AE21: =SUM(AE22:AE26) -> -35648 | AF21: =SUM(AF22:AF26) -> -40001 | AG21: =SUM(AG22:AG26) -> -41258 | AH21: =SUM(AH22:AH26) -> -37488 | AI21: -40097 | AJ21: -44114 | AK21: -42332 | AL21: -42519 | AM21: =SUM(AM22:AM26) -> -43655 | AN21: =SUM(AN22:AN26) -> -45983 | AO21: =SUM(AO22:AO26) -> -47700
B22: (2.1) Retail | C22: -46968 | D22: -49986 | E22: -48698 | F22: -11273 | G22: -11028 | H22: -11895 | I22: =(-47227+34196)*1 -> -13031 | J22: -12586 | K22: -13535 | L22: -14018 | M22: -14062 | N22: -12172 | O22: -13626 | P22: -13549 | Q22: -13907 | R22: -12119 | S22: -8836 | T22: -12769 | U22: -14562 | V22: -15024 | W22: -17521 | X22: -20267 | Y22: -22369 | Z22: -22076 | AA22: -26427 | AB22: -28535 | AC22: -24866 | AD22: -21930 | AE22: -21787 | AF22: -24983 | AG22: -25589 | AH22: -22984 | AI22: -24979 | AJ22: -26620 | AK22: -26717 | AL22: -25621 | AM22: -26492 | AN22: -27532 | AO22: -28605
B23: (2.2) Renováveis | C23: 0 | D23: 0 | E23: 0 | F23: 0 | G23: 0 | H23: 0 | I23: 0 | J23: 0 | K23: 0 | L23: 0 | M23: 0 | N23: 0 | O23: 0 | P23: 0 | Q23: 0 | R23: 0 | S23: 0 | T23: 0 | U23: 0 | V23: 0 | W23: 0 | X23: 0 | Y23: 0 | Z23: 0 | AA23: 0 | AB23: 0 | AC23: 0 | AD23: 0 | AE23: 0 | AF23: 0 | AG23: 0 | AH23: 0 | AI23: 0 | AJ23: 0 | AK23: 0 | AL23: -916 | AM23: -1048 | AN23: -1454 | AO23: -1469
B24: (2.3) B2B | C24: -44253 | D24: -39966 | E24: -31458 | F24: -7287 | G24: -7168 | H24: -8137 | I24: -8364 | J24: -8393 | K24: -8743 | L24: -10915 | M24: -9650 | N24: -8667 | O24: -9127 | P24: -9413 | Q24: -8554 | R24: -8120 | S24: -5447 | T24: -6979 | U24: -8212 | V24: -9233 | W24: -10226 | X24: -13891 | Y24: -14730 | Z24: -14089 | AA24: -18065 | AB24: -21242 | AC24: -18643 | AD24: -15746 | AE24: -13858 | AF24: -15015 | AG24: -15665 | AH24: -14501 | AI24: -15116 | AJ24: -17491 | AK24: -15612 | AL24: -15880 | AM24: -16008 | AN24: -16906 | AO24: -17517
B25: (2.4) Corporativo | C25: -6 | D25: -3 | E25: -4 | F25: -4 | G25: 0 | H25: 0 | I25: 0 | J25: 0 | K25: 0 | L25: 0 | M25: 0 | N25: 0 | O25: 0 | P25: 0 | Q25: 0 | R25: 0 | S25: 0 | T25: 0 | U25: 0 | V25: 0 | W25: 0 | X25: 0 | Y25: 0 | Z25: 0 | AA25: 0 | AB25: 0 | AC25: 0 | AD25: 0 | AE25: 0 | AF25: 0 | AG25: 0 | AH25: 0 | AI25: 0 | AJ25: 0 | AK25: 0 | AL25: 0 | AM25: 0 | AN25: 0 | AO25: 0
B26: (2.5) Reconciliação com as DC | C26: -10 | D26: -12 | E26: -12 | F26: -4 | G26: -3 | H26: -3 | I26: -3 | J26: -3 | K26: -3 | L26: -3 | M26: -3 | N26: -3 | O26: -3 | P26: -4 | Q26: -2 | R26: -3 | S26: -3 | T26: -3 | U26: 9 | V26: -3 | W26: -3 | X26: -3 | Y26: 0 | Z26: -3 | AA26: -3 | AB26: -5 | AC26: -3 | AD26: -3 | AE26: -3 | AF26: -3 | AG26: -4 | AH26: -3 | AI26: -2 | AJ26: -3 | AK26: -3 | AL26: -102 | AM26: -107 | AN26: -91 | AO26: -109
B27: (3) Gross profit (loss) | C27: =SUM(C28:C32) -> 7291 | D27: 7313 | E27: 6465 | F27: 1481 | G27: 1276 | H27: 1804 | I27: 1806 | J27: 1517 | K27: 1316 | L27: 1519 | M27: 1504 | N27: 1590 | O27: 1289 | P27: 1394 | Q27: 1685 | R27: 946 | S27: 596 | T27: 1386 | U27: 1529 | V27: 1873 | W27: 1273 | X27: 1533 | Y27: 2172 | Z27: 2213 | AA27: 2659 | AB27: 1052 | AC27: 1565 | AD27: =SUM(AD28:AD32) -> 1358 | AE27: =SUM(AE28:AE32) -> 1536 | AF27: =SUM(AF28:AF32) -> 3062 | AG27: =SUM(AG28:AG32) -> 2405 | AH27: =SUM(AH28:AH32) -> 2111 | AI27: 2012 | AJ27: 2157 | AK27: 1961 | AL27: 2340 | AM27: =SUM(AM28:AM32) -> 1890 | AN27: =SUM(AN28:AN32) -> 2362 | AO27: =SUM(AO28:AO32) -> 2626
B28: (3.1) Retail | C28: =(C10+C22)*1 -> 3022 | D28: 3805 | E28: 3936 | F28: 884 | G28: 728 | H28: 1100 | I28: 1060 | J28: 846 | K28: 705 | L28: 711 | M28: 848 | N28: 889 | O28: 642 | P28: 746 | Q28: 993 | R28: 482 | S28: 301 | T28: 794 | U28: 950 | V28: 1118 | W28: 724 | X28: 802 | Y28: 1245 | Z28: 1229 | AA28: 1400 | AB28: 210 | AC28: 933 | AD28: 879 | AE28: 1158 | AF28: 1895 | AG28: 1565 | AH28: 1373 | AI28: 1186 | AJ28: 1314 | AK28: 1249 | AL28: 1349 | AM28: =(SUM(AM10,AM16,AM22))*1 -> 1011 | AN28: 1378 | AO28: 1580
B29: (3.2) Renováveis | C29: 0 | D29: 0 | E29: 0 | F29: 0 | G29: 0 | H29: 0 | I29: 0 | J29: 0 | K29: 0 | L29: 0 | M29: 0 | N29: 0 | O29: 0 | P29: 0 | Q29: 0 | R29: 0 | S29: 0 | T29: 0 | U29: 0 | V29: 0 | W29: 0 | X29: 0 | Y29: 0 | Z29: 0 | AA29: 0 | AB29: 0 | AC29: 0 | AD29: 0 | AE29: 0 | AF29: 0 | AG29: 0 | AH29: 0 | AI29: 0 | AJ29: 0 | AK29: 0 | AL29: 282 | AM29: 302 | AN29: 227 | AO29: 271
B30: (3.2) B2B | C30: =(C12+C24)*1 -> 4650 | D30: 3937 | E30: 3087 | F30: 729 | G30: 691 | H30: 860 | I30: 876 | J30: 795 | K30: 750 | L30: 942 | M30: 793 | N30: 828 | O30: 765 | P30: 787 | Q30: 833 | R30: 617 | S30: 455 | T30: 743 | U30: 753 | V30: 951 | W30: 792 | X30: 922 | Y30: 1111 | Z30: 1109 | AA30: 1398 | AB30: 1074 | AC30: 801 | AD30: 657 | AE30: 560 | AF30: 1350 | AG30: 1027 | AH30: 913 | AI30: 1016 | AJ30: 1019 | AK30: 869 | AL30: 988 | AM30: 890 | AN30: 1066 | AO30: 1015
B31: (3.3) Corporate | C31: =(C13+C25)*1 -> -23 | D31: -5 | E31: -4 | F31: -3 | G31: 0 | H31: 0 | I31: 0 | J31: 0 | K31: 0 | L31: 0 | M31: 0 | N31: 0 | O31: 0 | P31: 0 | Q31: 0 | R31: 0 | S31: 0 | T31: 0 | U31: 0 | V31: 0 | W31: 0 | X31: 0 | Y31: 0 | Z31: 0 | AA31: 0 | AB31: 0 | AC31: 0 | AD31: 0 | AE31: 0 | AF31: 0 | AG31: 0 | AH31: 0 | AI31: 0 | AJ31: 0 | AK31: 0 | AL31: 0 | AM31: 0 | AN31: 0 | AO31: 0
B32: (3.4) Reconciliation with financial statements | C32: =(C14+C26)*1 -> -358 | D32: -424 | E32: -554 | F32: -129 | G32: -143 | H32: -156 | I32: -130 | J32: -124 | K32: -139 | L32: -134 | M32: -137 | N32: -127 | O32: -118 | P32: -139 | Q32: -141 | R32: -153 | S32: -160 | T32: -151 | U32: -174 | V32: -196 | W32: -243 | X32: -191 | Y32: -184 | Z32: -125 | AA32: -139 | AB32: -232 | AC32: -169 | AD32: -178 | AE32: -182 | AF32: -183 | AG32: -187 | AH32: -175 | AI32: -190 | AJ32: -176 | AK32: -157 | AL32: -279 | AM32: -313 | AN32: -309 | AO32: -240
B33: (4) Expenses | C33: =C34+C40+C46 -> -6033 | D33: -8952 | E33: -6479 | F33: -1055 | G33: -1047 | H33: -971 | I33: -1170 | J33: -1060 | K33: -1142 | L33: -97 | M33: -1170 | N33: -1102 | O33: -989 | P33: -897 | Q33: -1654 | R33: -445 | S33: -340 | T33: -861 | U33: 1746 | V33: -1003 | W33: -600 | X33: -1110 | Y33: -1644 | Z33: -1239 | AA33: -994 | AB33: -804 | AC33: -487 | AD33: =AD34+AD40+AD46 -> -929 | AE33: =AE34+AE40+AE46 -> -986 | AF33: =AF34+AF40+AF46 -> -930 | AG33: =AG34+AG40+AG46 -> 2063 | AH33: =AH34+AH40+AH46 -> -482 | AI33: -870 | AJ33: 3537 | AK33: -1757 | AL33: -835 | AM33: =AM34+AM40+AM46 -> -857 | AN33: =AN34+AN40+AN46 -> -1157 | AO33: =AO34+AO40+AO46 -> -1644
B34: (4.1) General, administrative and sales | C34: =(SUM(C35:C39))*1 -> -5272 | D34: -7274 | E34: -4673 | F34: -908 | G34: -965 | H34: -955 | I34: -959 | J34: -898 | K34: -958 | L34: -970 | M34: -887 | N34: -928 | O34: -912 | P34: -933 | Q34: -1112 | R34: -768 | S34: -723 | T34: -683 | U34: -575 | V34: -878 | W34: -743 | X34: -866 | Y34: -810 | Z34: -740 | AA34: -811 | AB34: -935 | AC34: -895 | AD34: -877 | AE34: -867 | AF34: -926 | AG34: -907 | AH34: -890 | AI34: -882 | AJ34: -928 | AK34: -996 | AL34: -1115 | AM34: =(SUM(AM35:AM39))*1 -> -1104 | AN34: =(SUM(AN35:AN39))*1 -> -1133 | AO34: =(SUM(AO35:AO39))*1 -> -1309
B35: (4.1.1) Retail | C35: -1518 | D35: -1631 | E35: -1617 | F35: -396 | G35: -419 | H35: -416 | I35: =(-1624+1231)*1 -> -393 | J35: -396 | K35: -395 | L35: -462 | M35: -421 | N35: -389 | O35: -383 | P35: -385 | Q35: -366 | R35: -294 | S35: -243 | T35: -279 | U35: -264 | V35: -239 | W35: -253 | X35: -281 | Y35: -304 | Z35: -257 | AA35: -278 | AB35: -312 | AC35: -307 | AD35: -294 | AE35: -316 | AF35: -329 | AG35: -303 | AH35: -318 | AI35: -298 | AJ35: -290 | AK35: -316 | AL35: -332 | AM35: -341 | AN35: -297 | AO35: -361
B36: (4.1.2) Renováveis | C36: 0 | D36: 0 | E36: 0 | F36: 0 | G36: 0 | H36: 0 | I36: 0 | J36: 0 | K36: 0 | L36: 0 | M36: 0 | N36: 0 | O36: 0 | P36: 0 | Q36: 0 | R36: 0 | S36: 0 | T36: 0 | U36: 0 | V36: 0 | W36: 0 | X36: 0 | Y36: 0 | Z36: 0 | AA36: 0 | AB36: 0 | AC36: 0 | AD36: 0 | AE36: 0 | AF36: 0 | AG36: 0 | AH36: 0 | AI36: 0 | AJ36: 0 | AK36: 0 | AL36: -72 | AM36: -74 | AN36: -58 | AO36: -96
B37: (4.1.2) B2B | C37: -2049 | D37: -2124 | E37: -1975 | F37: -451 | G37: -426 | H37: -412 | I37: -441 | J37: -358 | K37: -414 | L37: -386 | M37: -435 | N37: -382 | O37: -371 | P37: -369 | Q37: -377 | R37: -327 | S37: -337 | T37: -301 | U37: -302 | V37: -481 | W37: -292 | X37: -292 | Y37: -385 | Z37: -306 | AA37: -368 | AB37: -419 | AC37: -402 | AD37: -378 | AE37: -386 | AF37: -421 | AG37: -403 | AH37: -394 | AI37: -393 | AJ37: -437 | AK37: -494 | AL37: -480 | AM37: -425 | AN37: -531 | AO37: -546
B38: (4.1.3) Corporate | C38: -216 | D38: -197 | E38: -228 | F38: -41 | G38: -36 | H38: -43 | I38: -29 | J38: -60 | K38: -45 | L38: -28 | M38: -28 | N38: -39 | O38: -38 | P38: -57 | Q38: -41 | R38: -15 | S38: -11 | T38: 26 | U38: -71 | V38: -23 | W38: -62 | X38: -150 | Y38: -46 | Z38: -41 | AA38: -33 | AB38: -52 | AC38: -54 | AD38: -70 | AE38: -32 | AF38: -40 | AG38: -62 | AH38: -37 | AI38: -59 | AJ38: -63 | AK38: -54 | AL38: -75 | AM38: -91 | AN38: -86 | AO38: -118
B39: (4.1.4) Reconciliation with financial statements | C39: -1489 | D39: -3322 | E39: -853 | F39: -20 | G39: -84 | H39: -84 | I39: -96 | J39: -84 | K39: -104 | L39: -94 | M39: -3 | N39: -118 | O39: -120 | P39: -122 | Q39: -328 | R39: -132 | S39: -132 | T39: -129 | U39: 62 | V39: -135 | W39: -136 | X39: -143 | Y39: -75 | Z39: -136 | AA39: -132 | AB39: -152 | AC39: -132 | AD39: -135 | AE39: -133 | AF39: -136 | AG39: -139 | AH39: -141 | AI39: -132 | AJ39: -138 | AK39: -132 | AL39: -156 | AM39: -173 | AN39: -161 | AO39: -188
B40: (4.2) Tax | C40: =(SUM(C41:C45))*1 -> -160 | D40: -208 | E40: -137 | F40: -37 | G40: -25 | H40: -92 | I40: -18 | J40: -27 | K40: -22 | L40: -209 | M40: -57 | N40: -37 | O40: -13 | P40: -36 | Q40: -22 | R40: -41 | S40: -17 | T40: -58 | U40: -31 | V40: -65 | W40: -22 | X40: -224 | Y40: -34 | Z40: -35 | AA40: -16 | AB40: -14 | AC40: -35 | AD40: -29 | AE40: -20 | AF40: -23 | AG40: -67 | AH40: -35 | AI40: -25 | AJ40: -69 | AK40: -26 | AL40: -34 | AM40: =(SUM(AM41:AM45))*1 -> -27 | AN40: =(SUM(AN41:AN45))*1 -> -32 | AO40: =(SUM(AO41:AO45))*1 -> -52
B41: (4.2.1) Retail | C41: -4 | D41: -4 | E41: -6 | F41: -7 | G41: 0 | H41: 2 | I41: 0 | J41: -4 | K41: -2 | L41: 2 | M41: 0 | N41: -10 | O41: 4 | P41: 1 | Q41: 0 | R41: -8 | S41: 0 | T41: 2 | U41: 0 | V41: -12 | W41: 2 | X41: 0 | Y41: -3 | Z41: -7 | AA41: -2 | AB41: 0 | AC41: -2 | AD41: -8 | AE41: -1 | AF41: -5 | AG41: -2 | AH41: -11 | AI41: -1 | AJ41: -2 | AK41: 0 | AL41: -5 | AM41: -3 | AN41: -4 | AO41: -5
B42: (4.2.2) Renováveis | C42: 0 | D42: 0 | E42: 0 | F42: 0 | G42: 0 | H42: 0 | I42: 0 | J42: 0 | K42: 0 | L42: 0 | M42: 0 | N42: 0 | O42: 0 | P42: 0 | Q42: 0 | R42: 0 | S42: 0 | T42: 0 | U42: 0 | V42: 0 | W42: 0 | X42: 0 | Y42: 0 | Z42: 0 | AA42: 0 | AB42: 0 | AC42: 0 | AD42: 0 | AE42: 0 | AF42: 0 | AG42: 0 | AH42: 0 | AI42: 0 | AJ42: 0 | AK42: 0 | AL42: 0 | AM42: 0 | AN42: 0 | AO42: 0
B43: (4.2.2) B2B | C43: -9 | D43: -11 | E43: -14 | F43: -4 | G43: -2 | H43: -3 | I43: -6 | J43: -3 | K43: -1 | L43: -5 | M43: -1 | N43: -4 | O43: -2 | P43: -1 | Q43: -9 | R43: -4 | S43: -3 | T43: 0 | U43: -1 | V43: -1 | W43: -4 | X43: 0 | Y43: -3 | Z43: -4 | AA43: -1 | AB43: -1 | AC43: -1 | AD43: -4 | AE43: -2 | AF43: -1 | AG43: -2 | AH43: -5 | AI43: -2 | AJ43: -1 | AK43: -1 | AL43: 0 | AM43: -4 | AN43: -2 | AO43: -20
B44: (4.2.3) Corporate | C44: -15 | D44: -26 | E44: -27 | F44: -11 | G44: -6 | H44: -3 | I44: -4 | J44: -11 | K44: -11 | L44: -14 | M44: -13 | N44: -13 | O44: -6 | P44: -7 | Q44: 3 | R44: -9 | S44: 2 | T44: -18 | U44: -2 | V44: -3 | W44: 3 | X44: 5 | Y44: -6 | Z44: -3 | AA44: -4 | AB44: -6 | AC44: -20 | AD44: -7 | AE44: -7 | AF44: -7 | AG44: -44 | AH44: -8 | AI44: -5 | AJ44: -41 | AK44: -3 | AL44: -7 | AM44: -6 | AN44: -5 | AO44: -10
B45: (4.2.4) Reconciliation with financial statements | C45: -132 | D45: -167 | E45: -90 | F45: -15 | G45: -17 | H45: -88 | I45: -8 | J45: -9 | K45: -8 | L45: -192 | M45: -43 | N45: -10 | O45: -9 | P45: -29 | Q45: -16 | R45: -20 | S45: -16 | T45: -42 | U45: -28 | V45: -49 | W45: -23 | X45: -229 | Y45: -22 | Z45: -21 | AA45: -9 | AB45: -7 | AC45: -12 | AD45: -10 | AE45: -10 | AF45: -10 | AG45: -19 | AH45: -11 | AI45: -17 | AJ45: -25 | AK45: -22 | AL45: -22 | AM45: -14 | AN45: -21 | AO45: -17
B46: (4.3) Other net revenue (expenses) | C46: =(SUM(C47:C51))*1 -> -601 | D46: -1470 | E46: -1669 | F46: -110 | G46: -57 | H46: 76 | I46: -193 | J46: -135 | K46: -162 | L46: 1082 | M46: -226 | N46: -137 | O46: -64 | P46: 72 | Q46: -520 | R46: 364 | S46: 400 | T46: -120 | U46: 2352 | V46: -60 | W46: 165 | X46: -20 | Y46: -800 | Z46: -464 | AA46: -167 | AB46: 145 | AC46: 443 | AD46: -23 | AE46: -99 | AF46: 19 | AG46: 3037 | AH46: 443 | AI46: 37 | AJ46: 4534 | AK46: -735 | AL46: 314 | AM46: =(SUM(AM47:AM51))*1 -> 274 | AN46: =(SUM(AN47:AN51))*1 -> 8 | AO46: =(SUM(AO47:AO51))*1 -> -283
B47: (4.3.1) Retail | C47: 139 | D47: 236 | E47: 225 | F47: 62 | G47: 56 | H47: 38 | I47: 30 | J47: 47 | K47: 11 | L47: 12 | M47: 78 | N47: 73 | O47: 34 | P47: 129 | Q47: 44 | R47: 125 | S47: 225 | T47: -47 | U47: -35 | V47: -146 | W47: -39 | X47: 1 | Y47: -30 | Z47: -356 | AA47: -337 | AB47: 194 | AC47: -104 | AD47: -122 | AE47: -66 | AF47: -161 | AG47: 1605 | AH47: -135 | AI47: -1 | AJ47: 305 | AK47: 10 | AL47: -19 | AM47: -15 | AN47: 54 | AO47: 635
B48: (4.3.2) Renováveis | C48: 0 | D48: 0 | E48: 0 | F48: 0 | G48: 0 | H48: 0 | I48: 0 | J48: 0 | K48: 0 | L48: 0 | M48: 0 | N48: 0 | O48: 0 | P48: 0 | Q48: 0 | R48: 0 | S48: 0 | T48: 0 | U48: 0 | V48: 0 | W48: 0 | X48: 0 | Y48: 0 | Z48: 0 | AA48: 0 | AB48: 0 | AC48: 0 | AD48: 0 | AE48: 0 | AF48: 0 | AG48: 0 | AH48: 0 | AI48: 0 | AJ48: 0 | AK48: 0 | AL48: 3 | AM48: -4 | AN48: 2 | AO48: 57
B49: (4.3.2) B2B | C49: 69 | D49: 65 | E49: 24 | F49: 17 | G49: 14 | H49: 31 | I49: -20 | J49: 4 | K49: 10 | L49: 4 | M49: 15 | N49: 26 | O49: -8 | P49: 79 | Q49: 15 | R49: 67 | S49: 120 | T49: -38 | U49: 27 | V49: -92 | W49: -31 | X49: -21 | Y49: -61 | Z49: -251 | AA49: -154 | AB49: 111 | AC49: -246 | AD49: 43 | AE49: 39 | AF49: 55 | AG49: 1545 | AH49: 62 | AI49: 68 | AJ49: 188 | AK49: 72 | AL49: 398 | AM49: 254 | AN49: 30 | AO49: 228
B50: (4.3.3) Corporate | C50: -517 | D50: -596 | E50: -405 | F50: -130 | G50: -119 | H50: -99 | I50: =(-537+348)*1 -> -189 | J50: -86 | K50: -100 | L50: -144 | M50: -191 | N50: -120 | O50: -131 | P50: -104 | Q50: -144 | R50: -88 | S50: 308 | T50: -47 | U50: 549 | V50: 103 | W50: 176 | X50: 123 | Y50: 53 | Z50: -23 | AA50: -23 | AB50: 117 | AC50: 909 | AD50: -8 | AE50: -37 | AF50: -3 | AG50: -7 | AH50: 505 | AI50: 39 | AJ50: 4070 | AK50: -25 | AL50: -5 | AM50: -22 | AN50: 32 | AO50: -10
B51: (4.3.4) Reconciliation with financial statements | C51: -292 | D51: -1175 | E51: -1513 | F51: -59 | G51: -8 | H51: 106 | I51: -14 | J51: -100 | K51: -83 | L51: 1210 | M51: -128 | N51: -116 | O51: 41 | P51: -32 | Q51: -435 | R51: 260 | S51: -253 | T51: 12 | U51: 1811 | V51: 75 | W51: 59 | X51: -123 | Y51: -762 | Z51: 166 | AA51: 347 | AB51: -277 | AC51: -116 | AD51: 64 | AE51: -35 | AF51: 128 | AG51: -106 | AH51: 11 | AI51: -69 | AJ51: -29 | AK51: -792 | AL51: -63 | AM51: 61 | AN51: -110 | AO51: -1193
B52: (5) Equity earnings | C52: =SUM(C53:C53) -> -2 | D52: 3 | E52: -1 | F52: -2 | G52: 0 | H52: 1 | I52: -1 | J52: -1 | K52: 0 | L52: -1 | M52: 1 | N52: 1 | O52: 0 | P52: 0 | Q52: 1 | R52: -1 | S52: -1 | T52: -1 | U52: 12 | V52: 7 | W52: 2 | X52: 76 | Y52: 27 | Z52: 17 | AA52: 14 | AB52: 16 | AC52: -51 | AD52: =SUM(AD53:AD53) -> -2 | AE52: =SUM(AE53:AE53) -> -26 | AF52: =SUM(AF53:AF53) -> -49 | AG52: =SUM(AG53:AG53) -> 41 | AH52: =SUM(AH53:AH53) -> -71 | AI52: 79 | AJ52: -30 | AK52: 122 | AL52: 29 | AM52: =SUM(AM53:AM53) -> -10 | AN52: =SUM(AN53:AN53) -> 44 | AO52: =SUM(AO53:AO53) -> 38
B53: (5.1) Reconciliation with financial statements | C53: -2 | D53: 3 | E53: -1 | F53: -2 | G53: 0 | H53: 1 | I53: -1 | J53: -1 | K53: 0 | L53: -1 | M53: 1 | N53: 1 | O53: 0 | P53: 0 | Q53: 1 | R53: -1 | S53: -1 | T53: -1 | U53: 12 | V53: 7 | W53: 2 | X53: 76 | Y53: 27 | Z53: 17 | AA53: 14 | AB53: 16 | AC53: -51 | AD53: -2 | AE53: -26 | AF53: -49 | AG53: 41 | AH53: -71 | AI53: 79 | AJ53: -30 | AK53: 122 | AL53: 29 | AM53: -10 | AN53: 44 | AO53: 38
B54: (6) Net finance income/loss | C54: =SUM(C55:C55) -> 290 | D54: -299 | E54: -622 | F54: -148 | G54: -88 | H54: -232 | I54: -89 | J54: -46 | K54: 269 | L54: 353 | M54: 1847 | N54: 272 | O54: 188 | P54: 1557 | Q54: -27 | R54: -96 | S54: 77 | T54: 22 | U54: 261 | V54: -118 | W54: -73 | X54: -48 | Y54: 807 | Z54: -449 | AA54: -614 | AB54: -564 | AC54: -404 | AD54: =SUM(AD55:AD55) -> -280 | AE54: =SUM(AE55:AE55) -> -341 | AF54: =SUM(AF55:AF55) -> -413 | AG54: =SUM(AG55:AG55) -> -50 | AH54: =SUM(AH55:AH55) -> -334 | AI54: -213 | AJ54: 131 | AK54: 185 | AL54: -671 | AM54: =SUM(AM55:AM55) -> -552 | AN54: =SUM(AN55:AN55) -> -647 | AO54: =SUM(AO55:AO55) -> -504
B55: (6.1) Reconciliation with financial statements | C55: 290 | D55: -299 | E55: -622 | F55: -148 | G55: -88 | H55: -232 | I55: =-557+468 -> -89 | J55: -46 | K55: 269 | L55: 353 | M55: 1847 | N55: 272 | O55: 188 | P55: 1557 | Q55: -27 | R55: -96 | S55: 77 | T55: 22 | U55: 261 | V55: -118 | W55: -73 | X55: -48 | Y55: 807 | Z55: -449 | AA55: -614 | AB55: -564 | AC55: -404 | AD55: -280 | AE55: -341 | AF55: -413 | AG55: -50 | AH55: -334 | AI55: -213 | AJ55: 131 | AK55: 185 | AL55: -671 | AM55: -552 | AN55: -647 | AO55: -504
B56: (7) Adjusted EBITDA | C56: =SUM(C57:C61) -> 3527 | D56: 3452 | E56: 2995 | F56: 647 | G56: 481 | H56: 1056 | I56: 883 | J56: 773 | K56: 508 | L56: 631 | M56: 646 | N56: 860 | O56: 506 | P56: 819 | Q56: 947 | R56: 545 | S56: 816 | T56: 834 | U56: 1616 | V56: 1182 | W56: 1018 | X56: 1185 | Y56: 1598 | Z56: 1090 | AA56: 1598 | AB56: 916 | AC56: 1507 | AD56: =SUM(AD57:AD61) -> 688 | AE56: =SUM(AE57:AE61) -> 910 | AF56: =SUM(AF57:AF61) -> 2333 | AG56: =SUM(AG57:AG61) -> 4919 | AH56: =SUM(AH57:AH61) -> 1945 | AI56: 1550 | AJ56: 6062 | AK56: 1307 | AL56: 2025 | AM56: =SUM(AM57:AM61) -> 1472 | AN56: =SUM(AN57:AN61) -> 1806 | AO56: =SUM(AO57:AO61) -> 2620
B57: (7.1) Retail | C57: 1639 | D57: 2406 | E57: 2538 | F57: 543 | G57: 365 | H57: 724 | I57: =(2329-1632)*1 -> 697 | J57: 493 | K57: 319 | L57: 263 | M57: 505 | N57: 563 | O57: 297 | P57: 491 | Q57: 668 | R57: 305 | S57: 283 | T57: 470 | U57: 651 | V57: 721 | W57: 434 | X57: 522 | Y57: 908 | Z57: 609 | AA57: 783 | AB57: 92 | AC57: 520 | AD57: 455 | AE57: 775 | AF57: 1400 | AG57: 2865 | AH57: 909 | AI57: 886 | AJ57: =(AJ28+AJ35+AJ41+AJ47)*1 -> 1327 | AK57: =(AK28+AK35+AK41+AK47)*1 -> 943 | AL57: =(AL28+AL35+AL41+AL47)*1 -> 993 | AM57: 652 | AN57: 1131 | AO57: 1849
B58: (7.2) Renováveis | C58: 0 | D58: 0 | E58: 0 | F58: 0 | G58: 0 | H58: 0 | I58: 0 | J58: 0 | K58: 0 | L58: 0 | M58: 0 | N58: 0 | O58: 0 | P58: 0 | Q58: 0 | R58: 0 | S58: 0 | T58: 0 | U58: 0 | V58: 0 | W58: 0 | X58: 0 | Y58: 0 | Z58: 0 | AA58: 0 | AB58: 0 | AC58: 0 | AD58: 0 | AE58: 0 | AF58: 0 | AG58: 0 | AH58: 0 | AI58: 0 | AJ58: 0 | AK58: 0 | AL58: =(AL29+AL36+AL42+AL48)*1 -> 213 | AM58: 224 | AN58: 171 | AO58: 232
B59: (7.2) B2B | C59: 2658 | D59: 1870 | E59: 1127 | F59: 292 | G59: 278 | H59: 475 | I59: 414 | J59: 439 | K59: 344 | L59: 555 | M59: 372 | N59: 468 | O59: 384 | P59: 496 | Q59: 460 | R59: 353 | S59: 235 | T59: 403 | U59: 490 | V59: 384 | W59: 471 | X59: 685 | Y59: 690 | Z59: 548 | AA59: 875 | AB59: 765 | AC59: 152 | AD59: 318 | AE59: 211 | AF59: 983 | AG59: 2167 | AH59: 576 | AI59: 689 | AJ59: =(AJ30+AJ37+AJ43+AJ49)*1 -> 769 | AK59: =(AK30+AK37+AK43+AK49)*1 -> 446 | AL59: =(AL30+AL37+AL43+AL49)*1 -> 906 | AM59: 715 | AN59: 563 | AO59: 677
B60: (7.3) Corporate | C60: -770 | D60: -824 | E60: -670 | F60: -188 | G60: -162 | H60: -143 | I60: -228 | J60: -159 | K60: -155 | L60: -187 | M60: -231 | N60: -171 | O60: -175 | P60: -168 | Q60: -181 | R60: -113 | S60: 298 | T60: -39 | U60: 475 | V60: 77 | W60: 113 | X60: -22 | Y60: 0 | Z60: -67 | AA60: -60 | AB60: 59 | AC60: 835 | AD60: -85 | AE60: -76 | AF60: -50 | AG60: -113 | AH60: 460 | AI60: -25 | AJ60: =(AJ31+AJ38+AJ44+AJ50)*1 -> 3966 | AK60: =(AK31+AK38+AK44+AK50)*1 -> -82 | AL60: =(AL31+AL38+AL44+AL50)*1 -> -87 | AM60: -119 | AN60: -59 | AO60: -138
B61: (7.4) Reconciliation with financial statements | C61: 0 | D61: 0 | E61: 0 | F61: 0 | G61: 0 | H61: 0 | I61: 0 | J61: 0 | K61: 0 | L61: 0 | M61: 0 | N61: 0 | O61: 0 | P61: 0 | Q61: 0 | R61: 0 | S61: 0 | T61: 0 | U61: 0 | V61: 0 | W61: 0 | X61: 0 | Y61: 0 | Z61: 0 | AA61: 0 | AB61: 0 | AC61: 0 | AD61: 0 | AE61: 0 | AF61: 0 | AG61: 0 | AH61: 0 | AI61: 0 | AJ61: 0 | AK61: 0 | AL61: 0 | AM61: 0 | AN61: 0 | AO61: 0
B62: (8) Net income (loss) before tax | C62: =C27+C34+C40+C46+C52+C54 -> 1546 | D62: -1935 | E62: -637 | F62: 276 | G62: 141 | H62: 602 | I62: 546 | J62: 410 | K62: 443 | L62: 1774 | M62: 2182 | N62: 761 | O62: 488 | P62: 2054 | Q62: 0 | R62: =R27+R34+R40+R46+R52+R54 -> 404 | S62: 332 | T62: 546 | U62: 3548 | V62: 759 | W62: 602 | X62: 451 | Y62: 1362 | Z62: 542 | AA62: 1065 | AB62: -300 | AC62: 623 | AD62: =AD27+AD34+AD40+AD46+AD52+AD54 -> 147 | AE62: =AE27+AE34+AE40+AE46+AE52+AE54 -> 183 | AF62: =AF27+AF34+AF40+AF46+AF52+AF54 -> 1670 | AG62: =AG27+AG34+AG40+AG46+AG52+AG54 -> 4459 | AH62: =AH27+AH34+AH40+AH46+AH52+AH54 -> 1224 | AI62: 1008 | AJ62: 5795 | AK62: 511 | AL62: 863 | AM62: =AM27+AM34+AM40+AM46+AM52+AM54 -> 471 | AN62: =AN27+AN34+AN40+AN46+AN52+AN54 -> 602 | AO62: =AO27+AO34+AO40+AO46+AO52+AO54 -> 516
B63: (8.1) Reconciliation with financial statements | C63: =C32+C39+C45+C51+C53+C55+C61 -> -1983 | D63: -5384 | E63: -3633 | F63: -373 | G63: -340 | H63: -453 | I63: -338 | J63: -364 | K63: -65 | L63: 1142 | M63: 1537 | N63: -98 | O63: -18 | P63: 1235 | Q63: -946 | R63: -142 | S63: -485 | T63: -289 | U63: 1944 | V63: -416 | W63: -414 | X63: -658 | Y63: -209 | Z63: -548 | AA63: -533 | AB63: -1216 | AC63: -884 | AD63: =AD32+AD39+AD45+AD51+AD53+AD55+AD61 -> -541 | AE63: =AE32+AE39+AE45+AE51+AE53+AE55+AE61 -> -727 | AF63: =AF32+AF39+AF45+AF51+AF53+AF55+AF61 -> -663 | AG63: =AG32+AG39+AG45+AG51+AG53+AG55+AG61 -> -460 | AH63: =AH32+AH39+AH45+AH51+AH53+AH55+AH61 -> -721 | AI63: -542 | AJ63: -267 | AK63: -796 | AL63: -1162 | AM63: =AM32+AM39+AM45+AM51+AM53+AM55+AM61 -> -1001 | AN63: =AN32+AN39+AN45+AN51+AN53+AN55+AN61 -> -1204 | AO63: =AO32+AO39+AO45+AO51+AO53+AO55+AO61 -> -2104
B65: Lucro antes dos impostos (02. DRE) | J65: ='2. Income Statement'!G27 -> 410 | K65: ='2. Income Statement'!H27 -> 443 | L65: ='2. Income Statement'!I27 -> 1774 | M65: ='2. Income Statement'!J27 -> 2182 | N65: ='2. Income Statement'!K27 -> 761 | O65: ='2. Income Statement'!L27 -> 488 | P65: ='2. Income Statement'!M27 -> 2054 | Q65: ='2. Income Statement'!N27 -> 0 | R65: ='2. Income Statement'!O27 -> 404 | S65: ='2. Income Statement'!P27 -> 332 | T65: ='2. Income Statement'!Q27 -> 546 | U65: ='2. Income Statement'!R27 -> 3548 | V65: ='2. Income Statement'!S27 -> 759 | W65: ='2. Income Statement'!T27 -> 602 | X65: ='2. Income Statement'!U27 -> 451 | Y65: ='2. Income Statement'!V27 -> 1362 | Z65: ='2. Income Statement'!W27 -> 542 | AA65: ='2. Income Statement'!X27 -> 1065 | AB65: ='2. Income Statement'!Y27 -> -300 | AC65: ='2. Income Statement'!Z27 -> 623 | AD65: ='2. Income Statement'!AA27 -> 147 | AE65: ='2. Income Statement'!AB27 -> 183 | AF65: ='2. Income Statement'!AC27 -> 1670 | AG65: ='2. Income Statement'!AD27 -> 4459 | AH65: ='2. Income Statement'!AE27 -> 1224 | AI65: ='2. Income Statement'!AF27 -> 1008 | AJ65: ='2. Income Statement'!AG27 -> 5795 | AK65: ='2. Income Statement'!AH27 -> 511 | AL65: ='2. Income Statement'!AI27 -> 863 | AM65: ='2. Income Statement'!AJ27 -> 471 | AN65: ='2. Income Statement'!AK27 -> 602 | AO65: ='2. Income Statement'!AL27 -> 516
B66: Check | J66: =J62-J65 -> 0 | K66: 0 | L66: 0 | M66: 0 | N66: 0 | O66: 0 | P66: 0 | Q66: 0 | R66: 0 | S66: 0 | T66: 0 | U66: 0 | V66: 0 | W66: 0 | X66: 0 | Y66: 0 | Z66: 0 | AA66: 0 | AB66: 0 | AC66: 0 | AD66: 0 | AE66: 0 | AF66: 0 | AG66: 0 | AH66: 0 | AI66: 0 | AJ66: 0 | AK66: 0 | AL66: =AL62-AL65 -> 0 | AM66: =AM62-AM65 -> 0 | AN66: =AN62-AN65 -> 0 | AO66: =AO62-AO65 -> 0

Sheet 06. Reconciliation
B3: 06. Reconciliation with the financial statements | C3: 2014 | D3: 2015 | E3: 2016 | F3: 1Q17 | G3: 2Q17 | H3: 3Q17 | I3: 4Q17 | J3: 1Q18 | K3: 2Q18 | L3: 3Q18 | M3: 4Q18 | N3: 1Q19 | O3: 2Q19 | P3: 3Q19 | Q3: 4Q19 | R3: 1Q20 | S3: 2Q20 | T3: 3Q20 | U3: 4Q20 | V3: 1Q21 | W3: 2Q21 | X3: 3Q21 | Y3: 4Q21 | Z3: 1Q22 | AA3: 2Q22 | AB3: 3Q22 | AC3: 4Q22 | AD3: 1Q23 | AE3: 2Q23 | AF3: 3Q23 | AG3: 4Q23 | AH3: 1Q24 | AI3: 2Q24 | AJ3: 3Q24 | AK3: 4Q24 | AL3: 1Q25 | AM3: 2Q25 | AN3: 3Q25 | AO3: 4Q25
B6: VIBRA ENERGIA - Consolidated (millions)
B7: (millions)
B9: Sales Revenue | C9: -348 | D9: -412 | E9: -542 | F9: -125 | G9: -140 | H9: -153 | I9: -127 | J9: -121 | K9: -136 | L9: -131 | M9: -134 | N9: -124 | O9: -115 | P9: -135 | Q9: -139 | R9: -150 | S9: -157 | T9: -148 | U9: -183 | V9: -193 | W9: -240 | X9: -188 | Y9: -184 | Z9: =Z10 -> -122 | AA9: -136 | AB9: -227 | AC9: -166 | AD9: -175 | AE9: -179 | AF9: -180 | AG9: -183 | AH9: =AH10 -> -172 | AI9: -188 | AJ9: -173 | AK9: -154 | AL9: -130 | AM9: -142 | AN9: -140 | AO9: -139
B10: Appropriation of advance bonuses granted to customers¹ | C10: -348 | D10: -412 | E10: -542 | F10: -125 | G10: -140 | H10: -153 | I10: -127 | J10: -121 | K10: -136 | L10: -131 | M10: -134 | N10: -124 | O10: -115 | P10: -135 | Q10: -139 | R10: -150 | S10: -157 | T10: -148 | U10: -183 | V10: -193 | W10: -240 | X10: -188 | Y10: -184 | Z10: -122 | AA10: -136 | AB10: -227 | AC10: -166 | AD10: -175 | AE10: -179 | AF10: -180 | AG10: -183 | AH10: -172 | AI10: -188 | AJ10: -173 | AK10: -154 | AL10: -130 | AM10: -142 | AN10: -140 | AO10: -139
B12: Marcação a Mercado | C12: -64 | D12: 0 | E12: -64 | F12: 0 | G12: -64 | H12: 0 | I12: -64 | J12: 0 | K12: -64 | L12: 0 | M12: -64 | N12: 0 | O12: -64 | P12: 0 | Q12: -64 | R12: 0 | S12: -64 | T12: 0 | U12: -64 | V12: 0 | W12: -64 | X12: 0 | Y12: -64 | Z12: 0 | AA12: -64 | AB12: 0 | AC12: -64 | AD12: -64 | AE12: 0 | AF12: -64 | AG12: 0 | AH12: 0 | AI12: -64 | AJ12: 0 | AK12: -64 | AL12: =AL13 -> -47 | AM12: =AM13 -> -64 | AN12: =AN13 -> -78 | AO12: =AO13 -> 8
B13: MTM - Compra e Venda Futura de Energia | C13: 0 | D13: 0 | E13: 0 | F13: 0 | G13: 0 | H13: 0 | I13: 0 | J13: 0 | K13: 0 | L13: 0 | M13: 0 | N13: 0 | O13: 0 | P13: 0 | Q13: 0 | R13: 0 | S13: 0 | T13: 0 | U13: 0 | V13: 0 | W13: 0 | X13: 0 | Y13: 0 | Z13: 0 | AA13: 0 | AB13: 0 | AC13: 0 | AD13: 0 | AE13: 0 | AF13: 0 | AG13: 0 | AH13: 0 | AI13: 0 | AJ13: 0 | AK13: 0 | AL13: -47 | AM13: -64 | AN13: -78 | AO13: 8
B15: Costs of products sold | C15: -10 | D15: -12 | E15: -12 | F15: -4 | G15: -3 | H15: -3 | I15: -3 | J15: -3 | K15: -3 | L15: -3 | M15: -3 | N15: -3 | O15: -3 | P15: -4 | Q15: -2 | R15: -3 | S15: -3 | T15: -3 | U15: 9 | V15: -3 | W15: -3 | X15: -3 | Y15: 0 | Z15: -3 | AA15: -3 | AB15: =SUM(AB16:AB18) -> -5 | AC15: -3 | AD15: -3 | AE15: -3 | AF15: -3 | AG15: -4 | AH15: -3 | AI15: -2 | AJ15: -3 | AK15: -3 | AL15: =SUM(AL16:AL19) -> -102 | AM15: =SUM(AM16:AM19) -> -107 | AN15: =SUM(AN16:AN19) -> -91 | AO15: =SUM(AO16:AO19) -> -109
B16: Depreciation and amortization | C16: -10 | D16: -12 | E16: -12 | F16: -4 | G16: -3 | H16: -3 | I16: -3 | J16: -3 | K16: -3 | L16: -3 | M16: -3 | N16: -3 | O16: -3 | P16: -4 | Q16: -2 | R16: -3 | S16: -3 | T16: -3 | U16: -4 | V16: -3 | W16: -3 | X16: -3 | Y16: -4 | Z16: -3 | AA16: -3 | AB16: -3 | AC16: -3 | AD16: -3 | AE16: -3 | AF16: -3 | AG16: -4 | AH16: -3 | AI16: -2 | AJ16: -3 | AK16: -3 | AL16: -102 | AM16: -107 | AN16: -91 | AO16: -109
B17: Actuarial remeasurement - Heath plan | C17: 0 | D17: 0 | E17: 0 | F17: 0 | G17: 0 | H17: 0 | I17: 0 | J17: 0 | K17: 0 | L17: 0 | M17: 0 | N17: 0 | O17: 0 | P17: 0 | Q17: 0 | R17: 0 | S17: 0 | T17: 0 | U17: 13 | V17: 0 | W17: 0 | X17: 0 | Y17: 4 | Z17: 0 | AA17: 0 | AB17: 0 | AC17: 0 | AD17: 0 | AE17: 0 | AF17: 0 | AG17: 0 | AH17: 0 | AI17: 0 | AJ17: 0 | AK17: 0 | AL17: 0 | AM17: 0 | AN17: 0 | AO17: 0
B18: Actuarial remeasurement/Debt Assumed - Flexprev Migration | C18: 0 | D18: 0 | E18: 0 | F18: 0 | G18: 0 | H18: 0 | I18: 0 | J18: 0 | K18: 0 | L18: 0 | M18: 0 | N18: 0 | O18: 0 | P18: 0 | Q18: 0 | R18: 0 | S18: 0 | T18: 0 | U18: 0 | V18: 0 | W18: 0 | X18: 0 | Y18: 0 | Z18: 0 | AA18: 0 | AB18: -2 | AC18: 0 | AD18: 0 | AE18: 0 | AF18: 0 | AG18: 0 | AH18: 0 | AI18: 0 | AJ18: 0 | AK18: 0 | AL18: 0 | AM18: 0 | AN18: 0 | AO18: 0
B20: General, administrative and sales | C20: -1489 | D20: -3322 | E20: -853 | F20: -20 | G20: -84 | H20: -84 | I20: -96 | J20: -84 | K20: -104 | L20: -94 | M20: -3 | N20: -118 | O20: -120 | P20: -122 | Q20: -328 | R20: -132 | S20: -132 | T20: -129 | U20: 62 | V20: -135 | W20: -136 | X20: -143 | Y20: =SUM(Y21:Y25) -> -75 | Z20: =SUM(Z21:Z25) -> -136 | AA20: =SUM(AA21:AA25) -> -132 | AB20: =SUM(AB21:AB26) -> -152 | AC20: =SUM(AC21:AC26) -> -132 | AD20: =SUM(AD21:AD25) -> -135 | AE20: -133 | AF20: -136 | AG20: -139 | AH20: -141 | AI20: -132 | AJ20: -138 | AK20: -133 | AL20: =SUM(AL21:AL27) -> -156 | AM20: =SUM(AM21:AM27) -> -173 | AN20: =SUM(AN21:AN27) -> -161 | AO20: =SUM(AO21:AO27) -> -188
B21: Depreciation and amortization | C21: -393 | D21: -459 | E21: -442 | F21: -108 | G21: -112 | H21: -113 | I21: -106 | J21: -103 | K21: -104 | L21: -99 | M21: -99 | N21: -125 | O21: -124 | P21: -123 | Q21: -144 | R21: -132 | S21: -133 | T21: -129 | U21: -130 | V21: -136 | W21: -137 | X21: -141 | Y21: -132 | Z21: -136 | AA21: -132 | AB21: -139 | AC21: -134 | AD21: -135 | AE21: -133 | AF21: -136 | AG21: -137 | AH21: -140 | AI21: -133 | AJ21: -137 | AK21: -133 | AL21: -140 | AM21: -156 | AN21: -178 | AO21: -185
B22: Expected credit losses² | C22: -1096 | D22: -2863 | E22: -411 | F22: 88 | G22: 28 | H22: 29 | I22: 10 | J22: 19 | K22: 0 | L22: 5 | M22: 96 | N22: 7 | O22: 4 | P22: 1 | Q22: 0 | R22: 0 | S22: 1 | T22: 0 | U22: 0 | V22: 1 | W22: 1 | X22: -2 | Y22: 0 | Z22: 0 | AA22: 0 | AB22: 6 | AC22: 2 | AD22: 0 | AE22: 0 | AF22: 0 | AG22: -2 | AH22: -1 | AI22: 1 | AJ22: -1 | AK22: 0 | AL22: 0 | AM22: 0 | AN22: 0 | AO22: 0
B23: Rescission funds from shutdown plans | C23: 0 | D23: 0 | E23: 0 | F23: 0 | G23: 0 | H23: 0 | I23: 0 | J23: 0 | K23: 0 | L23: 0 | M23: 0 | N23: 0 | O23: 0 | P23: 0 | Q23: -173 | R23: 0 | S23: 0 | T23: 0 | U23: 0 | V23: 0 | W23: 0 | X23: 0 | Y23: 0 | Z23: 0 | AA23: 0 | AB23: 0 | AC23: 0 | AD23: 0 | AE23: 0 | AF23: 0 | AG23: 0 | AH23: 0 | AI23: 0 | AJ23: 0 | AK23: 0 | AL23: 0 | AM23: 0 | AN23: 0 | AO23: 0
B24: Consulting expenses - Organizational Transformation Plan | C24: 0 | D24: 0 | E24: 0 | F24: 0 | G24: 0 | H24: 0 | I24: 0 | J24: 0 | K24: 0 | L24: 0 | M24: 0 | N24: 0 | O24: 0 | P24: 0 | Q24: -11 | R24: 0 | S24: 0 | T24: 0 | U24: 0 | V24: 0 | W24: 0 | X24: 0 | Y24: 0 | Z24: 0 | AA24: 0 | AB24: 0 | AC24: 0 | AD24: 0 | AE24: 0 | AF24: 0 | AG24: 0 | AH24: 0 | AI24: 0 | AJ24: 0 | AK24: 0 | AL24: 0 | AM24: 0 | AN24: 0 | AO24: 0
B25: Actuarial remeasurement - Heath plan | C25: 0 | D25: 0 | E25: 0 | F25: 0 | G25: 0 | H25: 0 | I25: 0 | J25: 0 | K25: 0 | L25: 0 | M25: 0 | N25: 0 | O25: 0 | P25: 0 | Q25: 0 | R25: 0 | S25: 0 | T25: 0 | U25: 192 | V25: 0 | W25: 0 | X25: 0 | Y25: 57 | Z25: 0 | AA25: 0 | AB25: 0 | AC25: 0 | AD25: 0 | AE25: 0 | AF25: 0 | AG25: 0 | AH25: 0 | AI25: 0 | AJ25: 0 | AK25: 0 | AL25: 0 | AM25: 0 | AN25: 0 | AO25: 0
B26: Actuarial remeasurement/Debt Assumed - Flexprev Migration | C26: 0 | D26: 0 | E26: 0 | F26: 0 | G26: 0 | H26: 0 | I26: 0 | J26: 0 | K26: 0 | L26: 0 | M26: 0 | N26: 0 | O26: 0 | P26: 0 | Q26: 0 | R26: 0 | S26: 0 | T26: 0 | U26: 0 | V26: 0 | W26: 0 | X26: 0 | Y26: 0 | Z26: 0 | AA26: 0 | AB26: -19 | AC26: 0 | AD26: 0 | AE26: 0 | AF26: 0 | AG26: 0 | AH26: 0 | AI26: 0 | AJ26: 0 | AK26: 0 | AL26: 0 | AM26: 0 | AN26: 0 | AO26: 0
B27: Custo de retenção - despesas não recorrentes com plano de daúde | C27: 0 | D27: 0 | E27: 0 | F27: 0 | G27: 0 | H27: 0 | I27: 0 | J27: 0 | K27: 0 | L27: 0 | M27: 0 | N27: 0 | O27: 0 | P27: 0 | Q27: 0 | R27: 0 | S27: 0 | T27: 0 | U27: 0 | V27: 0 | W27: 0 | X27: 0 | Y27: 0 | Z27: 0 | AA27: 0 | AB27: 0 | AC27: 0 | AD27: 0 | AE27: 0 | AF27: 0 | AG27: 0 | AH27: 0 | AI27: 0 | AJ27: 0 | AK27: 0 | AL27: -16 | AM27: -17 | AN27: 17 | AO27: -3
B29: Tax³ | C29: -132 | D29: -167 | E29: -90 | F29: -15 | G29: -17 | H29: -88 | I29: -8 | J29: -9 | K29: -8 | L29: -192 | M29: -43 | N29: -10 | O29: -9 | P29: -29 | Q29: -16 | R29: -20 | S29: -16 | T29: -42 | U29: -28 | V29: -49 | W29: -23 | X29: -229 | Y29: =SUM(Y30:Y32) -> -22 | Z29: -21 | AA29: -9 | AB29: -7 | AC29: -12 | AD29: -10 | AE29: -10 | AF29: -10 | AG29: -19 | AH29: =SUM(AH30:AH32) -> -11 | AI29: -17 | AJ29: -25 | AK29: -22 | AL29: -22 | AM29: -14 | AN29: =SUM(AN30:AN32) -> -21 | AO29: -17
B30: Tax amnesties | C30: 0 | D30: -122 | E30: -6 | F30: 0 | G30: -3 | H30: -77 | I30: 0 | J30: -2 | K30: 0 | L30: -187 | M30: -4 | N30: 0 | O30: 0 | P30: 0 | Q30: -4 | R30: -11 | S30: 0 | T30: 0 | U30: -9 | V30: -41 | W30: -21 | X30: -223 | Y30: -3 | Z30: -10 | AA30: 0 | AB30: 0 | AC30: -3 | AD30: 0 | AE30: 0 | AF30: 0 | AG30: -7 | AH30: -3 | AI30: -1 | AJ30: -7 | AK30: -1 | AL30: -4 | AM30: 0 | AN30: 0 | AO30: -1
B31: Tax charges | C31: -132 | D31: -45 | E31: -84 | F31: -15 | G31: -14 | H31: -11 | I31: -8 | J31: -7 | K31: -8 | L31: -5 | M31: -39 | N31: -10 | O31: -9 | P31: -29 | Q31: -12 | R31: -9 | S31: -16 | T31: -42 | U31: -19 | V31: -6 | W31: -4 | X31: -6 | Y31: -19 | Z31: -11 | AA31: -9 | AB31: -7 | AC31: -9 | AD31: -10 | AE31: -10 | AF31: -10 | AG31: -12 | AH31: -8 | AI31: -16 | AJ31: -18 | AK31: -21 | AL31: -18 | AM31: -14 | AN31: -21 | AO31: -16
B32: Tax charges on disposal revenue - Pecém and Muricy | C32: 0 | D32: 0 | E32: 0 | F32: 0 | G32: 0 | H32: 0 | I32: 0 | J32: 0 | K32: 0 | L32: 0 | M32: 0 | N32: 0 | O32: 0 | P32: 0 | Q32: 0 | R32: 0 | S32: 0 | T32: 0 | U32: 0 | V32: -2 | W32: 2 | X32: 0 | Y32: 0 | Z32: 0 | AA32: 0 | AB32: 0 | AC32: 0 | AD32: 0 | AE32: 0 | AF32: 0 | AG32: 0 | AH32: 0 | AI32: 0 | AJ32: 0 | AK32: 0 | AL32: 0 | AM32: 0 | AN32: 0 | AO32: 0
B34: Other net revenue (expenses) | C34: -292 | D34: -1175 | E34: -1513 | F34: -59 | G34: -8 | H34: 106 | I34: -14 | J34: -100 | K34: -83 | L34: 1210 | M34: -128 | N34: =SUM(N35:N55) -> -116 | O34: =SUM(O35:O55) -> 41 | P34: =SUM(P35:P55) -> -32 | Q34: =SUM(Q35:Q55) -> -435 | R34: 260 | S34: -253 | T34: 12 | U34: 1811 | V34: 75 | W34: 59 | X34: -123 | Y34: =SUM(Y35:Y55) -> -762 | Z34: 166 | AA34: 347 | AB34: -277 | AC34: -116 | AD34: 64 | AE34: -35 | AF34: 128 | AG34: -106 | AH34: =SUM(AH35:AH55) -> 11 | AI34: -69 | AJ34: -29 | AK34: -792 | AL34: -63 | AM34: 61 | AN34: =SUM(AN35:AN55) -> -110 | AO34: -1193
B35: Judicial losses and provisions | C35: -111 | D35: -785 | E35: -1079 | F35: -80 | G35: -101 | H35: 77 | I35: -15 | J35: -78 | K35: -89 | L35: 1210 | M35: -52 | N35: -55 | O35: -31 | P35: -9 | Q35: -14 | R35: -26 | S35: 68 | T35: -16 | U35: 23 | V35: -32 | W35: 54 | X35: -44 | Y35: -904 | Z35: -92 | AA35: 6 | AB35: -58 | AC35: -37 | AD35: -28 | AE35: -35 | AF35: -60 | AG35: -160 | AH35: 28 | AI35: -51 | AJ35: -56 | AK35: -49 | AL35: -58 | AM35: -69 | AN35: -111 | AO35: -109
B36: Shutdown plans | C36: -158 | D36: -92 | E36: -434 | F36: 21 | G36: 93 | H36: 29 | I36: 1 | J36: -22 | K36: 6 | L36: 0 | M36: -76 | N36: 3 | O36: 13 | P36: 3 | Q36: -330 | R36: 3 | S36: -1 | T36: 0 | U36: 0 | V36: 0 | W36: 0 | X36: 0 | Y36: 0 | Z36: 0 | AA36: 0 | AB36: 0 | AC36: 0 | AD36: 0 | AE36: 0 | AF36: 0 | AG36: 0 | AH36: 0 | AI36: 0 | AJ36: 0 | AK36: 0 | AL36: 0 | AM36: 0 | AN36: 0 | AO36: 0
B37: Lava-jato | C37: -23 | D37: 0 | E37: 0 | F37: 0 | G37: 0 | H37: 0 | I37: 0 | J37: 0 | K37: 0 | L37: 0 | M37: 0 | N37: 0 | O37: 0 | P37: 0 | Q37: 0 | R37: 0 | S37: 0 | T37: 0 | U37: 0 | V37: 0 | W37: 0 | X37: 0 | Y37: 0 | Z37: 0 | AA37: 0 | AB37: 0 | AC37: 0 | AD37: 0 | AE37: 0 | AF37: 0 | AG37: 0 | AH37: 0 | AI37: 0 | AJ37: 0 | AK37: 0 | AL37: 0 | AM37: 0 | AN37: 0 | AO37: 0
B38: Impairment | C38: 0 | D38: -298 | E38: 0 | F38: 0 | G38: 0 | H38: 0 | I38: 0 | J38: 0 | K38: 0 | L38: 0 | M38: 0 | N38: 0 | O38: 0 | P38: 0 | Q38: 0 | R38: 0 | S38: 0 | T38: 0 | U38: 0 | V38: 0 | W38: 0 | X38: 0 | Y38: 0 | Z38: 0 | AA38: 0 | AB38: 0 | AC38: 0 | AD38: 0 | AE38: 0 | AF38: 0 | AG38: 0 | AH38: 0 | AI38: 0 | AJ38: 0 | AK38: 0 | AL38: 0 | AM38: 0 | AN38: 0 | AO38: 0
B39: Salary renegotiation allowance - Organizational Transformation Plan | C39: 0 | D39: 0 | E39: 0 | F39: 0 | G39: 0 | H39: 0 | I39: 0 | J39: 0 | K39: 0 | L39: 0 | M39: 0 | N39: 0 | O39: 0 | P39: 0 | Q39: -55 | R39: -9 | S39: -12 | T39: -12 | U39: -30 | V39: 0 | W39: 0 | X39: 8 | Y39: 0 | Z39: 0 | AA39: 0 | AB39: 0 | AC39: 0 | AD39: 0 | AE39: 0 | AF39: 0 | AG39: 0 | AH39: 0 | AI39: 0 | AJ39: 0 | AK39: 0 | AL39: 0 | AM39: 0 | AN39: 0 | AO39: 0
B40: Commodity hedges - imports in progress | C40: 0 | D40: 0 | E40: 0 | F40: 0 | G40: 0 | H40: 0 | I40: 0 | J40: 0 | K40: 0 | L40: 0 | M40: 0 | N40: -64 | O40: 59 | P40: -26 | Q40: -36 | R40: 292 | S40: -308 | T40: 75 | U40: -109 | V40: 61 | W40: 5 | X40: -33 | Y40: 23 | Z40: -258 | AA40: 352 | AB40: -104 | AC40: -79 | AD40: 92 | AE40: 0 | AF40: -16 | AG40: 42 | AH40: -17 | AI40: -18 | AJ40: 27 | AK40: -38 | AL40: -5 | AM40: 35 | AN40: 1 | AO40: -31
B41: Result with disposal - Pecém and Muricy | C41: 0 | D41: 0 | E41: 0 | F41: 0 | G41: 0 | H41: 0 | I41: 0 | J41: 0 | K41: 0 | L41: 0 | M41: 0 | N41: 0 | O41: 0 | P41: 0 | Q41: 0 | R41: 0 | S41: 0 | T41: 0 | U41: 0 | V41: 46 | W41: 0 | X41: 0 | Y41: 0 | Z41: 0 | AA41: 0 | AB41: 0 | AC41: 0 | AD41: 0 | AE41: 0 | AF41: 0 | AG41: 0 | AH41: 0 | AI41: 0 | AJ41: 0 | AK41: 0 | AL41: 0 | AM41: 0 | AN41: 0 | AO41: 0
B42: Result with disposal - Stratura | C42: 0 | D42: 0 | E42: 0 | F42: 0 | G42: 0 | H42: 0 | I42: 0 | J42: 0 | K42: 0 | L42: 0 | M42: 0 | N42: 0 | O42: 0 | P42: 0 | Q42: 0 | R42: 0 | S42: 0 | T42: -152 | U42: 0 | V42: 0 | W42: 0 | X42: 0 | Y42: 0 | Z42: 0 | AA42: 0 | AB42: 0 | AC42: 0 | AD42: 0 | AE42: 0 | AF42: 0 | AG42: 0 | AH42: 0 | AI42: 0 | AJ42: 0 | AK42: 0 | AL42: 0 | AM42: 0 | AN42: 0 | AO42: 0
B43: Result with disposal - ESGás | C43: 0 | D43: 0 | E43: 0 | F43: 0 | G43: 0 | H43: 0 | I43: 0 | J43: 0 | K43: 0 | L43: 0 | M43: 0 | N43: 0 | O43: 0 | P43: 0 | Q43: 0 | R43: 0 | S43: 0 | T43: 0 | U43: 0 | V43: 0 | W43: 0 | X43: 0 | Y43: 0 | Z43: 0 | AA43: 0 | AB43: 0 | AC43: 0 | AD43: 0 | AE43: 0 | AF43: 564 | AG43: 0 | AH43: 0 | AI43: 0 | AJ43: 0 | AK43: 0 | AL43: 0 | AM43: 0 | AN43: 0 | AO43: 0
B44: Provision for out-of-court settlements | C44: 0 | D44: 0 | E44: 0 | F44: 0 | G44: 0 | H44: 0 | I44: 0 | J44: 0 | K44: 0 | L44: 0 | M44: 0 | N44: 0 | O44: 0 | P44: 0 | Q44: 0 | R44: 0 | S44: 0 | T44: 0 | U44: 0 | V44: 0 | W44: 0 | X44: 0 | Y44: 0 | Z44: 0 | AA44: 0 | AB44: 0 | AC44: 0 | AD44: 0 | AE44: 0 | AF44: -360 | AG44: 0 | AH44: 0 | AI44: 0 | AJ44: 0 | AK44: 0 | AL44: 0 | AM44: 0 | AN44: 0 | AO44: 0
B45: Outcome of the control acquisition process - Equity interest | C45: 0 | D45: 0 | E45: 0 | F45: 0 | G45: 0 | H45: 0 | I45: 0 | J45: 0 | K45: 0 | L45: 0 | M45: 0 | N45: 0 | O45: 0 | P45: 0 | Q45: 0 | R45: 0 | S45: 0 | T45: 0 | U45: 0 | V45: 0 | W45: 0 | X45: 0 | Y45: 0 | Z45: 0 | AA45: 0 | AB45: 0 | AC45: 0 | AD45: 0 | AE45: 0 | AF45: 0 | AG45: 12 | AH45: 0 | AI45: 0 | AJ45: 0 | AK45: 0 | AL45: 0 | AM45: 0 | AN45: 0 | AO45: 0
B46: Indemnity gain from the concession contract GAS ES | C46: 0 | D46: 0 | E46: 0 | F46: 0 | G46: 0 | H46: 0 | I46: 0 | J46: 0 | K46: 0 | L46: 0 | M46: 0 | N46: 0 | O46: 0 | P46: 0 | Q46: 0 | R46: 0 | S46: 0 | T46: 117 | U46: 0 | V46: 0 | W46: 0 | X46: 0 | Y46: 0 | Z46: 0 | AA46: 0 | AB46: 0 | AC46: 0 | AD46: 0 | AE46: 0 | AF46: 0 | AG46: 0 | AH46: 0 | AI46: 0 | AJ46: 0 | AK46: 0 | AL46: 0 | AM46: 0 | AN46: 0 | AO46: 0
B47: Actuarial remeasurement - Heath plan | C47: 0 | D47: 0 | E47: 0 | F47: 0 | G47: 0 | H47: 0 | I47: 0 | J47: 0 | K47: 0 | L47: 0 | M47: 0 | N47: 0 | O47: 0 | P47: 0 | Q47: 0 | R47: 0 | S47: 0 | T47: 0 | U47: 1927 | V47: 0 | W47: 0 | X47: 0 | Y47: 119 | Z47: 0 | AA47: 0 | AB47: 0 | AC47: 0 | AD47: 0 | AE47: 0 | AF47: 0 | AG47: 0 | AH47: 0 | AI47: 0 | AJ47: 0 | AK47: 0 | AL47: 0 | AM47: 0 | AN47: 0 | AO47: 0
B48: Actuarial remeasurement/assumed debt - Flexprev Migration | C48: 0 | D48: 0 | E48: 0 | F48: 0 | G48: 0 | H48: 0 | I48: 0 | J48: 0 | K48: 0 | L48: 0 | M48: 0 | N48: 0 | O48: 0 | P48: 0 | Q48: 0 | R48: 0 | S48: 0 | T48: 0 | U48: 0 | V48: 0 | W48: 0 | X48: 0 | Y48: 0 | Z48: 0 | AA48: 0 | AB48: -115 | AC48: 0 | AD48: 0 | AE48: 0 | AF48: 0 | AG48: 0 | AH48: 0 | AI48: 0 | AJ48: 0 | AK48: 0 | AL48: 0 | AM48: 0 | AN48: 0 | AO48: 0
B49: Income on the sale - Brasil Carbonos | C49: 0 | D49: 0 | E49: 0 | F49: 0 | G49: 0 | H49: 0 | I49: 0 | J49: 0 | K49: 0 | L49: 0 | M49: 0 | N49: 0 | O49: 0 | P49: 0 | Q49: 0 | R49: 0 | S49: 0 | T49: 0 | U49: 0 | V49: 0 | W49: 0 | X49: -54 | Y49: 0 | Z49: 0 | AA49: 0 | AB49: 0 | AC49: 0 | AD49: 0 | AE49: 0 | AF49: 0 | AG49: 0 | AH49: 0 | AI49: 0 | AJ49: 0 | AK49: 0 | AL49: 0 | AM49: 0 | AN49: 0 | AO49: 0
B50: Result of the incorporation process of Vem Conveniência - JV with Lojas Americanas | C50: 0 | D50: 0 | E50: 0 | F50: 0 | G50: 0 | H50: 0 | I50: 0 | J50: 0 | K50: 0 | L50: 0 | M50: 0 | N50: 0 | O50: 0 | P50: 0 | Q50: 0 | R50: 0 | S50: 0 | T50: 0 | U50: 0 | V50: 0 | W50: 0 | X50: 0 | Y50: 0 | Z50: 447 | AA50: 0 | AB50: 0 | AC50: 0 | AD50: 0 | AE50: 0 | AF50: 0 | AG50: 0 | AH50: 0 | AI50: 0 | AJ50: 0 | AK50: 0 | AL50: 0 | AM50: 0 | AN50: 0 | AO50: 0
B51: Desfazimento de Participação Societária - ZegBiogas | C51: 0 | D51: 0 | E51: 0 | F51: 0 | G51: 0 | H51: 0 | I51: 0 | J51: 0 | K51: 0 | L51: 0 | M51: 0 | N51: 0 | O51: 0 | P51: 0 | Q51: 0 | R51: 0 | S51: 0 | T51: 0 | U51: 0 | V51: 0 | W51: 0 | X51: 0 | Y51: 0 | Z51: 0 | AA51: 0 | AB51: 0 | AC51: 0 | AD51: 0 | AE51: 0 | AF51: 0 | AG51: 0 | AH51: 0 | AI51: 0 | AJ51: 0 | AK51: 0 | AL51: 0 | AM51: 95 | AN51: 0 | AO51: 0
B52: Result of the contribution of Vibra Comercializadora de Energia to Comerc Participações S.A. | C52: 0 | D52: 0 | E52: 0 | F52: 0 | G52: 0 | H52: 0 | I52: 0 | J52: 0 | K52: 0 | L52: 0 | M52: 0 | N52: 0 | O52: 0 | P52: 0 | Q52: 0 | R52: 0 | S52: 0 | T52: 0 | U52: 0 | V52: 0 | W52: 0 | X52: 0 | Y52: 0 | Z52: 69 | AA52: -11 | AB52: 0 | AC52: 0 | AD52: 0 | AE52: 0 | AF52: 0 | AG52: 0 | AH52: 0 | AI52: 0 | AJ52: 0 | AK52: 0 | AL52: 0 | AM52: 0 | AN52: 0 | AO52: 0
B53: Fair Value – Available for Sale – Evolua | C53: 0 | D53: 0 | E53: 0 | F53: 0 | G53: 0 | H53: 0 | I53: 0 | J53: 0 | K53: 0 | L53: 0 | M53: 0 | N53: 0 | O53: 0 | P53: 0 | Q53: 0 | R53: 0 | S53: 0 | T53: 0 | U53: 0 | V53: 0 | W53: 0 | X53: 0 | Y53: 0 | Z53: 0 | AA53: 0 | AB53: 0 | AC53: 0 | AD53: 0 | AE53: 0 | AF53: 0 | AG53: 0 | AH53: 0 | AI53: 0 | AJ53: 0 | AK53: 0 | AL53: 0 | AM53: 0 | AN53: 0 | AO53: -55
B54: Impairment | C54: 0 | D54: 0 | E54: 0 | F54: 0 | G54: 0 | H54: 0 | I54: 0 | J54: 0 | K54: 0 | L54: 0 | M54: 0 | N54: 0 | O54: 0 | P54: 0 | Q54: 0 | R54: 0 | S54: 0 | T54: 0 | U54: 0 | V54: 0 | W54: 0 | X54: 0 | Y54: 0 | Z54: 0 | AA54: 0 | AB54: 0 | AC54: 0 | AD54: 0 | AE54: 0 | AF54: 0 | AG54: 0 | AH54: 0 | AI54: 0 | AJ54: 0 | AK54: -705 | AL54: 0 | AM54: 0 | AN54: 0 | AO54: -998
B56: Net finance income | C56: ='05. Segment Reporting'!C54 -> 290 | D56: ='05. Segment Reporting'!D54 -> -299 | E56: ='05. Segment Reporting'!E54 -> -622 | F56: ='05. Segment Reporting'!F54 -> -148 | G56: ='05. Segment Reporting'!G54 -> -88 | H56: ='05. Segment Reporting'!H54 -> -232 | I56: ='05. Segment Reporting'!I54 -> -89 | J56: ='05. Segment Reporting'!J54 -> -46 | K56: ='05. Segment Reporting'!K54 -> 269 | L56: ='05. Segment Reporting'!L54 -> 353 | M56: ='05. Segment Reporting'!M54 -> 1847 | N56: ='05. Segment Reporting'!N54 -> 272 | O56: ='05. Segment Reporting'!O54 -> 188 | P56: ='05. Segment Reporting'!P54 -> 1557 | Q56: ='05. Segment Reporting'!Q54 -> -27 | R56: ='05. Segment Reporting'!R54 -> -96 | S56: ='05. Segment Reporting'!S54 -> 77 | T56: ='05. Segment Reporting'!T54 -> 22 | U56: ='05. Segment Reporting'!U54 -> 261 | V56: ='05. Segment Reporting'!V54 -> -118 | W56: ='05. Segment Reporting'!W54 -> -73 | X56: ='05. Segment Reporting'!X54 -> -48 | Y56: ='05. Segment Reporting'!Y54 -> 807 | Z56: ='05. Segment Reporting'!Z54 -> -449 | AA56: ='05. Segment Reporting'!AA54 -> -614 | AB56: ='05. Segment Reporting'!AB54 -> -564 | AC56: ='05. Segment Reporting'!AC54 -> -404 | AD56: ='05. Segment Reporting'!AD54 -> -280 | AE56: ='05. Segment Reporting'!AE54 -> -341 | AF56: ='05. Segment Reporting'!AF54 -> -413 | AG56: ='05. Segment Reporting'!AG54 -> -50 | AH56: ='05. Segment Reporting'!AH54 -> -334 | AI56: ='05. Segment Reporting'!AI54 -> -213 | AJ56: ='05. Segment Reporting'!AJ54 -> 131 | AK56: ='05. Segment Reporting'!AK54 -> 185 | AL56: ='05. Segment Reporting'!AL54 -> -671 | AM56: ='05. Segment Reporting'!AM54 -> -552 | AN56: ='05. Segment Reporting'!AN54 -> -647 | AO56: ='05. Segment Reporting'!AO54 -> -504
B58: Equity earnings | C58: ='05. Segment Reporting'!C52 -> -2 | D58: ='05. Segment Reporting'!D52 -> 3 | E58: ='05. Segment Reporting'!E52 -> -1 | F58: ='05. Segment Reporting'!F52 -> -2 | G58: ='05. Segment Reporting'!G52 -> 0 | H58: ='05. Segment Reporting'!H52 -> 1 | I58: ='05. Segment Reporting'!I52 -> -1 | J58: ='05. Segment Reporting'!J52 -> -1 | K58: ='05. Segment Reporting'!K52 -> 0 | L58: ='05. Segment Reporting'!L52 -> -1 | M58: ='05. Segment Reporting'!M52 -> 1 | N58: ='05. Segment Reporting'!N52 -> 1 | O58: ='05. Segment Reporting'!O52 -> 0 | P58: ='05. Segment Reporting'!P52 -> 0 | Q58: ='05. Segment Reporting'!Q52 -> 1 | R58: ='05. Segment Reporting'!R52 -> -1 | S58: ='05. Segment Reporting'!S52 -> -1 | T58: ='05. Segment Reporting'!T52 -> -1 | U58: ='05. Segment Reporting'!U52 -> 12 | V58: ='05. Segment Reporting'!V52 -> 7 | W58: ='05. Segment Reporting'!W52 -> 2 | X58: ='05. Segment Reporting'!X52 -> 76 | Y58: ='05. Segment Reporting'!Y52 -> 27 | Z58: ='05. Segment Reporting'!Z52 -> 17 | AA58: ='05. Segment Reporting'!AA52 -> 14 | AB58: ='05. Segment Reporting'!AB52 -> 16 | AC58: ='05. Segment Reporting'!AC52 -> -51 | AD58: ='05. Segment Reporting'!AD52 -> -2 | AE58: ='05. Segment Reporting'!AE52 -> -26 | AF58: ='05. Segment Reporting'!AF52 -> -49 | AG58: ='05. Segment Reporting'!AG52 -> 41 | AH58: ='05. Segment Reporting'!AH52 -> -71 | AI58: ='05. Segment Reporting'!AI52 -> 79 | AJ58: ='05. Segment Reporting'!AJ52 -> -30 | AK58: ='05. Segment Reporting'!AK52 -> 122 | AL58: ='05. Segment Reporting'!AL52 -> 29 | AM58: ='05. Segment Reporting'!AM52 -> -10 | AN58: ='05. Segment Reporting'!AN52 -> 44 | AO58: ='05. Segment Reporting'!AO52 -> 38
B60: TOTAL | C60: =C9+C15+C20+C29+C34+C56+C58 -> -1983 | D60: -5384 | E60: -3633 | F60: -373 | G60: -340 | H60: -453 | I60: -338 | J60: -364 | K60: -65 | L60: 1142 | M60: 1537 | N60: -98 | O60: -18 | P60: 1235 | Q60: -946 | R60: -142 | S60: -485 | T60: -289 | U60: 1944 | V60: -416 | W60: -414 | X60: -658 | Y60: -209 | Z60: -548 | AA60: -533 | AB60: -1216 | AC60: -884 | AD60: =AD9+AD15+AD20+AD29+AD34+AD56+AD58 -> -541 | AE60: -727 | AF60: -663 | AG60: -460 | AH60: -721 | AI60: -542 | AJ60: -267 | AK60: =(AK9+AK15+AK20+AK29+AK34+AK56+AK58)+1 -> -796 | AL60: =SUM(AL58,AL56,AL34,AL29,AL20,AL15,AL12,AL9) -> -1162 | AM60: =SUM(AM58,AM56,AM34,AM29,AM20,AM15,AM12,AM9) -> -1001 | AN60: =SUM(AN58,AN56,AN34,AN29,AN20,AN15,AN12,AN9) -> -1204 | AO60: =SUM(AO58,AO56,AO34,AO29,AO20,AO15,AO12,AO9) -> -2104
B62: Check - (8.1) Reconciliation with DC (Result by Segment) | C62: ='05. Segment Reporting'!C63 -> -1983 | D62: ='05. Segment Reporting'!D63 -> -5384 | E62: ='05. Segment Reporting'!E63 -> -3633 | F62: ='05. Segment Reporting'!F63 -> -373 | G62: ='05. Segment Reporting'!G63 -> -340 | H62: ='05. Segment Reporting'!H63 -> -453 | I62: ='05. Segment Reporting'!I63 -> -338 | J62: ='05. Segment Reporting'!J63 -> -364 | K62: ='05. Segment Reporting'!K63 -> -65 | L62: ='05. Segment Reporting'!L63 -> 1142 | M62: ='05. Segment Reporting'!M63 -> 1537 | N62: ='05. Segment Reporting'!N63 -> -98 | O62: ='05. Segment Reporting'!O63 -> -18 | P62: ='05. Segment Reporting'!P63 -> 1235 | Q62: ='05. Segment Reporting'!Q63 -> -946 | R62: ='05. Segment Reporting'!R63 -> -142 | S62: ='05. Segment Reporting'!S63 -> -485 | T62: ='05. Segment Reporting'!T63 -> -289 | U62: ='05. Segment Reporting'!U63 -> 1944 | V62: ='05. Segment Reporting'!V63 -> -416 | W62: ='05. Segment Reporting'!W63 -> -414 | X62: ='05. Segment Reporting'!X63 -> -658 | Y62: ='05. Segment Reporting'!Y63 -> -209 | Z62: ='05. Segment Reporting'!Z63 -> -548 | AA62: ='05. Segment Reporting'!AA63 -> -533 | AB62: ='05. Segment Reporting'!AB63 -> -1216 | AC62: ='05. Segment Reporting'!AC63 -> -884 | AD62: ='05. Segment Reporting'!AD63 -> -541 | AE62: ='05. Segment Reporting'!AE63 -> -727 | AF62: ='05. Segment Reporting'!AF63 -> -663 | AG62: ='05. Segment Reporting'!AG63 -> -460 | AH62: ='05. Segment Reporting'!AH63 -> -721 | AI62: ='05. Segment Reporting'!AI63 -> -542 | AJ62: ='05. Segment Reporting'!AJ63 -> -267 | AK62: ='05. Segment Reporting'!AK63 -> -796 | AL62: ='05. Segment Reporting'!AL63 -> -1162 | AM62: ='05. Segment Reporting'!AM63 -> -1001 | AN62: ='05. Segment Reporting'!AN63 -> -1204 | AO62: ='05. Segment Reporting'!AO63 -> -2104
B63: Check | C63: =C60-C62 -> 0 | D63: 0 | E63: 0 | F63: 0 | G63: 0 | H63: 0 | I63: 0 | J63: 0 | K63: 0 | L63: 0 | M63: 0 | N63: 0 | O63: 0 | P63: 0 | Q63: 0 | R63: 0 | S63: 0 | T63: 0 | U63: 0 | V63: 0 | W63: 0 | X63: 0 | Y63: 0 | Z63: 0 | AA63: 0 | AB63: 0 | AC63: 0 | AD63: 0 | AE63: 0 | AF63: 0 | AG63: 0 | AH63: 0 | AI63: 0 | AJ63: 0 | AK63: 0 | AL63: 0 | AM63: =AM60-AM62 -> 0 | AN63: =AN60-AN62 -> 0 | AO63: =AO60-AO62 -> 0
B65: Observations
B66: ¹ Sales revenues are adjusted by the advance bonuses granted to dealers of service stations for which the Company distributes fuels and lubricants. They correspond to the portion made available, mainly in kind and carried out under pre-established conditions with such parts, which once fulfilled, become unenforceable and are absorbed as an expense by the Company. It is a system of goals that, once achieved, exempts customers, resellers of service stations, from returning to the Company these anticipated amounts as a bonus. They are recognized in the result in proportion to their term of validity.
B68: ² The adjusted values refer to the provisions related to receivables due to the Company by the thermal companies of the isolated and interconnected energy system, a segment substantially serviced by the Company.
B70: ³ Tax adjustments refer to tax amnesties and tax burdens on financial income.

Sheet 07. EBITDA Reconciliation
B3: 07. EBITDA Reconciliation | C3: 2016 | D3: 1Q17 | E3: 2Q17 | F3: 3Q17 | G3: 4Q17 | H3: 1Q18 | I3: 2Q18 | J3: 3Q18 | K3: 4Q18 | L3: 1Q19 | M3: 2Q19 | N3: 3Q19 | O3: 4Q19 | P3: 1Q20 | Q3: 2Q20 | R3: 3Q20 | S3: 4Q20 | T3: 1Q21 | U3: 2Q21 | V3: 3Q21 | W3: 4Q21 | X3: 1Q22 | Y3: 2Q22 | Z3: 3Q22 | AA3: 4Q22 | AB3: 1Q23 | AC3: 2Q23 | AD3: 3Q23 | AE3: 4Q23 | AF3: 1Q24 | AG3: 2Q24 | AH3: 3Q24 | AI3: 4Q24 | AJ3: 1Q25 | AK3: 2Q25 | AL3: 3Q25 | AM3: 4Q25
B6: VIBRA ENERGIA - Consolidated
B7: (millions)
B9: EBITDA Composition
B10: Net Income | C10: -315 | D10: 156 | E10: 70 | F10: 394 | G10: 531 | H10: 247 | I10: 263 | J10: 1078 | K10: 1605 | L10: 477 | M10: 302 | N10: 1336 | O10: 96 | P10: 234 | Q10: 188 | R10: 335 | S10: 3148 | T10: 492 | U10: 382 | V10: 598 | W10: 1025 | X10: 325 | Y10: 707 | Z10: -61 | AA10: 566 | AB10: 81 | AC10: 133 | AD10: 1255 | AE10: 3297 | AF10: 789 | AG10: 867 | AH10: 4201 | AI10: 510 | AJ10: ='2. Income Statement'!AI32 -> 601 | AK10: ='2. Income Statement'!AJ32 -> 292 | AL10: ='2. Income Statement'!AK32 -> 407 | AM10: ='2. Income Statement'!AL32 -> 679
B11: Net financial result | C11: 622 | D11: 148 | E11: 88 | F11: 232 | G11: 89 | H11: 46 | I11: -269 | J11: -353 | K11: -1847 | L11: -272 | M11: -188 | N11: -1557 | O11: 27 | P11: 96 | Q11: -77 | R11: -22 | S11: -261 | T11: 118 | U11: 73 | V11: 48 | W11: -807 | X11: 449 | Y11: 614 | Z11: 564 | AA11: 404 | AB11: 280 | AC11: 341 | AD11: 413 | AE11: 50 | AF11: 334 | AG11: 213 | AH11: -131 | AI11: -185 | AJ11: =-SUM('2. Income Statement'!AI22:AI24) -> 671 | AK11: =-SUM('2. Income Statement'!AJ22:AJ24) -> 552 | AL11: =-SUM('2. Income Statement'!AK22:AK24) -> 647 | AM11: =-SUM('2. Income Statement'!AL22:AL24) -> 504
B12: Income tax and social contribution | C12: -322 | D12: 120 | E12: 71 | F12: 207 | G12: 15 | H12: 163 | I12: 180 | J12: 696 | K12: 577 | L12: 284 | M12: 186 | N12: 718 | O12: -96 | P12: 170 | Q12: 144 | R12: 211 | S12: 400 | T12: 267 | U12: 220 | V12: -147 | W12: 337 | X12: 217 | Y12: 358 | Z12: -239 | AA12: 57 | AB12: 66 | AC12: 50 | AD12: 415 | AE12: 1162 | AF12: 435 | AG12: 141 | AH12: 1594 | AI12: 1 | AJ12: =-SUM('2. Income Statement'!AI29:AI30) -> 262 | AK12: =-SUM('2. Income Statement'!AJ29:AJ30) -> 179 | AL12: =-SUM('2. Income Statement'!AK29:AK30) -> 195 | AM12: =-SUM('2. Income Statement'!AL29:AL30) -> -163
B13: Depreciation and amortization | C13: 454 | D13: 112 | E13: 115 | F13: 117 | G13: 109 | H13: 106 | I13: 107 | J13: 102 | K13: 102 | L13: 128 | M13: 127 | N13: 127 | O13: 146 | P13: 135 | Q13: 136 | R13: 132 | S13: 134 | T13: 139 | U13: 140 | V13: 144 | W13: 136 | X13: 139 | Y13: 135 | Z13: 142 | AA13: 137 | AB13: 138 | AC13: 136 | AD13: 139 | AE13: 141 | AF13: 143 | AG13: 135 | AH13: 140 | AI13: 136 | AJ13: 242 | AK13: 263 | AL13: 269 | AM13: 294
B15: EBITDA | C15: =SUM(C10:C13) -> 439 | D15: 536 | E15: 344 | F15: 950 | G15: 744 | H15: 562 | I15: 281 | J15: 1523 | K15: 437 | L15: 617 | M15: 427 | N15: 624 | O15: 173 | P15: 635 | Q15: 391 | R15: 656 | S15: 3421 | T15: 1016 | U15: 815 | V15: 643 | W15: 691 | X15: 1130 | Y15: 1814 | Z15: 406 | AA15: 1164 | AB15: 565 | AC15: 660 | AD15: 2222 | AE15: 4650 | AF15: 1701 | AG15: 1356 | AH15: 5804 | AI15: 462 | AJ15: 1776 | AK15: =SUM(AK10:AK13) -> 1286 | AL15: 1518 | AM15: =SUM(AM10:AM13) -> 1314
B16: Estimated losses on doubtful accounts - Electricity Sector (Isolated and Interconnected System) | C16: 411 | D16: -88 | E16: -28 | F16: -29 | G16: -10 | H16: -19 | I16: 0 | J16: -5 | K16: -96 | L16: -7 | M16: -4 | N16: -1 | O16: 0 | P16: 0 | Q16: -1 | R16: 0 | S16: 0 | T16: -1 | U16: -1 | V16: 2 | W16: 0 | X16: 0 | Y16: 0 | Z16: -6 | AA16: -2 | AB16: 0 | AC16: 0 | AD16: 0 | AE16: 2 | AF16: 1 | AG16: -1 | AH16: 1 | AI16: 0 | AJ16: 0 | AK16: 0 | AL16: 0 | AM16: 0
B17: Losses and provisions with judicial and administrative proceedings | C17: 1079 | D17: 80 | E17: 101 | F17: -77 | G17: 15 | H17: 78 | I17: 89 | J17: -1210 | K17: 52 | L17: 55 | M17: 31 | N17: 9 | O17: 14 | P17: 26 | Q17: -68 | R17: 16 | S17: -23 | T17: 32 | U17: -54 | V17: 44 | W17: 904 | X17: 92 | Y17: -6 | Z17: 58 | AA17: 37 | AB17: 28 | AC17: 35 | AD17: 60 | AE17: 160 | AF17: -28 | AG17: 51 | AH17: 56 | AI17: 49 | AJ17: 58 | AK17: 69 | AL17: 111 | AM17: 109
B18: MTM - Compra e Venda Futura de Energia | C18: 0 | D18: 0 | E18: 0 | F18: 0 | G18: 0 | H18: 0 | I18: 0 | J18: 0 | K18: 0 | L18: 0 | M18: 0 | N18: 0 | O18: 0 | P18: 0 | Q18: 0 | R18: 0 | S18: 0 | T18: 0 | U18: 0 | V18: 0 | W18: 0 | X18: 0 | Y18: 0 | Z18: 0 | AA18: 0 | AB18: 0 | AC18: 0 | AD18: 0 | AE18: 0 | AF18: 0 | AG18: 0 | AH18: 0 | AI18: 0 | AJ18: 47 | AK18: 64 | AL18: 78 | AM18: -8
B19: Amortization of advance bonuses granted to customers | C19: 542 | D19: 125 | E19: 140 | F19: 153 | G19: 127 | H19: 121 | I19: 136 | J19: 131 | K19: 134 | L19: 124 | M19: 115 | N19: 135 | O19: 139 | P19: 150 | Q19: 157 | R19: 148 | S19: 183 | T19: 193 | U19: 240 | V19: 188 | W19: 184 | X19: 122 | Y19: 136 | Z19: 227 | AA19: 166 | AB19: 175 | AC19: 179 | AD19: 180 | AE19: 183 | AF19: 172 | AG19: 188 | AH19: 173 | AI19: 154 | AJ19: 130 | AK19: 142 | AL19: 140 | AM19: 139
B20: Shutdown plans | C20: 434 | D20: -21 | E20: -93 | F20: -29 | G20: -1 | H20: 22 | I20: -6 | J20: 0 | K20: 76 | L20: -3 | M20: -13 | N20: -3 | O20: 330 | P20: -3 | Q20: 1 | R20: 0 | S20: 0 | T20: 0 | U20: 0 | V20: 0 | W20: 0 | X20: 0 | Y20: 0 | Z20: 0 | AA20: 0 | AB20: 0 | AC20: 0 | AD20: 0 | AE20: 0 | AF20: 0 | AG20: 0 | AH20: 0 | AI20: 0 | AJ20: 0 | AK20: 0 | AL20: 0 | AM20: 0
B21: Actuarial remeasurement - Heath plan | C21: 0 | D21: 0 | E21: 0 | F21: 0 | G21: 0 | H21: 0 | I21: 0 | J21: 0 | K21: 0 | L21: 0 | M21: 0 | N21: 0 | O21: 0 | P21: 0 | Q21: 0 | R21: 0 | S21: -2132 | T21: 0 | U21: 0 | V21: 0 | W21: -180 | X21: 0 | Y21: 0 | Z21: 0 | AA21: 0 | AB21: 0 | AC21: 0 | AD21: 0 | AE21: 0 | AF21: 0 | AG21: 0 | AH21: 0 | AI21: 0 | AJ21: 0 | AK21: 0 | AL21: 0 | AM21: 0
B22: Actuarial Remeasurement/Debt Assumed - Flexprev Migration | C22: 0 | D22: 0 | E22: 0 | F22: 0 | G22: 0 | H22: 0 | I22: 0 | J22: 0 | K22: 0 | L22: 0 | M22: 0 | N22: 0 | O22: 0 | P22: 0 | Q22: 0 | R22: 0 | S22: 0 | T22: 0 | U22: 0 | V22: 0 | W22: 0 | X22: 0 | Y22: 0 | Z22: 136 | AA22: 0 | AB22: 0 | AC22: 0 | AD22: 0 | AE22: 0 | AF22: 0 | AG22: 0 | AH22: 0 | AI22: 0 | AJ22: 0 | AK22: 0 | AL22: 0 | AM22: 0
B23: Rescission Funds (Optional and Executive Shutdown Plan) | C23: 0 | D23: 0 | E23: 0 | F23: 77 | G23: 0 | H23: 2 | I23: 0 | J23: 187 | K23: 4 | L23: 0 | M23: 0 | N23: 0 | O23: 173 | P23: 0 | Q23: 0 | R23: 0 | S23: 0 | T23: 0 | U23: 0 | V23: 0 | W23: 0 | X23: 0 | Y23: 0 | Z23: 0 | AA23: 0 | AB23: 0 | AC23: 0 | AD23: 0 | AE23: 0 | AF23: 0 | AG23: 0 | AH23: 0 | AI23: 0 | AJ23: 0 | AK23: 0 | AL23: 0 | AM23: 0
B24: Salary renegotiation allowance - Organizational Transformation Plan | C24: 0 | D24: 0 | E24: 0 | F24: 0 | G24: 0 | H24: 0 | I24: 0 | J24: 0 | K24: 0 | L24: 0 | M24: 0 | N24: 0 | O24: 55 | P24: 9 | Q24: 12 | R24: 12 | S24: 30 | T24: 0 | U24: 0 | V24: -8 | W24: 0 | X24: 0 | Y24: 0 | Z24: 0 | AA24: 0 | AB24: 0 | AC24: 0 | AD24: 0 | AE24: 0 | AF24: 0 | AG24: 0 | AH24: 0 | AI24: 0 | AJ24: 0 | AK24: 0 | AL24: 0 | AM24: 0
B25: Consulting expenses - Organizational Transformation Plan | C25: 0 | D25: 0 | E25: 0 | F25: 0 | G25: 0 | H25: 0 | I25: 0 | J25: 0 | K25: 0 | L25: 0 | M25: 0 | N25: 0 | O25: 11 | P25: 0 | Q25: 0 | R25: 0 | S25: 0 | T25: 0 | U25: 0 | V25: 0 | W25: 0 | X25: 0 | Y25: 0 | Z25: 0 | AA25: 0 | AB25: 0 | AC25: 0 | AD25: 0 | AE25: 0 | AF25: 0 | AG25: 0 | AH25: 0 | AI25: 0 | AJ25: 0 | AK25: 0 | AL25: 0 | AM25: 0
B26: Tax Amnesties Program | C26: 6 | D26: 0 | E26: 3 | F26: 0 | G26: 0 | H26: 0 | I26: 0 | J26: 0 | K26: 0 | L26: 0 | M26: 0 | N26: 0 | O26: 4 | P26: 11 | Q26: 0 | R26: 0 | S26: 9 | T26: 41 | U26: 21 | V26: 223 | W26: 3 | X26: 10 | Y26: 0 | Z26: 0 | AA26: 3 | AB26: 0 | AC26: 0 | AD26: 0 | AE26: 7 | AF26: 3 | AG26: 1 | AH26: 7 | AI26: 1 | AJ26: 4 | AK26: 0 | AL26: 0 | AM26: 1
B27: Commodity hedging operations in progress | C27: 0 | D27: 0 | E27: 0 | F27: 0 | G27: 0 | H27: 0 | I27: 0 | J27: 0 | K27: 0 | L27: 64 | M27: -59 | N27: 26 | O27: 36 | P27: -292 | Q27: 308 | R27: -75 | S27: 109 | T27: -61 | U27: -5 | V27: 33 | W27: -23 | X27: 258 | Y27: -352 | Z27: 104 | AA27: 79 | AB27: -92 | AC27: 0 | AD27: 16 | AE27: -42 | AF27: 17 | AG27: 18 | AH27: -27 | AI27: 38 | AJ27: 5 | AK27: -35 | AL27: -1 | AM27: 31
B28: Indemnity gain from the concession contract GAS ES | C28: 0 | D28: 0 | E28: 0 | F28: 0 | G28: 0 | H28: 0 | I28: 0 | J28: 0 | K28: 0 | L28: 0 | M28: 0 | N28: 0 | O28: 0 | P28: 0 | Q28: 0 | R28: -117 | S28: 0 | T28: 0 | U28: 0 | V28: 0 | W28: 0 | X28: 0 | Y28: 0 | Z28: 0 | AA28: 0 | AB28: 0 | AC28: 0 | AD28: 0 | AE28: 0 | AF28: 0 | AG28: 0 | AH28: 0 | AI28: 0 | AJ28: 0 | AK28: 0 | AL28: 0 | AM28: 0
B29: Result with disposal - Stratura | C29: 0 | D29: 0 | E29: 0 | F29: 0 | G29: 0 | H29: 0 | I29: 0 | J29: 0 | K29: 0 | L29: 0 | M29: 0 | N29: 0 | O29: 0 | P29: 0 | Q29: 0 | R29: 152 | S29: 0 | T29: 0 | U29: 0 | V29: 0 | W29: 0 | X29: 0 | Y29: 0 | Z29: 0 | AA29: 0 | AB29: 0 | AC29: 0 | AD29: 0 | AE29: 0 | AF29: 0 | AG29: 0 | AH29: 0 | AI29: 0 | AJ29: 0 | AK29: 0 | AL29: 0 | AM29: 0
B30: Result with disposal - Pecém and Muricy | C30: 0 | D30: 0 | E30: 0 | F30: 0 | G30: 0 | H30: 0 | I30: 0 | J30: 0 | K30: 0 | L30: 0 | M30: 0 | N30: 0 | O30: 0 | P30: 0 | Q30: 0 | R30: 0 | S30: 0 | T30: -44 | U30: -2 | V30: 0 | W30: 0 | X30: 0 | Y30: 0 | Z30: 0 | AA30: 0 | AB30: 0 | AC30: 0 | AD30: 0 | AE30: 0 | AF30: 0 | AG30: 0 | AH30: 0 | AI30: 0 | AJ30: 0 | AK30: 0 | AL30: 0 | AM30: 0
B31: Result with divestment - Brasil Carbonos | C31: 0 | D31: 0 | E31: 0 | F31: 0 | G31: 0 | H31: 0 | I31: 0 | J31: 0 | K31: 0 | L31: 0 | M31: 0 | N31: 0 | O31: 0 | P31: 0 | Q31: 0 | R31: 0 | S31: 0 | T31: 0 | U31: 0 | V31: 54 | W31: 0 | X31: 0 | Y31: 0 | Z31: 0 | AA31: 0 | AB31: 0 | AC31: 0 | AD31: 0 | AE31: 0 | AF31: 0 | AG31: 0 | AH31: 0 | AI31: 0 | AJ31: 0 | AK31: 0 | AL31: 0 | AM31: 0
B32: Result with divestment - ESGás | C32: 0 | D32: 0 | E32: 0 | F32: 0 | G32: 0 | H32: 0 | I32: 0 | J32: 0 | K32: 0 | L32: 0 | M32: 0 | N32: 0 | O32: 0 | P32: 0 | Q32: 0 | R32: 0 | S32: 0 | T32: 0 | U32: 0 | V32: 0 | W32: 0 | X32: 0 | Y32: 0 | Z32: 0 | AA32: 0 | AB32: 0 | AC32: 0 | AD32: -564 | AE32: 0 | AF32: 0 | AG32: 0 | AH32: 0 | AI32: 0 | AJ32: 0 | AK32: 0 | AL32: 0 | AM32: 0
B33: Provision for out-of-court settlements | C33: 0 | D33: 0 | E33: 0 | F33: 0 | G33: 0 | H33: 0 | I33: 0 | J33: 0 | K33: 0 | L33: 0 | M33: 0 | N33: 0 | O33: 0 | P33: 0 | Q33: 0 | R33: 0 | S33: 0 | T33: 0 | U33: 0 | V33: 0 | W33: 0 | X33: 0 | Y33: 0 | Z33: 0 | AA33: 0 | AB33: 0 | AC33: 0 | AD33: 360 | AE33: 0 | AF33: 0 | AG33: 0 | AH33: 0 | AI33: 0 | AJ33: 0 | AK33: 0 | AL33: 0 | AM33: 0
B34: Outcome of the control acquisition process - Equity interest | C34: 0 | D34: 0 | E34: 0 | F34: 0 | G34: 0 | H34: 0 | I34: 0 | J34: 0 | K34: 0 | L34: 0 | M34: 0 | N34: 0 | O34: 0 | P34: 0 | Q34: 0 | R34: 0 | S34: 0 | T34: 0 | U34: 0 | V34: 0 | W34: 0 | X34: 0 | Y34: 0 | Z34: 0 | AA34: 0 | AB34: 0 | AC34: 0 | AD34: 0 | AE34: -12 | AF34: 0 | AG34: 0 | AH34: 0 | AI34: 0 | AJ34: 0 | AK34: 0 | AL34: 0 | AM34: 0
B35: Tax expenses on financial results | C35: 84 | D35: 15 | E35: 14 | F35: 11 | G35: 8 | H35: 7 | I35: 8 | J35: 5 | K35: 39 | L35: 10 | M35: 9 | N35: 29 | O35: 12 | P35: 9 | Q35: 16 | R35: 42 | S35: 19 | T35: 6 | U35: 4 | V35: 6 | W35: 19 | X35: 11 | Y35: 9 | Z35: 7 | AA35: 9 | AB35: 10 | AC35: 10 | AD35: 10 | AE35: 12 | AF35: 8 | AG35: 16 | AH35: 18 | AI35: 21 | AJ35: 18 | AK35: 14 | AL35: 21 | AM35: 16
B36: Result of the incorporation process of Vem Conveniência - JV with Lojas Americanas | C36: 0 | D36: 0 | E36: 0 | F36: 0 | G36: 0 | H36: 0 | I36: 0 | J36: 0 | K36: 0 | L36: 0 | M36: 0 | N36: 0 | O36: 0 | P36: 0 | Q36: 0 | R36: 0 | S36: 0 | T36: 0 | U36: 0 | V36: 0 | W36: 0 | X36: -447 | Y36: 0 | Z36: 0 | AA36: 0 | AB36: 0 | AC36: 0 | AD36: 0 | AE36: 0 | AF36: 0 | AG36: 0 | AH36: 0 | AI36: 0 | AJ36: 0 | AK36: 0 | AL36: 0 | AM36: 0
B37: Result of the contribution of Vibra Comercializadora de Energia to Comerc Participações S.A. | C37: 0 | D37: 0 | E37: 0 | F37: 0 | G37: 0 | H37: 0 | I37: 0 | J37: 0 | K37: 0 | L37: 0 | M37: 0 | N37: 0 | O37: 0 | P37: 0 | Q37: 0 | R37: 0 | S37: 0 | T37: 0 | U37: 0 | V37: 0 | W37: 0 | X37: -69 | Y37: 11 | Z37: 0 | AA37: 0 | AB37: 0 | AC37: 0 | AD37: 0 | AE37: 0 | AF37: 0 | AG37: 0 | AH37: 0 | AI37: 0 | AJ37: 0 | AK37: 0 | AL37: 0 | AM37: 0
B38: Equity earnings | C38: 0 | D38: 0 | E38: 0 | F38: 0 | G38: 0 | H38: 0 | I38: 0 | J38: 0 | K38: 0 | L38: 0 | M38: 0 | N38: 0 | O38: 0 | P38: 0 | Q38: 0 | R38: 0 | S38: 0 | T38: 0 | U38: 0 | V38: 0 | W38: 0 | X38: -17 | Y38: -14 | Z38: -16 | AA38: 51 | AB38: 2 | AC38: 26 | AD38: 49 | AE38: -41 | AF38: 71 | AG38: -79 | AH38: 30 | AI38: -122 | AJ38: -29 | AK38: 10 | AL38: -44 | AM38: -38
B39: Investment Impairment | C39: 0 | D39: 0 | E39: 0 | F39: 0 | G39: 0 | H39: 0 | I39: 0 | J39: 0 | K39: 0 | L39: 0 | M39: 0 | N39: 0 | O39: 0 | P39: 0 | Q39: 0 | R39: 0 | S39: 0 | T39: 0 | U39: 0 | V39: 0 | W39: 0 | X39: 0 | Y39: 0 | Z39: 0 | AA39: 0 | AB39: 0 | AC39: 0 | AD39: 0 | AE39: 0 | AF39: 0 | AG39: 0 | AH39: 0 | AI39: 705 | AJ39: 0 | AK39: 0 | AL39: 0 | AM39: 998
B40: Disposal of Equity Interest – ZegBiogás | C40: 0 | D40: 0 | E40: 0 | F40: 0 | G40: 0 | H40: 0 | I40: 0 | J40: 0 | K40: 0 | L40: 0 | M40: 0 | N40: 0 | O40: 0 | P40: 0 | Q40: 0 | R40: 0 | S40: 0 | T40: 0 | U40: 0 | V40: 0 | W40: 0 | X40: 0 | Y40: 0 | Z40: 0 | AA40: 0 | AB40: 0 | AC40: 0 | AD40: 0 | AE40: 0 | AF40: 0 | AG40: 0 | AH40: 0 | AI40: 0 | AJ40: 0 | AK40: -95 | AL40: 0 | AM40: 0
B41: Fair Value – Available for Sale – Evolua | C41: 0 | D41: 0 | E41: 0 | F41: 0 | G41: 0 | H41: 0 | I41: 0 | J41: 0 | K41: 0 | L41: 0 | M41: 0 | N41: 0 | O41: 0 | P41: 0 | Q41: 0 | R41: 0 | S41: 0 | T41: 0 | U41: 0 | V41: 0 | W41: 0 | X41: 0 | Y41: 0 | Z41: 0 | AA41: 0 | AB41: 0 | AC41: 0 | AD41: 0 | AE41: 0 | AF41: 0 | AG41: 0 | AH41: 0 | AI41: 0 | AJ41: 0 | AK41: 0 | AL41: 0 | AM41: 55
B42: Customer Retention Cost | C42: 0 | D42: 0 | E42: 0 | F42: 0 | G42: 0 | H42: 0 | I42: 0 | J42: 0 | K42: 0 | L42: 0 | M42: 0 | N42: 0 | O42: 0 | P42: 0 | Q42: 0 | R42: 0 | S42: 0 | T42: 0 | U42: 0 | V42: 0 | W42: 0 | X42: 0 | Y42: 0 | Z42: 0 | AA42: 0 | AB42: 0 | AC42: 0 | AD42: 0 | AE42: 0 | AF42: 0 | AG42: 0 | AH42: 0 | AI42: 0 | AJ42: 16 | AK42: 17 | AL42: -17 | AM42: 3
B44: EBITDA AJUSTADO | C44: =SUM(C15:C42) -> 2995 | D44: 647 | E44: 481 | F44: 1056 | G44: 883 | H44: 773 | I44: 508 | J44: 631 | K44: 646 | L44: 860 | M44: 506 | N44: 819 | O44: 947 | P44: 545 | Q44: 816 | R44: 834 | S44: 1616 | T44: 1182 | U44: 1018 | V44: 1185 | W44: 1598 | X44: 1090 | Y44: 1598 | Z44: 916 | AA44: 1507 | AB44: 688 | AC44: 910 | AD44: 2333 | AE44: 4919 | AF44: 1945 | AG44: 1550 | AH44: 6062 | AI44: 1308 | AJ44: 2025 | AK44: =SUM(AK15:AK42) -> 1472 | AL44: =SUM(AL15:AL42) -> 1806 | AM44: =SUM(AM15:AM42) -> 2620
B45: Volumes de vendas (milhões de m³) | C45: 45794 | D45: 10337 | E45: 10501 | F45: 11311 | G45: 11028 | H45: 10109 | I45: 10061 | J45: 10966 | K45: 10412 | L45: 9765 | M45: 9999 | N45: 10487 | O45: 9929 | P45: 9191 | Q45: 7827 | R45: 9455 | S45: 10278 | T45: 9337 | U45: 8859 | V45: 10326 | W45: 9971 | X45: 8988 | Y45: 9212 | Z45: 10303 | AA45: 10049.74708 | AB45: 9323.2 | AC45: 9024.8 | AD45: 9410.3 | AE45: 9173.3 | AF45: 8599.2 | AG45: 8819.508774 | AH45: 9385.1 | AI45: 9016.9 | AJ45: ='01. Volume'!AI7 -> 8409 | AK45: ='01. Volume'!AJ7 -> 8723 | AL45: ='01. Volume'!AK7 -> 9258.818613 | AM45: ='01. Volume'!AL7 -> 9500.052846
B47: MARGEM EBITDA AJUSTADA (R$/m³) | C47: =C44/C45*1000 -> 65.40158099 | D47: 62.59069362 | E47: 45.80516141 | F47: 93.36044558 | G47: 80.06891549 | H47: 76.46651499 | I47: 50.49199881 | J47: 57.54149188 | K47: 62.04379562 | L47: 88.06963646 | M47: 50.60506051 | N47: 78.09669114 | O47: 95.37717796 | P47: 59.29713851 | Q47: 104.2545036 | R47: 88.20729773 | S47: 157.2290329 | T47: 126.5931241 | U47: 114.9113895 | V47: 114.7588611 | W47: 160.2647678 | X47: 121.2728082 | Y47: 173.4693878 | Z47: 88.90614384 | AA47: 149.9540225 | AB47: 73.79440535 | AC47: 100.8332595 | AD47: 247.9198325 | AE47: 536.2301462 | AF47: 226.1838311 | AG47: 175.7467496 | AH47: 645.9174649 | AI47: 145.0609411 | AJ47: 240.8134142 | AK47: 168.7492835 | AL47: =AL44/AL45*1000 -> 195.0572827 | AM47: 275.7879396
B49: (8.1) Reconciliação com as DC (05. Resultado por Segmento) | C49: ='05. Segment Reporting'!E56 -> 2995 | D49: ='05. Segment Reporting'!F56 -> 647 | E49: ='05. Segment Reporting'!G56 -> 481 | F49: ='05. Segment Reporting'!H56 -> 1056 | G49: ='05. Segment Reporting'!I56 -> 883 | H49: ='05. Segment Reporting'!J56 -> 773 | I49: ='05. Segment Reporting'!K56 -> 508 | J49: ='05. Segment Reporting'!L56 -> 631 | K49: ='05. Segment Reporting'!M56 -> 646 | L49: ='05. Segment Reporting'!N56 -> 860 | M49: ='05. Segment Reporting'!O56 -> 506 | N49: ='05. Segment Reporting'!P56 -> 819 | O49: ='05. Segment Reporting'!Q56 -> 947 | P49: ='05. Segment Reporting'!R56 -> 545 | Q49: ='05. Segment Reporting'!S56 -> 816 | R49: ='05. Segment Reporting'!T56 -> 834 | S49: ='05. Segment Reporting'!U56 -> 1616 | T49: ='05. Segment Reporting'!V56 -> 1182 | U49: ='05. Segment Reporting'!W56 -> 1018 | V49: ='05. Segment Reporting'!X56 -> 1185 | W49: ='05. Segment Reporting'!Y56 -> 1598 | X49: ='05. Segment Reporting'!Z56 -> 1090 | Y49: ='05. Segment Reporting'!AA56 -> 1598 | Z49: ='05. Segment Reporting'!AB56 -> 916 | AA49: ='05. Segment Reporting'!AC56 -> 1507 | AB49: ='05. Segment Reporting'!AD56 -> 688 | AC49: ='05. Segment Reporting'!AE56 -> 910 | AD49: ='05. Segment Reporting'!AF56 -> 2333 | AE49: ='05. Segment Reporting'!AG56 -> 4919 | AF49: ='05. Segment Reporting'!AH56 -> 1945 | AG49: ='05. Segment Reporting'!AI56 -> 1550 | AH49: ='05. Segment Reporting'!AJ56 -> 6062 | AI49: ='05. Segment Reporting'!AK56 -> 1307 | AJ49: ='05. Segment Reporting'!AL56 -> 2025 | AK49: ='05. Segment Reporting'!AM56 -> 1472 | AL49: ='05. Segment Reporting'!AN56 -> 1806 | AM49: ='05. Segment Reporting'!AO56 -> 2620
B50: Check | C50: =C44-C49 -> 0 | D50: =D44-D49 -> 0 | E50: 0 | F50: 0 | G50: 0 | H50: 0 | I50: 0 | J50: 0 | K50: 0 | L50: 0 | M50: 0 | N50: 0 | O50: 0 | P50: 0 | Q50: 0 | R50: 0 | S50: 0 | T50: 0 | U50: 0 | V50: 0 | W50: 0 | X50: 0 | Y50: 0 | Z50: 0 | AA50: 0 | AB50: 0 | AC50: 0 | AD50: 0 | AE50: 0 | AF50: 0 | AG50: 0 | AH50: 0 | AI50: 1 | AJ50: 0 | AK50: 0 | AL50: =AL44-AL49 -> 0 | AM50: 0

Sheet 08. Investments (CAPEX)
B3: 08. Investments (CAPEX) | C3: 1Q17 | D3: 2Q17 | E3: 3Q17 | F3: 4Q17 | G3: 1Q18 | H3: 2Q18 | I3: 3Q18 | J3: 4Q18 | K3: 1Q19 | L3: 2Q19 | M3: 3Q19 | N3: 4Q19 | O3: 1Q20 | P3: 2Q20 | Q3: 3Q20 | R3: 4Q20 | S3: 1Q21 | T3: 2Q21 | U3: 3Q21 | V3: 4Q21 | W3: 1Q22 | X3: 2Q22 | Y3: 3Q22 | Z3: 4Q22 | AA3: 1Q23 | AB3: 2Q23 | AC3: 3Q23 | AD3: 4Q23 | AE3: 1Q24 | AF3: 2Q24 | AG3: 3Q24 | AH3: 4Q24 | AI3: 1Q25 | AJ3: 2Q25 | AK3: 3Q25 | AL3: 4Q25
B6: VIBRA ENERGIA - Consolidated
B7: (millions)
B9: BONUSES
B10: Bonuses advanced to clients | C10: -125 | D10: -140 | E10: -153 | F10: -127 | G10: -121 | H10: -136 | I10: -131 | J10: -134 | K10: -124 | L10: -115 | M10: -135 | N10: -139 | O10: -150 | P10: -157 | Q10: -148 | R10: -183 | S10: -193 | T10: -240 | U10: -188 | V10: -184 | W10: -122 | X10: -136 | Y10: -227 | Z10: -166 | AA10: -175 | AB10: -179 | AC10: -180 | AD10: -183 | AE10: -172 | AF10: -188 | AG10: -173 | AH10: -154 | AI10: -130 | AJ10: -142 | AK10: -140 | AL10: -139
B11: Performance Bonuses | C11: -69 | D11: -60 | E11: -61 | F11: -58 | G11: -59 | H11: -57 | I11: -68 | J11: -71 | K11: -74 | L11: -74 | M11: -67 | N11: -108 | O11: -63 | P11: -80 | Q11: -85 | R11: -95 | S11: -101 | T11: -93 | U11: -101 | V11: -137 | W11: -92 | X11: -114 | Y11: -125 | Z11: -160 | AA11: -105 | AB11: -104 | AC11: -156 | AD11: -201 | AE11: -126 | AF11: -136 | AG11: -171 | AH11: -169 | AI11: -156 | AJ11: -167 | AK11: -160 | AL11: -165
B12: Award and sales rebates | C12: -10 | D12: -9 | E12: -14 | F12: -22 | G12: -78 | H12: -89 | I12: -82 | J12: -79 | K12: -50 | L12: -75 | M12: -74 | N12: -50 | O12: -55 | P12: -58 | Q12: -66 | R12: -74 | S12: -78 | T12: -82 | U12: -87 | V12: -89 | W12: -96 | X12: -99 | Y12: -133 | Z12: -174 | AA12: -141 | AB12: -139 | AC12: -92 | AD12: -79 | AE12: -67 | AF12: -76 | AG12: -82 | AH12: -83 | AI12: -82 | AJ12: -98 | AK12: -106 | AL12: -114
B13: Total number of service stations | C13: - | D13: - | E13: - | F13: 7617 | G13: 7406 | H13: 7501 | I13: 7572 | J13: 7665 | K13: 7703 | L13: 7797 | M13: 7826 | N13: 7817 | O13: 7818 | P13: 7774 | Q13: 7857 | R13: 8022 | S13: 8058 | T13: 8076 | U13: 8127 | V13: 8201 | W13: 8214 | X13: 8273 | Y13: 8234 | Z13: 8383 | AA13: 8381 | AB13: 8383 | AC13: 8383 | AD13: 8198 | AE13: 8062 | AF13: 8023 | AG13: 8023 | AH13: 7897 | AI13: 7946 | AJ13: 7989 | AK13: 7922 | AL13: 7456
B15: CAPEX
B16: Acquisitions of fixed and intangible assets | C16: 63 | D16: 70 | E16: 72 | F16: 93 | G16: 71 | H16: 101 | I16: 115 | J16: 143 | K16: 128 | L16: 132 | M16: 153 | N16: 182 | O16: 106 | P16: 117 | Q16: 176 | R16: 207 | S16: 110 | T16: 125 | U16: 139 | V16: 210 | W16: 115 | X16: 153 | Y16: 180 | Z16: 279 | AA16: 117 | AB16: 157 | AC16: 136 | AD16: 332 | AE16: 155 | AF16: 322 | AG16: 240 | AH16: 417 | AI16: 458 | AJ16: 323 | AK16: 312 | AL16: 359
B17: Investments in equity interests | C17: 0 | D17: 0 | E17: 2 | F17: 0 | G17: 0 | H17: 0 | I17: 0 | J17: 1 | K17: 2 | L17: 0 | M17: 0 | N17: 34 | O17: 0 | P17: 1 | Q17: 2 | R17: 10 | S17: 31 | T17: 21 | U17: 0 | V17: 0 | W17: 27 | X17: 1211 | Y17: 398 | Z17: 57 | AA17: 0 | AB17: 17 | AC17: 0 | AD17: 173 | AE17: 5 | AF17: 14 | AG17: 11 | AH17: 11 | AI17: 191 | AJ17: -117 | AK17: 12 | AL17: 28
AK20: 312 | AL20: 312
AK22: 12 | AL22: 12

Sheet 09. Expenses by nature
C2: (*) (**) | D2: (*) (**) | E2: (*) (**) | F2: (*) (**)
B3: 09. Expenses by nature | C3: 1Q18 | D3: 2Q18 | E3: 3Q18 | F3: 4Q18 | G3: 1Q19 | H3: 2Q19 | I3: 3Q19 | J3: 4Q19 | K3: 1Q20 | L3: 2Q20 | M3: 3Q20 | N3: 4Q20 | O3: 1Q21 | P3: 2Q21 | Q3: 3Q21 | R3: 4Q21 | S3: 1Q22 | T3: 2Q22 | U3: 3Q22 | V3: 4Q22 | W3: 1Q23 | X3: 2Q23 | Y3: 3Q23 | Z3: 4Q23 | AA3: 1Q24 | AB3: 2Q24 | AC3: 3Q24 | AD3: 4Q24 | AE3: 1Q25 | AF3: 2Q25 | AG3: 3Q25 | AH3: 4Q25
B6: VIBRA ENERGIA - Consolidated
B7: (millions)
B9: Cost of goods sold | C9: =SUM(C10:C15) -> -20982 | D9: -22281 | E9: -24936 | F9: -23715 | G9: -20842 | H9: -22756 | I9: -22966 | J9: -22463 | K9: -20242 | L9: -14286 | M9: -19751 | N9: -22765 | O9: -24260 | P9: -27750 | Q9: =SUM(Q10:Q15) -> -34161 | R9: -37099 | S9: =SUM(S10:S15) -> -36168 | T9: -44495 | U9: -49782 | V9: -43512 | W9: -37679 | X9: -35648 | Y9: -40001 | Z9: -41258 | AA9: =SUM(AA10:AA15) -> -37488 | AB9: -40097 | AC9: -44114 | AD9: -42332 | AE9: -42519 | AF9: =SUM(AF10:AF15) -> -43655 | AG9: =SUM(AG10:AG15) -> -45983 | AH9: =SUM(AH10:AH15) -> -47700
B10: Products for resale | C10: -20755 | D10: -22304 | E10: -25024 | F10: -23291 | G10: -20741 | H10: -22863 | I10: -22939 | J10: -22676 | K10: -19749 | L10: -13563 | M10: -20338 | N10: -23329 | O10: -24239 | P10: -28762 | Q10: -34267 | R10: -37896 | S10: -36606 | T10: -44432 | U10: -49692 | V10: -43419 | W10: -37620 | X10: -35582 | Y10: -39933 | Z10: -41165 | AA10: -37433 | AB10: -40021 | AC10: -44051 | AD10: -42259 | AE10: -42403 | AF10: -43347 | AG10: -45867 | AH10: -47510
B11: Third-party services, freight and rentals | C11: -20 | D11: -22 | E11: -22 | F11: -22 | G11: -21 | H11: -23 | I11: -20 | J11: -30 | K11: -29 | L11: -25 | M11: -21 | N11: -20 | O11: -17 | P11: -25 | Q11: -16 | R11: -19 | S11: -17 | T11: -19 | U11: -24 | V11: -28 | W11: -24 | X11: -24 | Y11: -31 | Z11: -30 | AA11: -24 | AB11: -31 | AC11: -28 | AD11: -33 | AE11: -41 | AF11: -41 | AG11: -46 | AH11: -51
B12: Personnel expenses | C12: -12 | D12: -13 | E12: -12 | F12: -11 | G12: -12 | H12: -12 | I12: -13 | J12: -15 | K12: -9 | L12: -9 | M12: -11 | N12: 3 | O12: -10 | P12: -11 | Q12: -9 | R12: -4 | S12: -9 | T12: -10 | U12: -11 | V12: -9 | W12: -10 | X12: -10 | Y12: -10 | Z12: -10 | AA12: -7 | AB12: -8 | AC12: -7 | AD12: -8 | AE12: -12 | AF12: -16 | AG12: -11 | AH12: -12
B13: Depreciation and amortization | C13: -3 | D13: -3 | E13: -3 | F13: -3 | G13: -3 | H13: -3 | I13: -4 | J13: -2 | K13: -3 | L13: -3 | M13: -3 | N13: -4 | O13: -3 | P13: -3 | Q13: -3 | R13: -4 | S13: -3 | T13: -3 | U13: -3 | V13: -3 | W13: -3 | X13: -3 | Y13: -3 | Z13: -4 | AA13: -3 | AB13: -2 | AC13: -3 | AD13: -3 | AE13: -102 | AF13: -107 | AG13: -91 | AH13: -109
B14: Change in stocks (****) | C14: -169 | D14: 78 | E14: 159 | F14: -390 | G14: -45 | H14: 152 | I14: 23 | J14: 359 | K14: -416 | L14: -649 | M14: 632 | N14: 588 | O14: 16 | P14: 1076 | Q14: 177 | R14: 860 | S14: 502 | T14: 0 | U14: 0 | V14: 0 | W14: 0 | X14: 0 | Y14: 0 | Z14: 0 | AA14: 0 | AB14: 0 | AC14: 0 | AD14: 0 | AE14: 0 | AF14: 0
B15: Others | C15: -23 | D15: -17 | E15: -34 | F15: 2 | G15: -20 | H15: -7 | I15: -13 | J15: -99 | K15: -36 | L15: -37 | M15: -10 | N15: -3 | O15: -7 | P15: -25 | Q15: -43 | R15: -36 | S15: -35 | T15: -31 | U15: -52 | V15: -53 | W15: -22 | X15: -29 | Y15: -24 | Z15: -49 | AA15: -21 | AB15: -35 | AC15: -25 | AD15: -29 | AE15: 39 | AF15: -144 | AG15: 32 | AH15: -18
B17: Sales | C17: =SUM(C18:C23) -> -708 | D17: -760 | E17: -776 | F17: -683 | G17: -733 | H17: -722 | I17: -733 | J17: -829 | K17: -623 | L17: -585 | M17: -531 | N17: -553 | O17: -729 | P17: -575 | Q17: =SUM(Q18:Q23) -> -679 | R17: -37099 | S17: =SUM(S18:S23) -> -580 | T17: -628 | U17: -738 | V17: -692 | W17: -672 | X17: -697 | Y17: -729 | Z17: -41258 | AA17: =SUM(AA18:AA23) -> -666 | AB17: -644 | AC17: -666 | AD17: -721 | AE17: -756 | AF17: =SUM(AF18:AF23) -> -734 | AG17: =SUM(AG18:AG23) -> -792 | AH17: =SUM(AH18:AH23) -> -830
B18: Third-party services, freight and rentals | C18: -399 | D18: -410 | E18: -430 | F18: -431 | G18: -386 | H18: -392 | I18: -398 | J18: -398 | K18: -347 | L18: -294 | M18: -304 | N18: -376 | O18: -314 | P18: -331 | Q18: -348 | R18: -370 | S18: -338 | T18: -381 | U18: -422 | V18: -442 | W18: -410 | X18: -411 | Y18: -429 | Z18: -422 | AA18: -403 | AB18: -414 | AC18: -421 | AD18: -430 | AE18: -445 | AF18: -442 | AG18: -482 | AH18: -499
B19: Personnel expenses | C19: -170 | D19: -166 | E19: -168 | F19: -172 | G19: -174 | H19: -165 | I19: -173 | J19: -240 | K19: -94 | L19: -76 | M19: -88 | N19: -54 | O19: -91 | P19: -94 | Q19: -97 | R19: -79 | S19: -88 | T19: -88 | U19: -102 | V19: -85 | W19: -94 | X19: -93 | Y19: -94 | Z19: -93 | AA19: -94 | AB19: -99 | AC19: -102 | AD19: -116 | AE19: -118 | AF19: -130 | AG19: -119 | AH19: -133
B20: Expected Credit Losses | C20: 4 | D20: -48 | E20: -35 | F20: 60 | G20: -15 | H20: -6 | I20: -7 | J20: -24 | K20: -33 | L20: -65 | M20: 4 | N20: 39 | O20: -173 | P20: 10 | Q20: -64 | R20: -62 | S20: 8 | T20: 14 | U20: -38 | V20: 24 | W20: -1 | X20: -26 | Y20: -39 | Z20: 7 | AA20: 2 | AB20: 30 | AC20: 24 | AD20: 6 | AE20: -14 | AF20: 15
B21: Losses with bad debts (*) | C21: -5 | D21: -3 | E21: -9 | F21: -6 | G21: -8 | H21: -7 | I21: -4 | J21: -8 | K21: -6 | L21: -2 | M21: -6 | N21: -10 | O21: -5 | P21: -7 | Q21: -5 | R21: -6 | S21: -7 | T21: -13 | U21: -11 | V21: -29 | W21: -13 | X21: -12 | Y21: -11 | Z21: -7 | AA21: -18 | AB21: -4 | AC21: -8 | AD21: -9 | AE21: -15 | AF21: -14 | AG21: -21 | AH21: -20
B22: Depreciation and amortization | C22: -91 | D22: -93 | E22: -90 | F22: -91 | G22: -111 | H22: -107 | I22: -110 | J22: -126 | K22: -114 | L22: -116 | M22: -112 | N22: -113 | O22: -119 | P22: -120 | Q22: -118 | R22: -119 | S22: -119 | T22: -115 | U22: -118 | V22: -111 | W22: -114 | X22: -112 | Y22: -114 | Z22: -111 | AA22: -112 | AB22: -109 | AC22: -108 | AD22: -108 | AE22: -108 | AF22: -110 | AG22: -112 | AH22: -118
B23: Others | C23: -47 | D23: -40 | E23: -44 | F23: -43 | G23: -39 | H23: -45 | I23: -41 | J23: -33 | K23: -29 | L23: -32 | M23: -25 | N23: -39 | O23: -27 | P23: -33 | Q23: -47 | R23: -44 | S23: -36 | T23: -45 | U23: -47 | V23: -49 | W23: -40 | X23: -43 | Y23: -42 | Z23: -49 | AA23: -41 | AB23: -48 | AC23: -51 | AD23: -64 | AE23: -56 | AF23: -53 | AG23: -58 | AH23: -60
B25: General and Administrative Expenses | C25: =SUM(C26:C29) -> -190 | D25: =SUM(D26:D29) -> -198 | E25: -194 | F25: -204 | G25: -195 | H25: -190 | I25: -200 | J25: -283 | K25: -145 | L25: -138 | M25: -152 | N25: -22 | O25: -149 | P25: -168 | Q25: -187 | R25: -130 | S25: =SUM(S26:S29) -> -160 | T25: -183 | U25: -197 | V25: -203 | W25: -205 | X25: -170 | Y25: -197 | Z25: -232 | AA25: =SUM(AA26:AA29) -> -224 | AB25: -238 | AC25: -262 | AD25: -275 | AE25: -359 | AF25: =SUM(AF26:AF29) -> -370 | AG25: =SUM(AG26:AG29) -> -345 | AH25: =SUM(AH26:AH29) -> -462
B26: Third-party services, freight and rentals | C26: -47 | D26: -53 | E26: -54 | F26: -62 | G26: -41 | H26: -42 | I26: -43 | J26: -62 | K26: -42 | L26: -46 | M26: -38 | N26: -38 | O26: -33 | P26: -43 | Q26: -37 | R26: -59 | S26: -40 | T26: -62 | U26: -58 | V26: -72 | W26: -51 | X26: -43 | Y26: -55 | Z26: -66 | AA26: -56 | AB26: -59 | AC26: -75 | AD26: -102 | AE26: -79 | AF26: -84 | AG26: -92 | AH26: -104
B27: Personnel expenses | C27: -119 | D27: -122 | E27: -121 | F27: -122 | G27: -126 | H27: -115 | I27: -127 | J27: -189 | K27: -71 | L27: -62 | M27: -85 | N27: 50 | O27: -87 | P27: -86 | Q27: -95 | R27: -44 | S27: -86 | T27: -88 | U27: -102 | V27: -86 | W27: -110 | X27: -93 | Y27: -102 | Z27: -108 | AA27: -112 | AB27: -122 | AC27: -123 | AD27: -109 | AE27: -169 | AF27: -215 | AG27: -150 | AH27: -226
B28: Depreciation and amortization | C28: -12 | D28: -11 | E28: -9 | F28: -8 | G28: -14 | H28: -17 | I28: -13 | J28: -18 | K28: -18 | L28: -17 | M28: -17 | N28: -17 | O28: -17 | P28: -17 | Q28: -23 | R28: -13 | S28: -17 | T28: -17 | U28: -21 | V28: -23 | W28: -21 | X28: -21 | Y28: -22 | Z28: -26 | AA28: -28 | AB28: -24 | AC28: -29 | AD28: -25 | AE28: -33 | AF28: -45 | AG28: -66 | AH28: -67
B29: Others | C29: -12 | D29: -12 | E29: -10 | F29: -12 | G29: -14 | H29: -16 | I29: -17 | J29: -14 | K29: -14 | L29: -13 | M29: -12 | N29: -17 | O29: -12 | P29: -22 | Q29: -32 | R29: -14 | S29: -17 | T29: -16 | U29: -16 | V29: -22 | W29: -23 | X29: -13 | Y29: -18 | Z29: -32 | AA29: -28 | AB29: -33 | AC29: -35 | AD29: -39 | AE29: -78 | AF29: -26 | AG29: -37 | AH29: -65
B31: Other net income (expenses) | C31: =SUM(C32:C66) -> -135 | D31: -162 | E31: 1082 | F31: -226 | G31: -137 | H31: -64 | I31: 72 | J31: -525 | K31: 364 | L31: 400 | M31: -120 | N31: 2352 | O31: -60 | P31: 165 | Q31: -20 | R31: -800 | S31: -464 | T31: -167 | U31: 145 | V31: 443 | W31: -27 | X31: -99 | Y31: 19 | Z31: =SUM(Z32:Z66) -> 3037 | AA31: =SUM(AA32:AA66) -> 443 | AB31: =SUM(AB32:AB66) -> 37 | AC31: =SUM(AC32:AC66) -> 4534 | AD31: =SUM(AD32:AD67) -> -735 | AE31: =SUM(AE32:AE67) -> 314 | AF31: =SUM(AF32:AF67) -> 274 | AG31: =SUM(AG32:AG67) -> 8 | AH31: =SUM(AH32:AH67) -> -273
B32: Salary renegotiation allowance | C32: 0 | D32: 0 | E32: 0 | F32: 0 | G32: 0 | H32: 0 | I32: 0 | J32: -55 | K32: -9 | L32: -12 | M32: -12 | N32: -30 | O32: 0 | P32: 0 | Q32: 8 | R32: 0 | S32: 0 | T32: 0 | U32: 0 | V32: 0 | W32: 0 | X32: 0 | Y32: 0 | Z32: 0 | AA32: 0 | AB32: 0 | AC32: 0 | AD32: 0 | AE32: 0 | AF32: 0 | AG32: 0 | AH32: 0
B33: Tax credits - ICMS on the PIS and COFINS calculation basis | C33: 0 | D33: 0 | E33: 0 | F33: 0 | G33: 0 | H33: 0 | I33: 0 | J33: 0 | K33: 0 | L33: 376 | M33: 16 | N33: 648 | O33: 0 | P33: 0 | Q33: 0 | R33: 0 | S33: 0 | T33: 0 | U33: 0 | V33: 0 | W33: 0 | X33: 0 | Y33: 0 | Z33: 0 | AA33: 0 | AB33: 0 | AC33: 0 | AD33: 0 | AE33: 0 | AF33: 0 | AG33: 0 | AH33: 0
B34: ICMS credits – End of definitiveness | C34: 0 | D34: 0 | E34: 0 | F34: 0 | G34: 0 | H34: 0 | I34: 0 | J34: 0 | K34: 0 | L34: 0 | M34: 0 | N34: 52 | O34: 128 | P34: 75 | Q34: 82 | R34: 6 | S34: 1 | T34: 25 | U34: 47 | V34: -2 | W34: 0 | X34: 7 | Y34: 75 | Z34: 1 | AA34: 3 | AB34: 44 | AC34: 1 | AD34: 76 | AE34: 0 | AF34: 60 | AG34: 15 | AH34: 2
B35: Recovery of PIS/COFINS Credits - Ninety | C35: 0 | D35: 0 | E35: 0 | F35: 0 | G35: 0 | H35: 0 | I35: 0 | J35: 0 | K35: 0 | L35: 0 | M35: 0 | N35: 0 | O35: 0 | P35: 79 | Q35: 0 | R35: 0 | S35: 0 | T35: 0 | U35: 0 | V35: 0 | W35: 0 | X35: 0 | Y35: 0 | Z35: 0 | AA35: 0 | AB35: 0 | AC35: 0 | AD35: 0 | AE35: 0 | AF35: 0 | AH35: 0
B36: Property expropriation (****) | C36: 0 | D36: 0 | E36: 0 | F36: 0 | G36: 0 | H36: 0 | I36: 0 | J36: 0 | K36: 0 | L36: 0 | M36: 0 | N36: 0 | O36: 0 | P36: 0 | Q36: 55 | R36: 0 | S36: 0 | T36: 0 | U36: 0 | V36: 53 | W36: 0 | X36: 0 | Y36: 6 | Z36: 0 | AA36: 20 | AB36: 9 | AC36: 0 | AD36: 4 | AE36: 0 | AF36: 0 | AG36: 0 | AH36: 0
B37: Rent Expenses | C37: -31 | D37: -34 | E37: -28 | F37: -28 | G37: -13 | H37: -13 | I37: -11 | J37: -7 | K37: -9 | L37: -14 | M37: -12 | N37: -11 | O37: -11 | P37: -12 | Q37: -10 | R37: -10 | S37: -12 | T37: -14 | U37: -14 | V37: -16 | W37: -16 | X37: -17 | Y37: -17 | Z37: -17 | AA37: -19 | AB37: -24 | AC37: -23 | AD37: -22 | AE37: -21 | AF37: -25 | AG37: -23 | AH37: -25
B38: Indemnity gain from the concession contract GAS ES | C38: 0 | D38: 0 | E38: 0 | F38: 0 | G38: 0 | H38: 0 | I38: 0 | J38: 0 | K38: 0 | L38: 0 | M38: 117 | N38: 0 | O38: 0 | P38: 0 | Q38: 0 | R38: 0 | S38: 0 | T38: 0 | U38: 0 | V38: 0 | W38: 0 | X38: 0 | Y38: 0 | Z38: 0 | AA38: 0 | AB38: 0 | AC38: 0 | AD38: 0 | AE38: 0 | AF38: 0 | AH38: 0
B39: Losses and provisions with legal proceedings | C39: -78 | D39: -89 | E39: 1210 | F39: -52 | G39: -55 | H39: -31 | I39: -9 | J39: -14 | K39: -26 | L39: 68 | M39: -16 | N39: 23 | O39: -32 | P39: 54 | Q39: -44 | R39: -904 | S39: -92 | T39: 6 | U39: -58 | V39: -37 | W39: -28 | X39: -35 | Y39: -60 | Z39: -160 | AA39: 28 | AB39: -51 | AC39: -56 | AD39: -49 | AE39: -58 | AF39: -69 | AG39: -111 | AH39: -109
B40: Profit participation | C40: 0 | D40: 0 | E40: -67 | F40: -15 | G40: -13 | H40: 0 | I40: 0 | J40: -1 | K40: 0 | L40: 0 | M40: 0 | N40: 0 | O40: 0 | P40: 0 | Q40: 0 | R40: 0 | S40: 0 | T40: 0 | U40: 0 | V40: 0 | W40: 0 | X40: 0 | Y40: 0 | Z40: 0 | AA40: 0 | AB40: 0 | AC40: 0 | AD40: - | AE40: 0 | AF40: 0 | AH40: 0
B41: Plan for jobs and salaries | C41: 0 | D41: 0 | E41: 0 | F41: 0 | G41: 0 | H41: -49 | I41: 1 | J41: 0 | K41: 0 | L41: 0 | M41: 0 | N41: 0 | O41: 0 | P41: 0 | Q41: 0 | R41: 0 | S41: 0 | T41: 0 | U41: 0 | V41: 0 | W41: 0 | X41: 0 | Y41: 0 | Z41: 0 | AA41: 0 | AB41: 0 | AC41: 0 | AD41: - | AE41: 0 | AF41: 0 | AH41: 0
B42: Volunteer dismissal incentive plan | C42: -22 | D42: 6 | E42: 0 | F42: -76 | G42: 3 | H42: 13 | I42: 3 | J42: 2 | K42: 0 | L42: 0 | M42: 0 | N42: 0 | O42: 0 | P42: 0 | Q42: 0 | R42: 0 | S42: 0 | T42: 0 | U42: 0 | V42: 0 | W42: 0 | X42: 0 | Y42: 0 | Z42: 0 | AA42: 0 | AB42: 0 | AC42: 0 | AD42: - | AE42: 0 | AF42: 0 | AH42: 0
B43: Dismissal and restructuring program | C43: 0 | D43: 0 | E43: 0 | F43: 0 | G43: 0 | H43: 0 | I43: 0 | J43: -332 | K43: 3 | L43: -1 | M43: 0 | N43: 0 | O43: 0 | P43: 0 | Q43: 0 | R43: 0 | S43: 0 | T43: 0 | U43: 0 | V43: 0 | W43: 0 | X43: 0 | Y43: 0 | Z43: 0 | AA43: 0 | AB43: 0 | AC43: 0 | AD43: - | AE43: 0 | AF43: 0 | AH43: 0
B44: Pension and health plan - inactive | C44: -79 | D44: -79 | E44: -79 | F44: -80 | G44: -84 | H44: -83 | I44: -84 | J44: -83 | K44: -90 | L44: -112 | M44: -76 | N44: 1851 | O44: -30 | P44: -31 | Q44: -30 | R44: 88 | S44: -25 | T44: -25 | U44: -138 | V44: -24 | W44: -26 | X44: -27 | Y44: -24 | Z44: -26 | AA44: -31 | AB44: -30 | AC44: -30 | AD44: -31 | AE44: -25 | AF44: -25 | AG44: -24 | AH44: -24
B45: Decarbonization credit provision | C45: 0 | D45: 0 | E45: 0 | F45: 0 | G45: 0 | H45: 0 | I45: 0 | J45: 0 | K45: 0 | L45: 0 | M45: -111 | N45: -79 | O45: -50 | P45: -50 | Q45: -59 | R45: -81 | S45: -206 | T45: -321 | U45: -311 | V45: -212 | W45: -269 | X45: -390 | Y45: -301 | Z45: -286 | AA45: -255 | AB45: -212 | AC45: -181 | AD45: -189 | AE45: -146 | AF45: -142 | AG45: -129 | AH45: -80
B46: Franchise income, rents and royalties | C46: 65 | D46: 64 | E46: 66 | F46: 70 | G46: 49 | H46: 74 | I46: 66 | J46: 63 | K46: 60 | L46: 32 | M46: 68 | N46: 75 | O46: 91 | P46: 99 | Q46: 93 | R46: 99 | S46: 72 | T46: 114 | U46: 113 | V46: 107 | W46: 117 | X46: 114 | Y46: 126 | Z46: 109 | AA46: 113 | AB46: 99 | AC46: 114 | AD46: 97 | AE46: 115 | AF46: 125 | AG46: 122 | AH46: 106
B47: Joint Storage Revenue | C47: 14 | D47: 19 | E47: 30 | F47: 31 | G47: 28 | H47: 27 | I47: 79 | J47: 27 | K47: 18 | L47: 19 | M47: 22 | N47: 25 | O47: 28 | P47: 24 | Q47: 40 | R47: 47 | S47: 30 | T47: 28 | U47: 41 | V47: 40 | W47: 36 | X47: 38 | Y47: 41 | Z47: 37 | AA47: 38 | AB47: 37 | AC47: 38 | AD47: 40 | AE47: 37 | AF47: 37 | AG47: 36 | AH47: 37
B48: Recovery taxes of PIS and Cofins | C48: 18 | D48: 9 | E48: 9 | F48: 15 | G48: 18 | H48: 7 | I48: 13 | J48: 4 | K48: 19 | L48: 1 | M48: 4 | N48: 6 | O48: 17 | P48: 4 | Q48: 5 | R48: 5 | S48: 19 | T48: 4 | U48: 7 | V48: 83 | W48: 30 | X48: 22 | Y48: 33 | Z48: 30 | AA48: 37 | AB48: 28 | AC48: 27 | AD48: 46 | AE48: 49 | AF48: 35 | AG48: 36 | AH48: 39
B49: Institutional relations and cultural projects | C49: -8 | D49: -28 | E49: -53 | F49: -81 | G49: -12 | H49: -22 | I49: -14 | J49: -43 | K49: -5 | L49: -19 | M49: -45 | N49: -31 | O49: -23 | P49: -22 | Q49: -23 | R49: -40 | S49: -27 | T49: -35 | U49: -34 | V49: -31 | W49: -22 | X49: -33 | Y49: -26 | Z49: -53 | AA49: -21 | AB49: -53 | AC49: -33 | AD49: -36 | AE49: -38 | AF49: -57 | AG49: -45 | AH49: -44
B50: Disposal result/ assets retirement (***) | C50: 1 | D50: 9 | E50: 16 | F50: -13 | G50: 6 | H50: 4 | I50: 0 | J50: 7 | K50: 3 | L50: -8 | M50: -160 | N50: 18 | O50: 54 | P50: 31 | Q50: -30 | R50: 39 | S50: 530 | T50: 19 | U50: 170 | V50: 284 | W50: 42 | X50: 58 | Y50: 639 | Z50: 99 | AA50: 56 | AB50: 107 | AC50: 64 | AD50: 132 | AE50: 37 | AF50: -347 | AG50: 78 | AH50: 167
B51: Commodities of hedge Result - open operations | C51: 0 | D51: 0 | E51: 0 | F51: 0 | G51: -64 | H51: 59 | I51: -26 | J51: -36 | K51: 292 | L51: -308 | M51: 75 | N51: -109 | O51: 61 | P51: 5 | Q51: -33 | R51: 23 | S51: -258 | T51: 352 | U51: -104 | V51: -79 | W51: 92 | X51: 0 | Y51: -16 | Z51: 42 | AA51: -17 | AB51: -18 | AC51: 27 | AD51: -38 | AE51: -5 | AF51: 35 | AG51: -4 | AH51: 29
B52: Commodities of hedge Result - closed operations | C52: 0 | D52: 0 | E52: 0 | F52: 0 | G52: 19 | H52: -35 | I52: 48 | J52: -5 | K52: 124 | L52: 327 | M52: -49 | N52: -7 | O52: -273 | P52: -74 | Q52: -44 | R52: -39 | S52: -489 | T52: -273 | U52: 380 | V52: -482 | W52: 39 | X52: 17 | Y52: -80 | Z52: 55 | AA52: -62 | AB52: 44 | AC52: 152 | AD52: 7 | AE52: -30 | AF52: -33 | AG52: -53 | AH52: -26
B53: Performance awards and others awards | C53: 0 | D53: -50 | E53: -21 | F53: -19 | G53: -13 | H53: -14 | I53: -13 | J53: -12 | K53: 0 | L53: 0 | M53: 3 | N53: -30 | O53: -13 | P53: -15 | Q53: -15 | R53: -37 | S53: -21 | T53: -22 | U53: -21 | V53: -18 | W53: -30 | X53: -20 | Y53: -21 | Z53: -81 | AA53: -27 | AB53: -34 | AC53: -29 | AD53: -77 | AE53: -36 | AF53: -35 | AG53: -1 | AH53: -60
B54: Others | C54: -14 | D54: 9 | E54: -3 | F54: 21 | G54: -7 | H54: -2 | I54: 19 | J54: -40 | K54: -13 | L54: 51 | M54: 57 | N54: -44 | O54: -3 | P54: -1 | Q54: -10 | R54: 4 | S54: 9 | T54: -42 | U54: 20 | V54: -17 | W54: -37 | X54: -9 | Y54: 1 | Z54: -46 | AA54: 50 | AB54: 90 | AC54: -43 | AD54: - | AE54: 37 | AF54: 28 | AG54: 50 | AH54: 0
B55: PIS/COFINS Credits - essential operating expenses (******) | C55: 0 | D55: 0 | E55: 0 | F55: 0 | G55: 0 | H55: 0 | I55: 0 | J55: 0 | K55: 0 | L55: 0 | M55: 0 | N55: 0 | O55: 0 | P55: 0 | Q55: 0 | R55: 0 | S55: 0 | T55: 0 | U55: 0 | V55: 672 | W55: 32 | X55: 46 | Y55: 0 | Z55: 0 | AA55: 0 | AB55: 0 | AC55: 0 | AD55: - | AE55: 0 | AF55: 0 | AG55: 0 | AH55: 0
B56: Recovery with presumed tax credit - ICMS (****) | C56: 1 | D56: 1 | E56: 1 | F56: 1 | G56: 0 | H56: 1 | I56: 1 | J56: 1 | K56: 1 | L56: 1 | M56: 1 | N56: 1 | O56: 2 | P56: 1 | Q56: 4 | R56: 6 | S56: 6 | T56: 6 | U56: 35 | V56: 116 | W56: 15 | X56: 12 | Y56: 2 | Z56: 1 | AA56: 0 | AB56: 0 | AC56: 0 | AD56: 3 | AE56: 0 | AF56: 0 | AH56: 4
B57: Win in lawsuit against the State of Goiás | C57: 0 | D57: 0 | E57: 0 | F57: 0 | G57: 0 | H57: 0 | I57: 0 | J57: 0 | K57: 0 | L57: 0 | M57: 0 | N57: 0 | O57: 0 | P57: 0 | Q57: 0 | R57: 0 | S57: 0 | T57: 0 | U57: 0 | V57: 0 | W57: 0 | X57: 120 | Y57: 0 | Z57: 0 | AA57: 0 | AB57: 0 | AC57: 0 | AD57: 0 | AE57: 0 | AF57: 0 | AH57: 0
B58: Provision for out-of-court settlements | C58: 0 | D58: 0 | E58: 0 | F58: 0 | G58: 0 | H58: 0 | I58: 0 | J58: 0 | K58: 0 | L58: 0 | M58: 0 | N58: 0 | O58: 0 | P58: 0 | Q58: 0 | R58: 0 | S58: 0 | T58: 0 | U58: 0 | V58: 0 | W58: 0 | X58: 0 | Y58: -360 | Z58: 0 | AA58: 0 | AB58: 0 | AC58: 0 | AD58: 0 | AE58: 0 | AF58: -20 | AG58: 0 | AH58: 0
B59: Credit PIS overpayment tax-half-yearly | C59: 0 | D59: 0 | E59: 0 | F59: 0 | G59: 0 | H59: 0 | I59: 0 | J59: 0 | K59: 0 | L59: 0 | M59: 0 | N59: 0 | O59: 0 | P59: 0 | Q59: 0 | R59: 0 | S59: 0 | T59: 0 | U59: 0 | V59: 0 | W59: 0 | X59: 0 | Y59: 0 | Z59: 828 | AA59: 0 | AB59: 0 | AC59: 0 | AD59: - | AE59: 0 | AF59: 0 | AH59: 0
B60: PIS/COFINS credits | C60: 0 | D60: 0 | E60: 0 | F60: 0 | G60: 0 | H60: 0 | I60: 0 | J60: 0 | K60: 0 | L60: 0 | M60: 0 | N60: 0 | O60: 0 | P60: 0 | Q60: 0 | R60: 0 | S60: 0 | T60: 0 | U60: 0 | V60: 0 | W60: 0 | X60: 0 | Y60: 0 | Z60: 2591 | AA60: 535 | AB60: 0 | AC60: 4506 | AD60: - | AE60: 398 | AF60: 188 | AG60: 61 | AH60: 754
B61: Remeasurement of equity interest (acquisition of control) | C61: 0 | D61: 0 | E61: 0 | F61: 0 | G61: 0 | H61: 0 | I61: 0 | J61: 0 | K61: 0 | L61: 0 | M61: 0 | N61: 0 | O61: 0 | P61: 0 | Q61: 0 | R61: 0 | S61: 0 | T61: 0 | U61: 0 | V61: 0 | W61: 0 | X61: 0 | Y61: 0 | Z61: -19 | AA61: 0 | AB61: 0 | AC61: 0 | AD61: - | AE61: 0 | AF61: 0 | AH61: 0
B62: Reversão - earnout participação societária | C62: 0 | D62: 0 | E62: 0 | F62: 0 | G62: 0 | H62: 0 | I62: 0 | J62: 0 | K62: 0 | L62: 0 | M62: 0 | N62: 0 | O62: 0 | P62: 0 | Q62: 0 | R62: 0 | S62: 0 | T62: 0 | U62: 0 | V62: 0 | W62: 0 | X62: 0 | Y62: 0 | Z62: 0 | AA62: 0 | AB62: 0 | AC62: 0 | AD62: 0 | AE62: 0 | AF62: 157 | AH62: 0
B63: Reversão na perda no valor de recuperação de ativos - Impairment | C63: 0 | D63: 0 | E63: 0 | F63: 0 | G63: 0 | H63: 0 | I63: 0 | J63: 0 | K63: 0 | L63: 0 | M63: 0 | N63: 0 | O63: 0 | P63: 0 | Q63: 0 | R63: 0 | S63: 0 | T63: 0 | U63: 0 | V63: 0 | W63: 0 | X63: 0 | Y63: 0 | Z63: 0 | AA63: 0 | AB63: 0 | AC63: 0 | AD63: -705 | AE63: 0 | AF63: 362 | AH63: -988
B64: Gain arising from a pre-existing contractual relationship (acquisition of control) | C64: 0 | D64: 0 | E64: 0 | F64: 0 | G64: 0 | H64: 0 | I64: 0 | J64: 0 | K64: 0 | L64: 0 | M64: 0 | N64: 0 | O64: 0 | P64: 0 | Q64: 0 | R64: 0 | S64: 0 | T64: 0 | U64: 0 | V64: 0 | W64: 0 | X64: 0 | Y64: 0 | Z64: 31 | AA64: 0 | AB64: 0 | AC64: 0 | AD64: - | AE64: 0 | AF64: 0 | AH64: 0
B65: Fair Value – Available for Sale – Evolua | C65: 0 | D65: 0 | E65: 0 | F65: 0 | G65: 0 | H65: 0 | I65: 0 | J65: 0 | K65: 0 | L65: 0 | M65: 0 | N65: 0 | O65: 0 | P65: 0 | Q65: 0 | R65: 0 | S65: 0 | T65: 0 | U65: 0 | V65: 0 | W65: 0 | X65: 0 | Y65: 0 | Z65: 0 | AA65: 0 | AB65: 0 | AC65: 0 | AD65: 0 | AE65: 0 | AF65: 0 | AG65: 0 | AH65: -55
B66: Provision for tax recovery loss | C66: -2 | D66: 1 | E66: 1 | F66: 0 | G66: 1 | H66: 0 | I66: -1 | J66: -1 | K66: -4 | L66: -1 | M66: -2 | N66: -6 | O66: -6 | P66: -2 | Q66: -9 | R66: -6 | S66: -1 | T66: 11 | U66: 12 | V66: 6 | W66: -2 | X66: -2 | Y66: 1 | Z66: -99 | AA66: -5 | AB66: 1 | AC66: 0 | AD66: 7 | AE66: 0 | AF66: 0 | AH66: 0
B68: (*) Os valores de Perdas com títulos incobráveis passaram a ser apresentados em linha específica a partir de 2020.
B69: (**) Em 2018, os valores de Resultado de hedge de commodities estavam classificados no resultado financeiro conforme nota explicativa nº 25 de março, junho e setembro de 2018 e nota explicativa nº 26 de dezembro de 2018. Os valores dos trimestres foram R$7 (1T18), -R$28 (2T18), -R$9 (3T18) e R$55 (4T18).
B70: (***) Inclui "Resultado com alienação/baixa de ativos" no valor de R$42 (1T23), R$58 (2T23) e R$75 (3T23) e "Resultado com alienação/baixa - participações societárias" no valor de R$0 no 1T23, R$0 no 2T23 e R$564 no 3T23.
B71: (****) A partir do 2T22 está sendo apresentado junto ao item "Produtos para revenda"
B72: (*****) No 1T23, 2T23 e 3T23, os saldos das linhas "Recuperação com Crédito Fiscal Presumido - ICMS" e "Desapropriação imóvel" estão sendo apresentadas na linha de "Outros" da nota de "Outras receitas (despesas) líquidas" das Demonstrações Contábeis de Março de 2023, de Junho de 2023 e de Setembro de 2023.
B73: (******) Alterado de: Créditos de PIS/COFINS, Para: Créditos de PIS/COFINS - despesas operacionais essenciais

Sheet 10. Hedge
B3: 10. Hedge | C3: 2T19 | D3: 3T19 | E3: 4T19 | F3: 1T20 | G3: 2T20 | H3: 3T20 | I3: 4T20 | J3: 1T21 | K3: 2T21 | L3: 3T21 | M3: 4T21 | N3: 1T22 | O3: 2T22 | P3: 3T22 | Q3: 4T22 | R3: 1T23 | S3: 2T23 | T3: 3T23 | U3: 4T23 | V3: 1T24 | W3: 2T24 | X3: 3T24 | Y3: 4T24 | Z3: 1T25 | AA3: 2T25 | AB3: 3T25 | AC3: 4T25
B6: VIBRA ENERGIA - Consolidated
B7: (millions)
B9: Operational expenses adjusted | C9: -901 | D9: -169 | E9: -879 | F9: -554 | G9: 60 | H9: -703 | I9: -87 | J9: -887 | K9: -498 | L9: -539 | M9: -758 | N9: -1248 | O9: -1200 | P9: -368 | Q9: -227 | R9: -848 | S9: -808 | T9: -912 | U9: 2327 | V9: -341 | W9: -652 | X9: 3729 | Y9: -811 | Z9: =SUM('05. Segment Reporting'!AL34,'05. Segment Reporting'!AL40,'05. Segment Reporting'!AL46)-SUM('05. Segment Reporting'!AL39,'05. Segment Reporting'!AL45,'05. Segment Reporting'!AL51) -> -594 | AA9: =SUM('05. Segment Reporting'!AM34,'05. Segment Reporting'!AM40,'05. Segment Reporting'!AM46)-SUM('05. Segment Reporting'!AM39,'05. Segment Reporting'!AM45,'05. Segment Reporting'!AM51) -> -731 | AB9: =SUM('05. Segment Reporting'!AN34,'05. Segment Reporting'!AN40,'05. Segment Reporting'!AN46)-SUM('05. Segment Reporting'!AN39,'05. Segment Reporting'!AN45,'05. Segment Reporting'!AN51) -> -865 | AC9: =SUM('05. Segment Reporting'!AO34,'05. Segment Reporting'!AO40,'05. Segment Reporting'!AO46)-SUM('05. Segment Reporting'!AO39,'05. Segment Reporting'!AO45,'05. Segment Reporting'!AO51) -> -246
B10: Settled Commodities Hedge | C10: 35 | D10: 48 | E10: 5 | F10: -124 | G10: -327 | H10: 49 | I10: 7 | J10: 273 | K10: 74 | L10: 44 | M10: 39 | N10: 489 | O10: 273 | P10: -380 | Q10: 482 | R10: -39 | S10: -17 | T10: 80 | U10: -55 | V10: 62 | W10: -33 | X10: -122 | Y10: -11 | Z10: 54 | AA10: 29 | AB10: 19 | AC10: -32.95936503
B11: CBIOS | C11: 0 | D11: 0 | E11: 0 | F11: 0 | G11: 0 | H11: 111 | I11: 79 | J11: 50 | K11: 50 | L11: 58 | M11: 81 | N11: 206 | O11: 321 | P11: 311 | Q11: 212 | R11: 269 | S11: 390 | T11: 301 | U11: 286 | V11: 255 | W11: 212 | X11: 181 | Y11: 189 | Z11: 146 | AA11: 142 | AB11: 129 | AC11: 80
B12: Extraordinary tax recoveries | C12: 0 | D12: 0 | E12: 0 | F12: 0 | G12: 0 | H12: 0 | I12: 0 | J12: 0 | K12: 0 | L12: 0 | M12: 0 | N12: 0 | O12: 0 | P12: 0 | Q12: 0 | R12: 0 | S12: 0 | T12: 0 | U12: -2591 | V12: -535 | W12: 0 | X12: -4075 | Y12: 0 | Z12: 0 | AA12: 0 | AB12: - | AC12: -
B13: PIS/COFINS Result | C13: 0 | D13: 0 | E13: 0 | F13: 0 | G13: -376 | H13: -16 | I13: -647 | J13: 0 | K13: -79 | L13: 0 | M13: 0 | N13: 0 | O13: 0 | P13: 0 | Q13: 0 | R13: 0 | S13: 0 | T13: 0 | U13: 0 | V13: 0 | W13: 0 | X13: 0 | Y13: 0 | Z13: 0 | AB13: - | AC13: -
B14: Other tax recoveries | C14: 0 | D14: 0 | E14: 0 | F14: 0 | G14: 0 | H14: 0 | I14: 0 | J14: 0 | K14: 0 | L14: 0 | M14: 0 | N14: -7 | O14: -25 | P14: -47 | Q14: -683 | R14: -33 | S14: -166 | T14: -102 | U14: -748 | V14: 0 | W14: -65 | X14: -337 | Y14: -72 | Z14: -394 | AA14: -208 | AB14: -78 | AC14: -695.8143293
B15: Properties Sell | C15: 0 | D15: 0 | E15: 0 | F15: 0 | G15: 0 | H15: 0 | I15: 0 | J15: 0 | K15: 0 | L15: 0 | M15: 0 | N15: 0 | O15: -26 | P15: -136 | Q15: -326 | R15: -42 | S15: -58 | T15: -75 | U15: -87 | V15: -56 | W15: -107 | X15: -53 | Y15: -117 | Z15: -37 | AA15: -57 | AB15: -83 | AC15: -105
B16: Operational expenses without Hedge | CBIOs | PIS e COFINS | C16: =SUM(C9:C15) -> -866 | D16: -121 | E16: -874 | F16: -678 | G16: -643 | H16: -559 | I16: -648 | J16: -564 | K16: -453 | L16: -437 | M16: -638 | N16: -560 | O16: -657 | P16: -620 | Q16: -542 | R16: -693 | S16: -659 | T16: -708 | U16: -868 | V16: -615 | W16: -645 | X16: -677 | Y16: -822 | Z16: -825 | AA16: -825 | AB16: =SUM(AB9:AB15) -> -878 | AC16: -999.7736944
B18: Retail
B19: (millions)
B21: Operational expenses adjusted | C21: -345 | D21: -255 | E21: -325 | F21: -177 | G21: -18 | H21: -324 | I21: -299 | J21: -397 | K21: -290 | L21: -280 | M21: -337 | N21: -620 | O21: -617 | P21: -118 | Q21: -413 | R21: -424 | S21: -383 | T21: -495 | U21: 1300 | V21: -464 | W21: -300 | X21: 13 | Y21: -306 | Z21: =SUM('05. Segment Reporting'!AL35,'05. Segment Reporting'!AL41,'05. Segment Reporting'!AL47) -> -356 | AA21: =SUM('05. Segment Reporting'!AM35,'05. Segment Reporting'!AM41,'05. Segment Reporting'!AM47) -> -359 | AB21: =SUM('05. Segment Reporting'!AN35,'05. Segment Reporting'!AN41,'05. Segment Reporting'!AN47) -> -247 | AC21: =SUM('05. Segment Reporting'!AO35,'05. Segment Reporting'!AO41,'05. Segment Reporting'!AO47) -> 269
B22: Settled Hedge Result | C22: 23 | D22: 27 | E22: 3 | F22: -75 | G22: -221 | H22: 29 | I22: 14 | J22: 172 | K22: 51 | L22: 26 | M22: 32 | N22: 255 | O22: 164 | P22: -238 | Q22: 239 | R22: -7 | S22: -10 | T22: 47 | U22: -22 | V22: 45 | W22: -19 | X22: -67 | Y22: -11 | Z22: 36 | AA22: 12 | AB22: 15 | AC22: -4.05496229
B23: CBIOS | C23: 0 | D23: 0 | E23: 0 | F23: 0 | G23: 0 | H23: 78 | I23: 56 | J23: 36 | K23: 36 | L23: 41 | M23: 57 | N23: 149 | O23: 230 | P23: 222 | Q23: 152 | R23: 200 | S23: 285 | T23: 219 | U23: 208 | V23: 190 | W23: 155 | X23: 131 | Y23: 136 | Z23: 105 | AA23: 142 | AB23: 92 | AC23: 57
B24: Extraordinary tax recoveries | C24: 0 | D24: 0 | E24: 0 | F24: 0 | G24: 0 | H24: 0 | I24: 0 | J24: 0 | K24: 0 | L24: 0 | M24: 0 | N24: 0 | O24: 0 | P24: 0 | Q24: 0 | R24: 0 | S24: 0 | T24: 0 | U24: -1303 | V24: 0 | W24: 0 | X24: 0 | Y24: 0 | Z24: 0 | AB24: - | AC24: 0
B25: Other tax recoveries | C25: 0 | D25: 0 | E25: 0 | F25: 0 | G25: 0 | H25: 0 | I25: 0 | J25: 0 | K25: 0 | L25: 0 | M25: 0 | N25: 0 | O25: 0 | P25: 0 | Q25: 0 | R25: 0 | S25: -141 | T25: -12 | U25: -435 | V25: 0 | W25: -32 | X25: -286 | Y25: 0 | Z25: -61 | AA25: -1 | AB25: -58 | AC25: -575.1683646
B26: Properties Sell | C26: 0 | D26: 0 | E26: 0 | F26: 0 | G26: 0 | H26: 0 | I26: 0 | J26: 0 | K26: 0 | L26: 0 | M26: 0 | N26: -10 | O26: -26 | P26: -136 | Q26: -265 | R26: -46 | S26: -59 | T26: -59 | U26: -54 | V26: -52 | W26: -86 | X26: -55 | Y26: -128 | Z26: -37 | AA26: -57 | AB26: -80 | AC26: -101
B27: Operational expenses without Hedge | CBIOs | C27: =SUM(C21:C26) -> -322 | D27: -228 | E27: -322 | F27: -252 | G27: -239 | H27: -217 | I27: -229 | J27: -189 | K27: -203 | L27: -213 | M27: -248 | N27: -226 | O27: -249 | P27: -270 | Q27: -287 | R27: =SUM(R21:R26) -> -277 | S27: =SUM(S21:S26) -> -308 | T27: =SUM(T21:T26) -> -300 | U27: =SUM(U21:U26) -> -306 | V27: =SUM(V21:V26) -> -281 | W27: -282 | X27: -264 | Y27: -309 | Z27: -313 | AA27: -263 | AB27: =SUM(AB21:AB26) -> -278 | AC27: -354.2233269
B29: B2B
B30: (millions)
B32: Operational expenses adjusted | C32: -265 | D32: -192 | E32: -265 | F32: -155 | G32: -112 | H32: -270 | I32: -186 | J32: -453 | K32: -256 | L32: -185 | M32: -303 | N32: -561 | O32: -523 | P32: -309 | Q32: -649 | R32: -339 | S32: -349 | T32: -367 | U32: 1140 | V32: -337 | W32: -327 | X32: -250 | Y32: -423 | Z32: =SUM('05. Segment Reporting'!AL37,'05. Segment Reporting'!AL43,'05. Segment Reporting'!AL49) -> -82 | AA32: =SUM('05. Segment Reporting'!AM37,'05. Segment Reporting'!AM43,'05. Segment Reporting'!AM49) -> -175 | AB32: =SUM('05. Segment Reporting'!AN37,'05. Segment Reporting'!AN43,'05. Segment Reporting'!AN49) -> -503 | AC32: =SUM('05. Segment Reporting'!AO37,'05. Segment Reporting'!AO43,'05. Segment Reporting'!AO49) -> -338
B33: Settled Hedge Result | C33: -12 | D33: -21 | E33: 2 | F33: -49 | G33: -106 | H33: 20 | I33: -7 | J33: 101 | K33: 23 | L33: 18 | M33: 7 | N33: 237 | O33: 109 | P33: -142 | Q33: 243 | R33: -32 | S33: -7 | T33: 33 | U33: -33 | V33: 17 | W33: -14 | X33: -55 | Y33: 0 | Z33: 18 | AA33: 17 | AB33: 4 | AC33: -9.90440274
B34: CBIOS | C34: 0 | D34: 0 | E34: 0 | F34: 0 | G34: 0 | H34: 33 | I34: 23 | J34: 14 | K34: 14 | L34: 17 | M34: 24 | N34: 57 | O34: 91 | P34: 89 | Q34: 60 | R34: 69 | S34: 105 | T34: 82 | U34: 78 | V34: 65 | W34: 57 | X34: 50 | Y34: 54 | Z34: 41 | AA34: 40 | AB34: 37 | AC34: 23
B35: Extraordinary tax recoveries | C35: 0 | D35: 0 | E35: 0 | F35: 0 | G35: 0 | H35: 0 | I35: 0 | J35: 0 | K35: 0 | L35: 0 | M35: 0 | N35: 0 | O35: 0 | P35: 0 | Q35: 0 | R35: 0 | S35: 0 | T35: 0 | U35: -1284 | V35: 0 | W35: 0 | X35: 0 | Y35: 0 | Z35: 0 | AA35: - | AB35: - | AC35: 0
B36: Other tax recoveries | C36: 0 | D36: 0 | E36: 0 | F36: 0 | G36: 0 | H36: 0 | I36: 0 | J36: 0 | K36: 0 | L36: 0 | M36: 0 | N36: 0 | O36: 0 | P36: 0 | Q36: 0 | R36: 0 | S36: -54 | T36: -81 | U36: -327 | V36: 0 | W36: -31 | X36: -79 | Y36: -72 | Z36: -333 | AA36: -207 | AB36: -19 | AC36: -127.7438
B37: Properties Sell | C37: 0 | D37: 0 | E37: 0 | F37: 0 | G37: 0 | H37: 0 | I37: 0 | J37: 0 | K37: 0 | L37: 0 | M37: 0 | N37: -1 | O37: 0 | P37: 0 | Q37: -1 | R37: -5 | S37: -1 | T37: 0 | U37: 0 | V37: 2 | W37: -4 | X37: 0 | Y37: 14 | Z37: 1 | AA37: 0 | AB37: 0 | AC37: 1
B38: Operational expenses without Hedge | CBIOs | C38: =SUM(C32:C37) -> -277 | D38: -213 | E38: -263 | F38: -204 | G38: -218 | H38: -217 | I38: -170 | J38: -338 | K38: -219 | L38: -150 | M38: -272 | N38: -268 | O38: -323 | P38: -362 | Q38: -347 | R38: =SUM(R32:R37) -> -307 | S38: =SUM(S32:S37) -> -306 | T38: =SUM(T32:T37) -> -333 | U38: =SUM(U32:U37) -> -426 | V38: =SUM(V32:V37) -> -253 | W38: -319 | X38: -334 | Y38: -427 | Z38: -355 | AA38: -325 | AB38: =SUM(AB32:AB37) -> -481 | AC38: -451.6482027

Sheet 11. Debt
B3: 11. Debt | C3: 2017 | D3: 1Q18 | E3: 2Q18 | F3: 3Q18 | G3: 4Q18 | H3: 1Q19 | I3: 2Q19 | J3: 3Q19 | K3: 4Q19 | L3: 1Q20 | M3: 2Q20 | N3: 3Q20 | O3: 4Q20 | P3: 1Q21 | Q3: 2Q21 | R3: 3Q21 | S3: 4Q21 | T3: 1Q22 | U3: 2Q22 | V3: 3Q22 | W3: 4Q22 | X3: 1Q23 | Y3: 2Q23 | Z3: 3Q23 | AA3: 4Q23 | AB3: 1Q24 | AC3: 2Q24 | AD3: 3Q24 | AE3: 4Q24 | AF3: 1Q25 | AG3: 2Q25 | AH3: 3Q25 | AI3: 4Q25
B6: VIBRA ENERGIA - Consolidated
B7: (millions)
B9: Loans and financing | C9: 4640 | D9: 4585 | E9: 4521 | F9: 5552 | G9: 5524 | H9: 5434 | I9: 5412 | J9: 5489 | K9: 5957 | L9: 9531 | M9: 8424 | N9: 8512 | O9: 7757 | P9: 9014 | Q9: 8299 | R9: 9930 | S9: 13538 | T9: 13082 | U9: 14953 | V9: 16826 | W9: 16557 | X9: 16451 | Y9: 16106 | Z9: 15229 | AA9: 14770 | AB9: 14902 | AC9: 18333 | AD9: 16724 | AE9: 20449 | AF9: =SUM('03. Balance Sheet'!AI46,'03. Balance Sheet'!AI47,'03. Balance Sheet'!AI68) -> 25951 | AG9: =SUM('03. Balance Sheet'!AJ46,'03. Balance Sheet'!AJ47,'03. Balance Sheet'!AJ68) -> 24987 | AH9: =SUM('03. Balance Sheet'!AK46,'03. Balance Sheet'!AK47,'03. Balance Sheet'!AK68) -> 24259 | AI9: =SUM('03. Balance Sheet'!AL46,'03. Balance Sheet'!AL47,'03. Balance Sheet'!AL68) -> 22365
B10: Drawn risk | C10: 0 | D10: 0 | E10: 0 | F10: 0 | G10: 0 | H10: 0 | I10: 0 | J10: 0 | K10: 0 | L10: 0 | M10: 0 | N10: 0 | O10: 0 | P10: 0 | Q10: 0 | R10: 0 | S10: 0 | T10: 0 | U10: 0 | V10: 0 | W10: 0 | X10: 588 | Y10: 0 | Z10: 0 | AA10: 0 | AB10: 0 | AC10: 0 | AD10: 0 | AE10: 0 | AF10: 0 | AG10: 0 | AH10: 0 | AI10: 0
B11: Commercial lease | C11: 72 | D11: 73 | E11: 74 | F11: 73 | G11: 48 | H11: 923 | I11: 743 | J11: 731 | K11: 818 | L11: 810 | M11: 796 | N11: 779 | O11: 796 | P11: 834 | Q11: 829 | R11: 858 | S11: 824 | T11: 818 | U11: 822 | V11: 859 | W11: 834 | X11: 817 | Y11: 792 | Z11: 774 | AA11: 748 | AB11: 745 | AC11: 373 | AD11: 362 | AE11: 359 | AF11: =SUM('03. Balance Sheet'!AI50,'03. Balance Sheet'!AI69) -> 666 | AG11: =SUM('03. Balance Sheet'!AJ50,'03. Balance Sheet'!AJ69) -> 709 | AH11: 736 | AI11: 851
B12: Consolidated Gross debt | C12: =C9+C11 -> 4712 | D12: 4658 | E12: 4595 | F12: 5625 | G12: 5572 | H12: 6357 | I12: 6155 | J12: 6220 | K12: 6775 | L12: 10341 | M12: 9220 | N12: 9291 | O12: 8553 | P12: 9848 | Q12: 9128 | R12: 10788 | S12: =S9+S11 -> 14362 | T12: 13900 | U12: =SUM(U9:U11) -> 15775 | V12: 17685 | W12: 17391 | X12: 17856 | Y12: 16898 | Z12: 16003 | AA12: 15518 | AB12: =SUM(AB9:AB11) -> 15647 | AC12: 18706 | AD12: 17086 | AE12: 20808 | AF12: 26617 | AG12: 25696 | AH12: =SUM(AH9:AH11) -> 24995 | AI12: 23216
B14: SWAP | C14: 0 | D14: 0 | E14: 0 | F14: 0 | G14: 0 | H14: 0 | I14: 0 | J14: 0 | K14: 0 | L14: -421 | M14: -631 | N14: -733 | O14: -504 | P14: -821 | Q14: -183 | R14: -578 | S14: -626 | T14: 624 | U14: 279 | V14: 172 | W14: 483 | X14: 527 | Y14: 961 | Z14: 600 | AA14: 644 | AB14: 480 | AC14: -58 | AD14: -196 | AE14: -874 | AF14: -61 | AG14: 142 | AH14: 222 | AI14: 119
B15: Gross debt upon WAP | C15: =SUM(C12,C14) -> 4712 | D15: 4658 | E15: 4595 | F15: 5625 | G15: 5572 | H15: 6357 | I15: 6155 | J15: 6220 | K15: 6775 | L15: 9920 | M15: 8589 | N15: 8558 | O15: 8049 | P15: 9027 | Q15: 8945 | R15: 10210 | S15: 13736 | T15: 14524 | U15: 16054 | V15: 17857 | W15: 17874 | X15: 18383 | Y15: 17859 | Z15: 16603 | AA15: 16162 | AB15: 16127 | AC15: 18648 | AD15: 16890 | AE15: 19934 | AF15: 26556 | AG15: =SUM(AG12,AG14) -> 25838 | AH15: =SUM(AH12,AH14) -> 25217 | AI15: =SUM(AI12,AI14) -> 23335
B17: Cash and cash equivalents | C17: 483 | D17: 1105 | E17: 1352 | F17: 1500 | G17: 3057 | H17: 3849 | I17: 1885 | J17: 3909 | K17: 2362 | L17: 5997 | M17: 5307 | N17: 4476 | O17: 3358 | P17: 3893 | Q17: 2311 | R17: 2030 | S17: 3625 | T17: 4309 | U17: 2759 | V17: 3113 | W17: 4145 | X17: 5816 | Y17: 5662 | Z17: 6436 | AA17: 6666 | AB17: 5476 | AC17: 8225 | AD17: 7589 | AE17: 10480 | AF17: =SUM('03. Balance Sheet'!AI10:AI12,'03. Balance Sheet'!AI25:AI26) -> 6010 | AG17: =SUM('03. Balance Sheet'!AJ10:AJ12,'03. Balance Sheet'!AJ25:AJ26) -> 4833 | AH17: =SUM('03. Balance Sheet'!AK10:AK12,'03. Balance Sheet'!AK25:AK26) -> 6467 | AI17: =SUM('03. Balance Sheet'!AL10:AL12,'03. Balance Sheet'!AL25:AL26) -> 4146
B18: Net debt | C18: =C15-C17 -> 4229 | D18: =D15-D17 -> 3553 | E18: 3243 | F18: 4125 | G18: 2515 | H18: 2508 | I18: 4270 | J18: 2311 | K18: 4413 | L18: 3923 | M18: 3282 | N18: 4082 | O18: 4691 | P18: 5134 | Q18: 6634 | R18: 8180 | S18: 10111 | T18: 10215 | U18: 13295 | V18: 14744 | W18: 13729 | X18: 12567 | Y18: 12197 | Z18: 10167 | AA18: 9496 | AB18: 10651 | AC18: 10423 | AD18: 9301 | AE18: 9454 | AF18: 20546 | AG18: 21005 | AH18: =AH15-AH17 -> 18750 | AI18: 19189
B20: Adjusted Ebitda LTM | C20: 3067 | D20: 3193 | E20: 3220 | F20: 2795 | G20: 2558 | H20: 2645 | I20: 2643 | J20: 2831 | K20: 3132 | L20: 2817 | M20: 3127 | N20: 3142 | O20: 3811 | P20: 4448 | Q20: 4650 | R20: 5001 | S20: 4983 | T20: 4908 | U20: 5502 | V20: 5242 | W20: 5225 | X20: 4709 | Y20: 4021 | Z20: 5438 | AA20: 8850 | AB20: 10107 | AC20: 10747 | AD20: 14476 | AE20: 10864 | AF20: 11634 | AG20: 11393 | AH20: 6868 | AI20: 7923
B21: Net debt / Adjusted Ebitda LTM | C21: =C18/C20 -> 1.378871862 | D21: 1.112746633 | E21: 1.007142857 | F21: 1.475849732 | G21: =G18/G20 -> 0.9831899922 | H21: 0.9482041588 | I21: 1.615588347 | J21: 0.8163193218 | K21: 1.409003831 | L21: 1.392616258 | M21: 1.049568276 | N21: 1.299172502 | O21: 1.230910522 | P21: 1.154226619 | Q21: 1.426666667 | R21: 1.635672865 | S21: 2.029098936 | T21: 2.081295844 | U21: 2.416394039 | V21: 2.812666921 | W21: 2.627559809 | X21: =X18/X20 -> 2.668719473 | Y21: =Y18/Y20 -> 3.033325044 | Z21: =Z18/Z20 -> 1.869621184 | AA21: =AA18/AA20 -> 1.07299435 | AB21: =AB18/AB20 -> 1.053824082 | AC21: 0.9698520517 | AD21: 0.6425117436 | AE21: 0.8702135493 | AF21: 1.7660306 | AG21: 1.843675941 | AH21: =AH18/AH20 -> 2.730052417 | AI21: 2.421936135
B23: Average cost of accumulated debt (% p.y.) | C23: 0.07848092253 | D23: 0.07420864077 | E23: 0.07427532614 | F23: 0.07510529674 | G23: 0.07543414142 | H23: 0.07525555149 | I23: 0.07624009803 | J23: 0.07409958487 | K23: 0.07019858625 | L23: 0.05400057496 | M23: 0.05213412738 | N23: 0.04875941843 | O23: 0.04776762556 | P23: 0.0445296429 | Q23: 0.04958654879 | R23: 0.05798864589 | S23: 0.0904 | T23: 0.12 | U23: 0.13 | V23: 0.1368 | W23: 0.141 | X23: 0.152 | Y23: 0.152 | Z23: 0.142 | AA23: 0.132 | AB23: 0.1218 | AC23: 0.1232 | AD23: 0.122 | AE23: 0.124 | AF23: 0.1512 | AG23: 0.1583 | AH23: 0.0073 | AI23: 0.0073
B25: Average maturity of the debt (years) | C25: 2.8 | D25: 2.7 | E25: 2.5 | F25: 2.7 | G25: 2.5 | H25: 2.26040415 | I25: 2.009698405 | J25: 1.797492305 | K25: 1.493916623 | L25: 2.031916513 | M25: 2.66036422 | N25: 2.391750803 | O25: 2.29 | P25: 3.65 | Q25: 3.45 | R25: 3.74 | S25: 4.43 | T25: 4.49 | U25: 4.3 | V25: 4.3 | W25: 4.2 | X25: 4.1 | Y25: 3.8 | Z25: 4 | AA25: 3.8 | AB25: 3.6 | AC25: 4.1 | AD25: 3.9 | AE25: 3.9 | AF25: 4.6 | AG25: 4.5 | AH25: 4.5 | AI25: 4.55
B27: CDI | C27: 0.0689 | D27: 0.0639 | E27: 0.0639 | F27: 0.0639 | G27: 0.064 | H27: 0.064 | I27: 0.064 | J27: 0.054 | K27: 0.044 | L27: 0.0365 | M27: 0.0215 | N27: 0.019 | O27: 0.019 | P27: 0.0265 | Q27: 0.0415 | R27: 0.0615 | S27: 0.0915 | T27: 0.1165 | U27: 0.1315 | V27: 0.1365 | W27: 0.1365 | X27: 0.137 | Y27: 0.137 | Z27: 0.127 | AA27: 0.117 | AB27: 0.1065 | AC27: 0.104 | AD27: 0.1065 | AE27: 0.122 | AF27: 0.142 | AG27: 0.142 | AI27: 0.149
B28: IPCA (m-1)* | C28: 0.028 | D28: 0.0284 | E28: 0.0286 | F28: 0.0419 | G28: 0.0405 | H28: 0.0389 | I28: 0.0466 | J28: 0.0343 | K28: 0.0327 | L28: 0.0401 | M28: 0.0188 | N28: 0.0243846476 | O28: 0.04311223326 | P28: 0.05195378643 | Q28: 0.08056065441 | R28: 0.09679773624 | S28: 0.107385 | T28: 0.105436 | U28: 0.117311 | V28: 0.0873 | W28: 0.0579 | X28: 0.0465 | Y28: 0.0316 | Z28: 0.0519 | AA28: 0.0462 | AB28: 0.0393 | AC28: 0.0423 | AD28: 0.0442 | AE28: 0.0483 | AF28: 0.0506 | AG28: 0.0506 | AI28: 0.0446
B29: USDBRL | C29: 3.248033333 | D29: 3.243966667 | E29: 3.608833333 | F29: 3.956433333 | G29: 3.814233333 | H29: 3.768133333 | I29: 3.9184 | J29: 3.979766667 | K29: 4.1183 | L29: 4.466533333 | M29: 5.389633333 | N29: 5.384433333 | O29: 5.4013 | P29: 5.4738 | Q29: 5.2923 | R29: 5.233066667 | S29: 5.5805 | T29: 4.7378 | U29: 5.238 | V29: 5.4066 | W29: 5.2177 | X29: 5.0804 | Y29: 4.8192 | Z29: 5.0076 | AA29: 4.8413 | AB29: 4.9962 | AC29: 5.5589 | AD29: 5.4481 | AE29: 6.1923 | AF29: 5.737 | AG29: 6.737 | AI29: 5.5024
B31: * (m-1): used to calculate the cost of debt as there isn't index performed for the current month

Sheet 12. ESG
B3: 12. ESG | C3: 2017 | D3: 2018 | E3: 2019 | F3: 2020 | G3: 2021 | H3: 2022 | I3: 2023 | J3: 2024
B6: VIBRA ENERGIA - Consolidado
B7: (milhões)
B9: Público Interno
B11: GRI 2-7
B13: Colaboradores
B14: Homens | E14: 3262 | F14: 2459 | G14: 2419 | H14: 2378 | I14: 2485 | J14: 2603
B15: Mulheres | E15: 1218 | F15: 911 | G15: 958 | H15: 986 | I15: 1041 | J15: 1211
B17: Nº de colaboradores por região
B18: Região Norte | E18: 474 | F18: 224 | G18: 189 | H18: 229 | I18: 221 | J18: 218
B19: Região Nordeste | E19: 461 | F19: 498 | G19: 429 | H19: 519 | I19: 508 | J19: 510
B20: Região Centro-Oeste | E20: 297 | F20: 222 | G20: 184 | H20: 215 | I20: 228 | J20: 297
B21: Região Sudeste | E21: 2913 | F21: 2219 | G21: 2411 | H21: 2198 | I21: 2365 | J21: 2583
B22: Região Sul | E22: 335 | F22: 207 | G22: 164 | H22: 203 | I22: 204 | J22: 206
B24: Categoria Funcional
B25: Diretoria | E25: 5 | F25: 9
B26: Gerência | E26: 250 | F26: 132
B27: Chefia/coordenação | E27: 46 | F27: 89
B28: Técnica/supervisão | E28: 37 | F28: 0
B29: Empregados sem cargo gerencial | E29: 4142 | F29: 6530
B31: Faixa etária colaboradores
B32: Menos de 30 anos | E32: 599 | F32: 963
B33: De 30 a 50 anos | E33: 3237 | F33: 4876
B34: Mais de 50 anos | E34: 644 | F34: 921
B36: Contrato de trabalho
B37: Permanente | E37: 4480 | F37: 3365 | G37: 3359 | H37: 3343 | I37: 3506 | J37: 3759
B38: Temporário | E38: 0 | F38: 5 | G38: 18 | H38: 21 | I38: 20 | J38: 55
B40: Número de pessoas em órgãos de governança
B41: Conselho de Administração e Conselho Fiscal | E41: 14 | F41: 15 | G41: 18 | H41: 18 | I41: 13* | J41: 15
B43: GRI 2-21
B45: Remuneração anual total do indivíduo mais bem pago / Remuneração média anual de todos os colaboradores | J45: 102.72
B46: Maior remuneração paga (R$) | D46: 1334413.56 | E46: 1213103.52 | F46: 2490000
B47: Remuneração total anual média para todos os empregados (R$)¹ | D47: 186142.28 | E47: 182393.48 | F47: 155040.12 | K47: ¹Exceto o indivíduo mais bem pago
B48: Proporção (%) | D48: 0.1394936964 | E48: 0.1503527745 | F48: 0.06226510843 | G48: 0.1688 | H48: 0.312 | I48: 0.2836
B49: O cáculo considera somente salário-base (remuneração monetária garantida, de curto prazo, não variável) de todos os colaboradores próprios contratados por tempo integral.
B51: GRI 2-21
B53: Aumento percentual da remuneração total anul do indivíduo mais bem pago / Aumento percentual médio da remuneração anual total de todos os colaboradores
B54: Maior remuneração paga | C54: 1327000.2 | D54: 1334413.56 | E54: 1213103.52 | F54: 2490000
B55: Aumento percentual YoY | D55: 0.0055865553 | E55: -0.09090887835 | F55: 1.052586576 | G55: 0.5 | H55: -1.57 | I55: 0.54
B56: Remuneração total anual média para todos os empregados | C56: 185087.04 | D56: 186142.28 | E56: 182393.48 | F56: 155040.12
B57: Aumento percentual YoY | D57: 0.005701317607 | E57: -0.02013943313 | F57: -0.1499689572
B58: Proporção (%) | D58: 0.98 | E58: 4.51 | F58: -7.02 | G58: 0.5 | H58: -0.64 | I58: 0.54
B59: O cálculo considera somente salário-base (remuneração monetária garantida, de curto prazo, não variável). Reportado somente o valor da razão da remuneração do item devido à confidencialidade dos dados que envolvem a remuneração dos indivíduos. Redução em relação ao ano de 2021 devido ao aumento significativo da amostra de colaboradores com um ano de empresa completo ou 95% do ano trabalhado.
B61: GRI 405-2
B63: Razão matemática entre o salário e remuneração-base para mulheres e homens em cada categoria funcional
B64: Vice-Presidente
B65: Homens | H65: 1.26 | I65: 2.27 | J65: 3.97
B66: Mulheres | H66: 1.94 | I66: * | J66: 3.08
B67: Diretor
B68: Homens | F68: 1.36 | G68: 1.41 | H68: 1.54 | I68: 1.71 | J68: 2.19
B69: Mulheres | F69: 1.96 | G69: 1.83 | H69: 1.56 | I69: 1.65 | J69: 2.15
B70: Gerente Executiva
B71: Homens | G71: 1.62 | H71: 1.38 | I71: 1.52 | J71: 1.92
B72: Mulheres | G72: 1.58 | H72: 1.31 | I72: 1.4 | J72: 1.91
B73: Gerente
B74: Homens | F74: 2.01 | G74: 1.61 | H74: 1.19 | I74: 1.41 | J74: 1.7
B75: Mulheres | F75: 2.16 | G75: 1.69 | H75: 1.24 | I75: 1.41 | J75: 1.62
B76: Coordenador
B77: Homens | F77: 2.03 | G77: 1.39 | H77: 1.16 | I77: 1.29 | J77: 1.35
B78: Mulheres | F78: 2.12 | G78: 1.74 | H78: 1.12 | I78: 1.21 | J78: 1.34
B79: Superintendente
B80: Homens | F80: 1 | G80: 1.36 | H80: 1.03 | I80: 1.32 | J80: O cargo de superintendente foi agrupado com o de coordenador
B81: Mulheres | G81: 1.26 | H81: 1.09 | I81: 1.34
B82: Colaboradores sem cargo gerencial
B83: Homens | F83: 1.41 | G83: 1.3 | H83: 1.05 | I83: 1.12 | J83: 1.25
B84: Mulheres | F84: 1.43 | G84: 1.24 | H84: 1.07 | I84: 1.12 | J84: 1.23
B85: Nota: Em 31/12/2020 não haviam mulheres no cargo de supervisão. A partir de março/2022 todas as diretorias passam a ser denominadas vice-presidências.
B87: GRI 403-9
B89: Taxa e Números de Saúde e Segurança de empregados
B90: Número de óbitos como resultado de lesões relacionadas ao trabalho | D90: 0 | E90: 0 | F90: 0 | G90: 0 | H90: 0 | I90: 0 | J90: 0
B91: Taxa de óbitos como resultado de lesões relacionadas ao trabalho | D91: 0 | E91: 0 | F91: 0 | G91: 0 | H91: 0 | I91: 0 | J91: 0
B92: Número de lesões relacionadas ao trabalho de alta consequência (excluindo óbitos)¹ | D92: 2 | E92: 1 | F92: 0 | G92: 2 | H92: 4 | I92: 3 | J92: 5
B93: Taxa de lesões relacionadas ao trabalho de alta consequência (excluindo óbitos) | D93: 0.31 | E93: 0.16 | F93: 0 | G93: 0.29 | H93: 0.59 | I93: 0.42 | J93: 0.55
B94: Número de lesões relacionadas ao trabalho reportáveis | D94: 5 | E94: 4 | F94: 3 | G94: 5 | H94: 7 | I94: 5 | J94: 10
B95: Taxa de lesões relacionadas ao trabalho reportáveis | D95: 0.77 | E95: 0.64 | F95: 0.57 | G95: 0.73 | H95: 1.03 | I95: 0.71 | J95: 1.29
B97: Obs.: ¹Consideramos lesões graves aquelas que levaram a afastamento. As taxas são calculadas levando em consideração 1 milhão de horas trabalhadas, e seu cálculo considera os empregados, contratados e motoristas que possuam contratos maiores de seis meses com a Vibra Energia.
B99: Indicadores de Saúde, Segurança e Meio Ambiente
B100: Vazamento de óleo e derivados com impacto ao meio ambiente (VAZO, m³) | E100: 1.8 | F100: 8.39 | G100: 0.2 | H100: 0.24 | I100: 0 | J100: 0.69
B101: Taxa de Frequencia de Acidente no Transporte (TFAT, por milhão de quilômetros rodados) | F101: 0.07 | G101: 0.04 | H101: 0.03 | I101: 0.02 | J101: 0.03
B102: Taxa de Acidentados Registráveis (TAR, acidentados por milhão de HHER) | E102: 0.38 | F102: 0.49 | G102: 0.54 | H102: 0.54 | I102: 0.68 | J102: 0.64
B103: Percentual de Tempo Perdido (PTP, %) | E103: 1.92 | F103: 1.19 | G103: 1.79 | H103: 2.09 | I103: 1.51 | J103: 1.8
B105: Obs.: Considerando os afastamentos preventivos em função da Covid-19, o resultado acumulado em 2020 foi 1,59.
B107: Governança Corporativa
B109: GRI 205-2
B110: Número total e percentual de membros do órgão de governança aos quais foram comunicados e que receberam treinamento sobre políticas e procedimentos anticorrupção adotados por nós, por região
B111: 0
B112: Sudeste
B113: Número total de membros no ano | F113: 18 | G113: 18 | H113: 18 | I113: 17 | J113: 15
B114: Número total de membros comunicados | F114: 18 | G114: 18 | H114: 18 | I114: 17 | J114: 15
B115: Percentual de membros comunicados | F115: 100 | G115: 100 | H115: 100 | I115: 100 | J115: 100
B116: Número total de membros capacitados | F116: 18 | G116: 18 | H116: 11 | I116: 5 | J116: 15
B117: Percentual de membros capacitados | F117: 100 | G117: 100 | H117: 61 | I117: 29.4 | J117: 100
B119: Número total e percentual de empregados aos quais foram comunicados e que receberam treinamento sobre políticas e procedimentos anticorrupção adotados por nós
B120: Número total de empregados comunicados | F120: 3370 | G120: 3377 | H120: 3364 | I120: 3526 | J120: 3781
B121: Número total de empregados treinados | F121: 1767 | G121: 2838 | H121: 3226 | I121: 3310 | J121: 3781
B122: Percentual de empregados comunicados | F122: 1 | G122: 1 | H122: 1 | I122: 1 | J122: 0.991
B123: Percentual de empregados treinados | F123: 0.52 | G123: 0.84 | H123: 0.96 | I123: 0.939 | J123: 0.991
B125: Obs.: Consideramos os colaboradores que realizaram o EAD Prevenção à Corrupção da Trilha de Integridade. Revisamos os dados de comunicados e capacitados em 2021, considerando os colaboradores ativos em 31/12/2021. GRI 2-4
B127: GRI 205-3
B129: Casos de Fraude e Corrupção
B130: Número total de casos confirmados | D130: 11 | E130: 31 | F130: 4 | G130: 0 | H130: 4 | I130: 13* | J130: 7
B132: Número total de casos confirmados em que empregados foram demitidos ou punidos por corrupção | D132: 4 | E132: 5 | F132: 2 | G132: 0 | H132: 1 | I132: 6** | J132: 7
B133: Número total de casos confirmados em que contratos com parceiros comerciais foram rescindidos ou não renovados em decorrência de violações relacionadas à corrupção | D133: 0 | E133: 0 | F133: 0 | G133: 0 | H133: 0 | I133: 0 | J133: 0
B134: Natureza dos casos reportados | D134: Apropriação indevida de ativos, corrupção e fraude em licitação | E134: Apropriação indevida de ativos e outros temas | F134: Um caso de falsidade declaratória, um caso de uso indevido de informações empresariais restritas e dois casos de favorecimento de fornecedores | H134: Os casos envolveram uso indevido de recursos da empresa, falsidade declaratória ou documental, fraude em ferramentas de gestão de pessoas e favorecimento de fornecedores da Vibra | I134: *Os casos envolveram apropriação indevida de ativos não monetários; falsidade declaratória ou documental; suborno/propina; conflito de interesses; e favorecimento de fornecedores, clientes ou colaboradores da Vibra. ** Seis dos envolvidos sofreram punições, sendo dois ocupantes de cargo de liderança, três não tinham cargo de liderança e um já era um ex-colaborador. O número de colaboradores punidos é menor que o de casos confirmados porque em quatro ocorrências os responsabilizados já não mais faziam parte do quadro de colaboradores da Vibra, em um caso a avaliação foi de que caberia apenas feedback e em três situações foi identificada a responsabilidade de pessoas externas à Vibra. Dentre as medidas adotadas constam: um desligamento por justa causa, uma exclusão do ex-colaborador e seus dependentes do plano de saúde e quatro desligamentos por conveniência. | J134: Nota: em 2024, a organização registrou casos confirmados de corrupção envolvendo seus empregados, incluindo conflito de interesse, fraude e uso indevido de recursos da empresa. No entanto, não houve rescisão ou não renovação de contratos com parceiros de negócios devido a esses casos, nem processos judiciais movidos contra a empresa ou seus empregados em decorrência das ocorrências.
B135: obs.: Foram consideradas Apurações de Denúncias Procedentes e Parcialmente Procedentes. A natureza das fraudes reportadas foi informada de acordo com o estabelecido na árvore de classificação de denúncias. Em 2020 houve casos de apurações com status procedente que não culminaram em medidas disciplinares em virtude de os empregados envolvidos não mais pertencerem aos quadros internos na ocasião da conclusão do trabalho investigativo. Não temos ciência de processos judiciais públicos relacionados à corrupção iniciados contra nós e nossos empregados no ano de 2020. Em 2022, em dois casos, a avaliação foi de que não cabia qualquer sanção disciplinar (em um deles houve aplicação de medida pedagógica fixada por Acordo de Conduta Pessoal e Profissional, aprovada no Comitê de Ética). No terceiro caso, o colaborador foi demitido e, no quarto caso, a demissão foi suspensa por força maior.
B137: Comunidades
B139: GRI 413-1
B141: Porcentagem de operações com engajamento na comunidade local implementado, avaliações de impacto e/ou programas de desenvolvimento
B143: Avaliações de impactos sociais, inclusive avaliações de impactos de gênero, com base em processos participativos¹ | D143: 58 | E143: - | F143: 50 | G143: 0 | H143: 0 | I143: * GRI 413-1 | Porcentagem de operações com engajamento na comunidade local implementado, avaliações de impacto e/ou programas de desenvolvimento: quanto a este indicador, apenas não o reportamos neste ano. | J143: * GRI 413-1 | Porcentagem de operações com engajamento na comunidade local implementado, avaliações de impacto e/ou programas de desenvolvimento: quanto a este indicador, apenas não o reportamos neste ano.
B144: % | D144: 0.8406 | E144: - | F144: 0.4132 | G144: 0 | H144: 0
B145: Avaliações de impactos ambientais e monitoramento contínuo² | D145: 46 | E145: 53 | F145: 66 | G145: 60 | H145: 59
B146: % | D146: 0.6667 | E146: 0.7681 | F146: 1 | G146: 1 | H146: 1
B147: Divulgação pública dos resultados de avaliações de impactos ambientais e sociais | D147: - | E147: - | F147: - | G147: - | H147: -
B148: % | D148: - | E148: - | F148: - | G148: - | H148: -
B149: Programas de desenvolvimento local baseados nas necessidades de comunidades locais | D149: - | E149: 1 | F149: 1 | G149: 7 | H149: 7
B150: % | D150: - | E150: 0.0172 | F150: 0.0083 | G150: 0.1167 | H150: 0.1186
B151: Planos de engajamento de stakeholders baseados em mapeamentos dessas partes (Planos de Relacionamento Comunitário) | D151: 8 | E151: 2 | F151: 2 | G151: 3 | H151: 3
B152: % | D152: 0.1159 | E152: 0.029 | F152: 0.0165 | G152: 0.05 | H152: 0.0508
B153: Comitês e processos de consulta ampla à comunidade local incluindo grupos vulneráveis | D153: 2 | E153: 2 | F153: 2 | G153: 3 | H153: 3
B154: % | D154: 0.029 | E154: 0.029 | F154: 0.0165 | G154: 0.05 | H154: 0.0508
B155: Conselhos de trabalho, comissões de saúde e segurança no trabalho e outras entidades representativas de empregados para discutir impactos | G155: 2 | H155: 3
B156: % | G156: 0.0333 | H156: 0.0508
B157: Processos formais de queixas e reclamações por parte de comunidades locais | G157: 60 | H157: 59
B158: % | G158: 1 | H158: 1
B160: ¹Consideramos apenas as unidades operadas diretamente por nós. Consideramos as unidades que realizaram atualização do cadastro de comunidades, incluindo impactos sociais e desconsideramos unidades de aviação e áreas individuais. ²Consideramos as unidades que têm LAIPDs ou APRs ou EARs, consideradas Práticas de Avaliação dos Aspectos e Impactos Ambientais. Não realizamos a divulgação pública dos resultados de avaliações de impactos ambientais e sociais
B162: Meio Ambiente
B164: GRI 305-1
B166: Emissões diretas de gases do efeito estufa (t co2 equivalente)
B168: Geração de eletricidade, calor ou vapor resultantes da queima de combustíveis em fontes estacionárias (fixas) como caldeiras, fornos e turbinas e de outros processos de combustão, como queima | D168: 38385 | E168: 41915 | F168: 38487 | G168: 38535 | H168: 38424 | I168: 36410 | J168: 35006
B169: Transporte de materiais, produtos, resíduos, empregados e passageiros resultantes da queima de combustíveis em fontes móveis de combustão pertencentes ou controladas por nós, como caminhões, trens, navios, aviões, ônibus e carros | D169: 115051 | E169: 103844 | F169: 88870 | G169: 4947 | H169: 5750 | I169: 5144 | J169: 5130
B170: Emissões fugitivas resultantes de liberações intencionais ou involuntárias, como vazamentos em juntas, lacres, embalagens e vedações de equipamentos; emissões de metano provenientes de minas de carvão e sistemas de ventilação; emissões de hidrofluorcarbonetos (HFCs) oriundas do uso de geladeiras e ar condicionados; e vazamentos de metano provenientes do transporte de gás | D170: 82 | E170: 82 | F170: 935 | G170: 89 | H170: 107 | I170: 52 | J170: 45
B171: Os gases incluídos: CO2 - dióxido de carbono; CH4 - metano; N2 O - óxido nitroso; HFCs – hidrofluorcarbonetos. GWP: IPCC AR5 (2014); Fatores de emissão: GHG Protocol; Fatores de conversão: BEN 2022 (Balanço Energético Nacional). O transporte de produtos foi revisado para o escopo 3, após a realização de um detalhado diagnóstico de ESG do transporte rodoviário da Vibra. Concluiu-se que o nível de gestão de emissões é limitado, cabendo ao transportador contratado a responsabilidade e poder de tomada de decisão quanto às variáveis determinantes na emissão de GEE. À Vibra cabe a fiscalização do serviço prestado. Para fins de comparabilidade, excluindo o transporte de produtos do escopo 1 do ano de 2020, tivemos a emissão de 43.485 tCO2e.
B173: GRI 305-4
B175: Intensidade de emissões de gases do efeito estufa
B177: Total de emissões de GEE (t CO2 equivalente) | D177: 170365 | E177: 163196 | F177: 146019 | G177: - | H177: - | I177: - | J177: -
B178: Total de emissões de GEE (tCO2 equivalente) - Escolha de localização | D178: - | E178: 64916 | F178: 18027 | G178: 63157 | H178: 57920 | I178: 54118 | J178: 54118
B179: Total de emissões de GEE (tCO2 equivalente) - Escolha de compra | D179: - | E179: - | F179: - | G179: 61830 | H179: 57152 | I179: 53274 | J179: 53274
B180: Intensidade de emissões de Gases do Efeito Estufa | D180: 4.33 | E180: 4.09 | F180: 4 | G180: - | H180: - | I180: - | J180: -
B181: Intensidade de emissões de gases de efeito estufa (tCO2e/mil m³) – Escolha de localização | D181: - | E181: 0.3 | F181: 2.09 | G181: 2.02 | H181: 1.86 | I181: 1.78 | J181: 1.78
B182: Intensidade de emissões de gases de efeito estufa (tCO2e/mil m³) – Escolha de compra | D182: - | E182: - | F182: - | G182: 1.98 | H182: 1.84 | I182: 1.75 | J182: 1.75
B184: obs.:As emissões incluídas são de Escopo 1 e 2. Os gases incluídos no cálculo foram CO2, CH4, N2O, HFCs e PFCs. A partir de 2021 passamos a adotar o denominador BOE para nossos cálculos de intensidade de emissões.
B186: GRI 303-3
B188: Água reciclada e reutilizada
B190: Volume total de água reciclada e reutilizada por nós (MI – megalitro) | D190: 1.6 | E190: 3.1 | F190: 0.5 | G190: 2.08 | H190: * | I190: * | J190: *
B191: Volume total de água retirada (MI – megalitro) | D191: 364.9 | E191: 383.2 | F191: 336.5 | G191: 331.3 | H191: 338.55 | I191: 335.23 | J191: 350.34
B192: Percentual de água reciclada e reutilizada | D192: 0.0044 | E192: 0.0081 | F192: 0.0015 | G192: - | H192: 0.0085 | I192: 0.012 | J192: 0.0098
B194: GRI 302-1
B196: Consumo de combustíveis de fontes não renováveis
B198: Diesel | D198: 2066623.28 | E198: 2048526.56 | F198: 531316 | G198: 543678 | H198: 551470 | I198: 523513 | J198: 463990
B199: Gás natural | D199: 26166.54 | E199: 6467.63 | F199: - | G199: - | H199: - | I199: - | J199: 0
B200: GLP | D200: 9830.18 | E200: 5148.15 | F200: 4010.4 | G200: 8574.68 | H200: 7898 | I200: 10560 | J200: 10744
B201: GNV | D201: 6453.26 | E201: 25083.67 | F201: 5254.92 | G201: 4136.19 | H201: 2637 | I201: 1551 | J201: 737
B202: Óleo combustível | D202: 39528.53 | E202: 72845.04 | F202: 16348 | G202: 17744 | H202: 19847 | I202: 16150 | J202: 16150
B203: Gasolina | D203: 19938.08 | E203: 11075.42 | F203: 13684 | G203: 16860 | H203: 17224 | I203: 9861 | J203: 9861
B205: Obs.: A alteração dos dados de gasolina automotiva foi realizada, pois já era considerado o teor de 27,5% de etanol anidro no fator de conversão. Essa alteração aumentou o dado de consumo de gasolina automotiva nos anos de 2020 e 2021. GRI 2-4
B207: Consumo de combustíveis de fontes renováveis
B209: Biodiesel¹ | D209: 255425.35 | E209: 230145.92 | F209: 62572 | G209: 63296 | H209: 56790 | I209: 63209 | J209: 68217
B210: Etanol² | D210: 6896.48 | E210: 3830.93 | F210: - | G210: - | H210: 4275 | I210: 9543 | J210: 12121
B212: Nota: O etanol hidratado passou a ser utilizado na frota de veículos leves em 2022. O consumo de etanol nos anos 2020 e 2021 nos relatos anteriores considerava somente o etanol anidro, que a partir de 2022, passou a integrar o valor de gasolina automotiva consumida. GRI 2-4
B214: Energia Consumida
B216: Eletricidade – Consolidado (cativo, livre e GD) | D216: =SUM(D217:D218,D220) -> 143550.62 | E216: =SUM(E217:E218,E220) -> 142302.89 | F216: =SUM(F217:F218,F220) -> 134289.39 | G216: =SUM(G217:G218,G220) -> 136208.18 | H216: =SUM(H217:H218,H220) -> 141415 | I216: 145.372 * | J216: 140596*
B217: Eletricidade – Mercado cativo | D217: 143447.44 | E217: 141904.59 | F217: 126193 | G217: 109848 | H217: 103824 | I217: - | J217: -
B218: Eletricidade – Mercado livre | F218: 7714 | G218: 25998 | H218: 37238 | I218: - | J218: -
B219: Vapor | D219: 119697.83 | E219: 185636.97 | F219: 255639 | G219: 254210 | H219: 197193 | I219: 181759 | J219: 160714
B220: Eletricidade - Fotovoltaica | D220: 103.18 | E220: 398.3 | F220: 382.39 | G220: 362.18 | H220: 353 | I220: - | J220: -
B222: Nota: Energia solar fotovoltaica gerada na sede administrativa.
B224: Total de energia consumida
B226: Combustíveis de fontes não renováveis | D226: 2168539.87 | E226: 2169146.47 | F226: 570614 | G226: 590993 | H226: 599076 | I226: 561635 | J226: 487713
B227: Combustíveis de fontes renováveis | D227: 262321.83 | E227: 233976.85 | F227: 62752 | G227: 63296 | H227: 61085 | I227: 72752 | J227: 80338
B228: Energia consumida | D228: 263248.45 | E228: 327939.86 | F228: 389928 | G228: 390418 | H228: 338608 | I228: 327129 | J228: 301310
B230: Obs.: Foi considerado para o cálculo, todo combustível consumido de fonte renovável (biodiesel e etanol) e não renovável (gasolina, diesel, GLP, GNV e óleo combustível) utilizado na operação das unidades Vibra. Principais equipamentos: geradores, motobombas, veículos próprios e caldeiras. Foi considerado também o consumo de diesel para geração distribuída na Termelétrica de Juruti. Foi considerado para energia consumida, todo o consumo de energia elétrica de geração própria (fotovoltaico) e comprado (mercado cativo e livre), e ainda, o consumo de vapor comprado para aquecimento de dutos e tanques de óleo combustível. O etanol hidratado passou a ser utilizado na frota de veículos leves em 2022. O consumo de etanol nos anos 2020 e 2021 nos relatos anteriores considerava somente o etanol anidro, que a partir de 2022, passou a integrar o valor de gasolina automotiva consumida
B232: GRI 302-3
B234: Intensidade Energética
B236: Consumo de energia dentro da organização | D236: 2694110.15 | E236: 2731063.18 | F236: 1023294 | G236: 1044707 | H236: 998749 | I236: 961515 | J236: 869361
B237: Intensidade energética dentro da organização (GJ/mil m3) | D237: 68.53 | E237: 68.49 | F237: 34.71 | G237: 33.39 | H237: 32.08 | I237: 26.04 | J237: 28.5
B238: Consumo de energia fora da organização | D238: 2762919.24 | E238: 2959932.99 | F238: 4489675 | G238: 4871302 | H238: 5280502 | I238: 5580077 | J238: 7133967
B239: Intensidade energética fora da organização (GJ/mil m3) | D239: 70.28 | E239: 74.23 | F239: 152.31 | G239: 155.704 | H239: 169.68 | I239: 151.09 | J239: 233.75
B240: Consumo de energia total da organização | D240: 5457029.39 | E240: 5690996.17 | F240: 5512969 | G240: 5916009 | H240: 6279251 | I240: =SUM(I236,I238) -> 6541592 | J240: =SUM(J236,J238) -> 8003328
B241: Intensidade energética (total da organização) | D241: 138.81 | E241: 142.72 | F241: 187.02 | G241: 189.094 | H241: 201.76 | I241: 177.13 | J241: 262.24
B242: Proporção da intensidade energética de dentro/fora da organização | F242: 0.23 | G242: 0.21 | H242: 0.19 | I242: =I237/I239 -> 0.1723476074 | J242: =J237/J239 -> 0.1219251337
B244: Obs.: A partir de 2021 passamos a adotar o denominador BOE para nossos cálculos de intensidade energética. Em 2021, ocorreu um aumento significativo no valor de energia consumida fora da organização devido a uma mudança de escopo quando comparado com 2020. O transporte de produtos para entrega no modal rodoviário era considerado dentro da organização e passou a ser considerado fora, assim como os demais transportes rodoviários e modais. A motivação da mudança foi o fato de que o transporte de entrega aos clientes de Vibra também passou a ser realizado por frete contratado e não por frota própria, e esse consumo já é reportado como interno pelas respectivas transportadoras.
B246: GRI 302-4
B248: Reduções de consumo de energia obtidas diretamente em decorrência de melhorias
B249: Reduções totais | J249: 26299
B250: Consumo de combustíveis de fontes não renováveis dentro da organização | D250: 2168539.87 | E250: 2169146.47 | F250: 1704134.54 | G250: - | H250: - | I250: - | J250: -
B251: Consumo de eletricidade dentro da organização | D251: 143447.44 | E251: 141904.59 | F251: 136021.02 | G251: - | H251: - | I251: - | J251: -
B252: Mudanças operacionais e redução de ativos | F252: 5884 | G252: 1902.11 | H252: 22622 | I252: Não reportamos | J252: =IFERROR(IF($B$1="PT","Não é reportado","it´s not reported"),) -> it´s not reported
B253: Redesenho de processo | F253: 465012 | G253: - | H253: - | I253: - | J253: -
B254: Melhoria em infraestrutura | F254: - | G254: 11713 | H254: 28565 | I254: Não reportamos | J254: =IFERROR(IF($B$1="PT","Não é reportado","it´s not reported"),) -> it´s not reported
B256: Permanência do regime home office ao longo de todo o ano de 2021, melhorias em conservação e alienação de ativos. Redesenho de processo/escopo onde o combustível e biocombustível consumido no transporte rodoviário de entrega passou a ser considerado externo a organização (frete contratado). A melhoria em infraestrutura foi a principal redução devido à instalação de medidores e diminuição na perda de vapor.
B258: GRI 305-3
B260: Emissões biogênicas de CO2 (t co2 equivalente)
B262: Os gases incluídos no cálculo foram CO2 - dióxido de carbono; CH4 - Metano; N2O - óxido nitroso. Fonte dos fatores de emissão usados e as taxas de potencial de aquecimento global (GWP): GWP: IPCC AR4 (2007); fatores de emissão: GHG Protocol e CDP 2016 (Tool Scope 3 O&G). Adotamos a metodologia do GHG Protocol para a categoria transporte e CDP - Tool Scope 3 O&G para a categoria uso do produto. Houve uma atualização do banco de dados utilizado e aperfeiçoamento do cálculo da estimativa de emissões no que se refere a categoria de transporte. As demais categorias de escopo 3 não foram incluídas no inventário por serem pouco representativas se comparadas à categoria de uso do produto, uma vez que o produto comercializado por nós é intenso em emissão de carbono. Fator de conversão: BEN 2021 (Balanço Energético Nacional). Para fins de comparabilidade, incluindo no escopo 3 a parcela do transporte de produtos que antes era contabilizada como escopo 1, nos anos de 2020 e 2019 tivemos a emissão biogênica de 12.693.558 tCO2biogênico e 13.434.156 tCO2biogênico, respectivamente. | D262: 12764861 | E262: 13421047 | F262: 12683660 | G262: 12998618 | H262: 12903260 | I262: 13314668 | J262: 14727091
B264: GRI 303-3
B266: Retirada total de água (ML - Megalitro)
B267: Águas superficiais, incluindo áreas úmidas, rios, lagos e oceanos | D267: 4.4 | E267: 4.9 | F267: 4.04 | G267: 4.42 | H267: 9.33 | I267: 10.67 | J267: 11.41
B268: Águas subterrâneas/lençóis freáticos | D268: 74.5 | E268: 74.5 | F268: 67.18 | G268: 47.9 | H268: 45.4 | I268: 43.33 | J268: 19.37
B269: Águas pluviais diretamente coletadas e armazenadas pela organização | D269: 1.6 | E269: 2.55 | F269: 0.002 | G269: 0 | H269: - | I269: - | J269: 0
B270: Abastecimento municipal de água ou outras empresas de abastecimento de água | D270: 284.4 | E270: 300.7 | F270: 88.96 | G270: 0 | H270: - | I270: - | J270: 0
B271: Água produzida | D271: 0 | E271: 0.55 | F271: 0.5 | G271: 2.08 | H271: 2.88 | I271: 4.06 | J271: 3.42
... 12 more rows

Sheet 13.Dividends
B4: Status | C4: Period | D4: Preceeds | E4: EX-dividend date | F4: Payment Date | G4: Gross value per share (R$) | H4: Gross value (R$) | I4: Value/ year (R$)
B5: a | C5: 2017 | D5: Interest on Net Equity (JCP) | E5: 2018-02-01 | F5: 2018-07-19 | G5: 0.5652734676 | H5: 658543589.8 | I5: 1092160223 | L5: 2018 | M5: 2019 | N5: 2020 | O5: 2021 | P5: 2022 | Q5: 2023 | R5: 2024 | S5: 2025 | T5: 2026
B6: a | C6: 2017 | D6: Dividends | E6: 2018-04-25 | F6: 2018-09-04 | G6: 0.3722031184 | H6: 433616633 | K6: Caixa | L6: =SUMIFS($H:$H,$F:$F,">="&DATE(L$5,1,1),$F:$F,"<="&DATE(L$5,12,31)) -> 1092160223 | M6: 3145747899 | N6: 1148849831 | O6: 2859130055 | P6: 520849829 | Q6: 434993081.6 | R6: 1604581530 | S6: 1636255005 | T6: 1200000000
B7: a | C7: 2018 | D7: Interest on Net Equity (JCP) | E7: 2018-12-11 | F7: 2019-04-30 | G7: 0.4938127435 | H7: 575291846.2 | I7: 3145747899 | K7: Competência | L7: =SUMIFS($H:$H,$E:$E,">="&DATE(L$5,1,1),$E:$E,"<="&DATE(L$5,12,31)) -> 1667452069 | M7: 3122244073 | N7: 1095449323 | O7: 2492592372 | P7: 823993081.6 | Q7: 928421090.2 | R7: 1750860474 | S7: 1761554972 | T7: 0
B8: a | C8: 2018 | D8: Dividends | E8: 2019-04-24 | F8: 2019-05-31 | G8: 0.8806284854 | H8: 1025932186
B9: a | C9: 2018 | D9: Dividends | E9: 2019-04-24 | F9: 2019-10-29 | G9: 1.32577156 | H9: 1544523867
B10: a | C10: 2019 | D10: Interest on Net Equity (JCP) | E10: 2019-12-04 | F10: 2020-09-01 | G10: 0.4736377858 | H10: 551788020.4 | I10: 1148849831
B11: a | C11: 2019 | D11: Dividends | E11: 2020-07-31 | F11: 2020-09-01 | G11: 0.04280037411 | H11: 49862435.84
B12: a | C12: 2019 | D12: Dividends | E12: 2020-07-31 | F12: 2020-09-30 | G12: 0.469699034 | H12: 547199374.6
B13: a | C13: 2020 | D13: Interest on Net Equity (JCP) | E13: 2020-12-22 | F13: 2021-01-12 | G13: 0.4278004396 | H13: 498387512.2 | I13: 2859130055
B14: a | C14: 2020 | D14: Dividends complementary to the mandatory minimum and part of the additional dividends approved in the Ordinary General Meeting | E14: 2021-04-16 | F14: 2021-04-30 | G14: 0.9503704153 | H14: 1107181534
B15: a | C15: 2020 | D15: 2nd installment related to remuneration to shareholders in the form of dividends, approved in the Ordinary General Meeting | E15: 2021-04-16 | F15: 2021-08-31 | G15: 0.6195157622 | H15: 721735862.9
B16: a | C16: 2021 | D16: Anticipation of a part of Interest on Net Equity (JCP) | E16: 2021-09-14 | F16: 2021-09-29 | G16: 0.333672094 | H16: 383277611
B17: a | C17: 2021 | D17: Anticipation of the 2nd installment of Interest on Net Equity (JCP) | E17: 2021-12-14 | F17: 2021-12-23 | G17: 0.131482454 | H17: 148547535.4
B18: a | C18: 2021 | D18: Dividends complementary to the mandatory minimum | E18: 2021-04-29 | F18: 2022-05-30 | G18: 0.117107099 | H18: 131849829 | I18: 520849829
B19: a | C19: 2022 | D19: Anticipation of a part of Interest on Net Equity (JCP) | E19: 2022-09-22 | F19: 2022-12-29 | G19: 0.3489091208 | H19: 389000000
B20: a | C20: 2022 | D20: Payment of the second installment of interest on own capital (JCP). | E20: 2022-12-22 | F20: 2023-02-28 | G20: 0.390162091 | H20: 434993081.6 | I20: 434993081.6
B21: a | C21: 2023 | D21: Interest on Net Equity (JCP) | E21: 2023-09-22 | F21: 2024-02-29 | G21: 0.4290954329 | H21: 478400000 | I21: 1604581530
B22: a | C22: 2023 | D22: Payment of the second installment of interest on own capital (JCP) | E22: 2023-12-26 | F22: 2024-05-29 | G22: 0.403620747 | H22: 450021090.2
B23: a | C23: 2023 | D23: Additional dividends on the minimum mandatory dividend and portion of the additional dividends proposed to be announced at the E/AGM | E23: 2024-04-19 | F23: 2024-08-31 | G23: 0.3032217687 | H23: 338080219.9
B24: a | C24: 2023 | D24: Additional dividends proposed to be announced at the E/AGM | E24: 2024-04-19 | F24: 2024-11-30 | G24: 0.3032217687 | H24: 338080219.9
B25: a | C25: 2024 | D25: Anticipation - Interest on Net Equity (JCP) | E25: 2024-07-01 | F25: 2025-02-27 | G25: 0.4668491626 | H25: 520700033.8 | I25: 1636255005
B26: a | C26: 2024 | D26: Payment of the second installment of interest on own capital (JCP) | E26: 2024-09-24 | F26: 2025-05-30 | G26: 0.2349908981 | H26: 262000000
B27: a | C27: 2024 | D27: Payment of the third installment of interest on own capital (JCP) | E27: 2024-12-26 | F27: 2025-08-29 | G27: 0.236199833 | H27: 292000000
B28: a | C28: 2024 | D28: Additional dividends on the minimum mandatory dividend and portion of the additional dividends proposed to be announced at the E/AGM | E28: 2025-04-17 | F28: 2025-11-28 | G28: 0.5038577563 | H28: 561554971.5
C29: 2025 | D29: Interest on Net Equity (JCP) | E29: 2025-03-24 | F29: 2026-02-27 | G29: 0.3140389862 | H29: 350000000 | I29: =SUM(H29:H30) -> 1200000000
C30: 2025 | D30: Interest on Net Equity (JCP) | E30: 2025-11-26 | F30: 2026-12-16 | G30: =H30/1119000000 -> 0.7596067918 | H30: 850000000
C31: Total | G31: =SUM(G5:G30) -> 11.89754919 | H31: 1.279256745e+10 | I31: 1.244256745e+10

Sheet 14. Consensus
B3: 14. Consensus*
B6: VIBRA ENERGIA - Consolidated
B7: (millions)
C9: 4Q25 | F9: Δ
C10: Consenso* | D10: Real | F10: (Real - Consenso)
B11: Adjusted EBITDA | C11: 1812.200781 | D11: 2620 | F11: =D11-C11 -> 807.7992188
B12: EBITDA/m³ | C12: 167.1446017 | D12: 251 | F12: =D12-C12 -> 83.85539832
B13: Net Income | C13: 653.860997 | D13: 679 | F13: =D13-C13 -> 25.13900299
B15: Stock Target Price | C15: 32.02222222

Sheet 15. Disclaimer
B3: 15. Ressalva
B6: This presentation contains some statements and forward-looking information related to VIBRA that reflect the current vision and/or expectations of the Company and its management regarding its business plan. Such information is not only historical facts, but reflects the goals and expectations of VIBRA's management. Forward-looking statements include, but are not, all statements that denote forecasting, projection, indicate or imply future results, performance or achievements, and may contain words such as "believe," "provide," "expect," "contemplate," "likely" or other words or expressions of similar meaning. While we believe that these forward-looking statements are based on reasonable assumptions, these statements are subject to various risks and uncertainties, and are made taking into account the information vibra currently has access to. This presentation is updated until September 30th, 2024 and VIBRA is not obliged to update it through new information and/or future events. In no event shall VIBRA or its subsidiaries, its directors, directors, representatives or employees be liable to any third party (including investors) for investment or business decisions or acts taken on the basis of the information and statements contained in this presentation, nor for indirect or similar consequential damages. VIBRA has no intention of providing potential stock holders with a review of forward-looking statements or analysis of differences between forward-looking statements and actual results. This presentation and its content constitute information owned by VIBRA, and may not be reproduced or disclosed in whole or in part without its prior written consent
